Workbook

Sheet Disclaimer

Sheet Sulfiddannelse i trykledning
B1: Simpel model til beregning af sulfiddannelse i trykledning
B4: Data markeret med denne farve kan ændres
B6: Spildevandsdata
B7: Parameter | C7: Værdi | D7: Enhed | E7: Kommentar
B8: Spildevandstype (vælg fra liste) | C8: Typisk_blandet | D8: (-) | E8: Angiver bioomsætteligheden af det organiske stof
B9: Døgnflow | C9: 250 | D9: (m3/d)
B11: Temperatur | C11: 16 | D11: grader C | E11: 5 - 30 grader celcius
B12: COD opløst | C12: 230 | D12: (mg/L) | E12: Normal 30-50% af total COD
B13: pH | C13: 7.2 | D13: (-) | E13: Kan vælges mellem 6 og 9
B14: Sulfatindhold | C14: 30 | D14: (mg S/L) | E14: Sulfatindholdet bestemmer hvor meget sulfid der kan dannes
B17: Pumpestation
B18: Arbejdsvolumen_sump | C18: 3 | D18: (m3)
B19: Pumpeydelse | C19: 60 | D19: (m3/h) | E19: Ydelse i m3 per time
C20: =C19*1000/3600 -> 16.66666667 | D20: (L/s) | E20: Ydelse i liter per sekund
B22: Trykledning
B23: Diameter | C23: 170 | D23: (mm) | E23: Indre diameter for trykledning
B24: Længde | C24: 1200 | D24: (m) | E24: Længde af trykledning
B25: Volumen | C25: =PipeArea*'Trykledning beregning'!C19 -> 27.23760831 | D25: (m3) | E25: Volumen af trykledning
B26: Geometrisk løftehøjde | C26: 3 | D26: (m)
B27: Start kote | C27: 0 | D27: (m)
B29: Resultater
B31: Pumpedata
B32: Antal pumpestarter | C32: ='Trykledning beregning'!C17 -> 63 | D32: (antal per dag)
B33: Driftstid | C33: ='Trykledning beregning'!$C$16 -> 249.5 | D33: (minutter per dag)
C34: =C33/(24*60) -> 0.1732638889 | D34: af døgnet
B35: Vandhastighed ved pumpning | C35: ='Trykledning beregning'!$C$23 -> 0.7342788609 | D35: (m per sekund)
B36: Tryktab_friktion | C36: ='Trykledning beregning'!$C$27 -> 8.163320848 | D36: (m vandsøjle)
B37: Samlet tryk ved pumpe | C37: =C36+C26 -> 11.16332085 | D37: (m vandsøjle)
B38: Anslået energiforbrug | C38: =1002*9.81*C9*$C$37/(3.6*10^6*0.75) -> 10.16029647 | D38: (kWh/d) | E38: Antager virkningsgrad på 75%
B40: Opløst sulfid i spildevand fra oppumpningsbrønd
B41: Maks koncentration | C41: ='Trykledning beregning'!$W$31 -> 6.247642008 | D41: (mg S/L)
B42: Flowproportional middelværdi for døgnet | C42: ='Trykledning beregning'!Y32 -> 3.318075738 | D42: (mg S/L)
B43: Lugt/korrosionspotentiale | C43: ='Trykledning beregning'!$X$29 -> Høj | D43: Subjektivt bud på problemernes omfang - tager ikke højde for turbulens mm
B45: Flowvariation
B46: Klokketime (fra - til) | C46: Timefaktor, flow | D46: Kommentar
B47: 00:00 - 01:00 | C47: 0.835 | D47: Faktor, der angiver variationen i flowværdi. Talværdien benyttes til at beregne
B48: 01:00 - 02:00 | C48: 0.702 | D48: hvor stor en andel af døgnetflowet, der tilledes pumpesumpen i den pågældene time.
B49: 02:00 - 03:00 | C49: 0.645 | D49: Der må ikke indtastes negative værdier!
B50: 03:00 - 04:00 | C50: 0.414
B51: 04:00 - 05:00 | C51: 0.391
B52: 05:00 - 06:00 | C52: 0.466
B53: 06:00 - 07:00 | C53: 0.881
B54: 07:00 - 08:00 | C54: 1.364
B55: 08:00 - 09:00 | C55: 1.456
B56: 09:00 - 10:00 | C56: 1.232
B57: 10:00 - 11:00 | C57: 1.099
B58: 11:00 - 12:00 | C58: 1.076
B59: 12:00 - 13:00 | C59: 1.047
B60: 13:00 - 14:00 | C60: 1.099
B61: 14:00 - 15:00 | C61: 1.053
B62: 15:00 - 16:00 | C62: 0.967
B63: 16:00 - 17:00 | C63: 0.99
B64: 17:00 - 18:00 | C64: 1.168
B65: 18:00 - 19:00 | C65: 1.341
B66: 19:00 - 20:00 | C66: 1.496
B67: 20:00 - 21:00 | C67: 1.312
B68: 21:00 - 22:00 | C68: 1.099
B69: 22:00 - 23:00 | C69: 0.955
B70: 23:00 - 00:00 | C70: 0.909

Sheet Korrosion nedstrøms
B1: Simpel model til beregning af betonkorrosion nedstrøms for en trykledning
B4: Oppumpning
B6: Parameter | C6: Værdi | D6: Enhed | E6: Kommentar
B7: Diameter | C7: 1 | D7: (m)
B8: Dybde | C8: 1 | D8: (m)
B9: Overfladeaeal/volumen | C9: =4/C7 -> 4 | D9: (1/m)
B11: Nedstrøms ledning
B12: Rørdiameter | C12: 400 | D12: Ø (mm)
B13: Indre diameter | C13: =VLOOKUP(C12,'List data'!$D$18:$F$29,2) -> 0.4 | D13: (m)
B14: Godstykkelse | C14: =VLOOKUP(C12,'List data'!$D$18:$F$29,3) -> 65 | D14: (mm)
B15: Bundlinjegradient | C15: =5/1000 -> 0.005 | D15: (m/m) | E15: Maks 10% og min 0.1%
B16: Rørruhed | C16: 1 | D16: (mm) | E16: Typisk 1 mm
B17: Betonens alkalinitet | C17: 0.2 | D17: (g CaCO3/g) | E17: Kan vælges mellem 0 og 1. Typisk værdi for portland-cement baseret beton er 0.2. Særlige typer offerbeton med højt kalkindhold kan have en værdi på op til 1.
B18: Tilladt reduktion af godstykkelse | C18: 0.5

Sheet Svovlbrintebekæmpelse
B1: Estimeret kemikalieforbrug til at modvirke H2S nedstrøms for en trykledning
B4: Fældningskemikalier
B6: Støkiometri | C6: 1.5 | E6: Der bør tilsættes i overskud.
B8: Jern(III)sulfat | C8: Aktivstof | D8: Koncentration (min) | E8: Kommentar
C9: Fe2(SO4)3 | D9: 0.4 | E9: Sælges fx som PIX-113
B10: Molvægt | C10: 399.88 | D10: (g/mol)
B11: Densitet af opløsning | C11: 1.55 | D11: (g/cm3)
B12: Beregnet forbrug | C12: =(55.845/32*'Trykledning beregning'!$Y$33*Svovlbrintebekæmpelse!$C$6)/(2*55.845/C10)*10^-3 -> 7.661524379 | D12: kgFe2(SO4)3/d
C13: =C12/D9 -> 19.15381095 | D13: kg opløsning/d
C14: =C13/C11 -> 12.35729738 | D14: L opløsning/d
B16: Jern(III)chlorid | C16: Aktivstof | D16: Koncentration (min) | E16: Kommentar
C17: FeCl3 | D17: 0.35 | E17: Sælges fx som PIX-111
B18: Molvægt | C18: 162.204 | D18: (g/mol)
B19: Densitet af opløsning | C19: 1.42 | D19: (g/cm3)
B20: Beregnet forbrug | C20: =(55.845/32*'Trykledning beregning'!$Y$33*Svovlbrintebekæmpelse!$C$6)/(55.845/C18)*10^-3 -> 6.215514156 | D20: kgFeCl3/d
C21: =C20/D17 -> 17.75861187 | D21: kg opløsning/d
C22: =C21/C19 -> 12.5060647 | D22: L opløsning/d
B25: Nitratbaserede bekæmpelsesmidler
B27: Kontol (modvirker H2S dannelse) | C27: 1.2 | D27: Angiver i hvor stor en %-del af trykledningen der er nitrat i vandfasen.
B29: Calciumnitrat | C29: Aktivstof | D29: Koncentration (min) | E29: Kommentar
C30: Ca(NO3)2.4H2O | D30: 0.5 | E30: Sælges fx som Nutriox Nx
B31: Molvægt | C31: 236.15 | D31: (g/mol)
B32: Densitet af opløsning | C32: 1.4 | D32: (g/cm3)
B33: Beregnet forbrug | C33: ='Trykledning beregning'!AB34*C27/1000/((2*14.0067)/C31) -> 8.977726846 | D33: kgCa(NO3)2.4H2O/d
C34: =C33/D30 -> 17.95545369 | D34: kg opløsning/d
C35: =C34/C32 -> 12.82532407 | D35: L opløsning/d
B37: Natriumnitrat | C37: Aktivstof | D37: Koncentration (min) | E37: Kommentar
C38: NaNO3 | D38: 0.35 | E38: Sælges fx som Nutriox Sx
B39: Molvægt | C39: 84.9947 | D39: (g/mol)
B40: Densitet af opløsning | C40: 1.317 | D40: (g/cm3)
C41: ='Trykledning beregning'!AB34*C27/1000/((14.0067)/C39) -> 6.462495871 | D41: kgNaNO3/d
C42: =C41/D38 -> 18.46427392 | D42: kg opløsning/d
C43: =C42/C40 -> 14.01994982 | D43: L opløsning/d

Sheet List data (hidden)
B5: Listenavn | D5: SPVtype
D6: Husspildevand | E6: 0.0015
D7: Typisk_blandet | E7: 0.0045
D8: Fødevareindustri | E8: 0.0085
D17: Pipe | E17: Di | F17: Godstykkelse (mindste) | I17: Data kommer fra rc-beton Eurorør
D18: 300 | E18: 0.3 | F18: 53
D19: 400 | E19: 0.4 | F19: 65
D20: 500 | E20: 0.5 | F20: 78
C21: Euro fodrør | D21: 600 | E21: 0.6 | F21: 102
C22: Euro fodrør | D22: 700 | E22: 0.7 | F22: 118
C23: Euro fodrør | D23: 800 | E23: 0.8 | F23: 133
C24: Euro fodrør | D24: 900 | E24: 0.9 | F24: 148
C25: Euro fodrør | D25: 1000 | E25: 1 | F25: 163
D26: Offerledning 300 | E26: 0.3 | F26: 74 | I26: Data kommer fra: http://www.evanet.dk/wp-content/uploads/2017/05/Svovlbrinte-og-offerledninger.pdf
D27: Offerledning 400 | E27: 0.4 | F27: 97
D28: Offerledning 500 | E28: 0.5 | F28: 120
D29: Offerledning 600 | E29: 0.6 | F29: 149

Sheet Ledningsprofil (hidden)
H13: Bund | I13: Vandspejl | J13: Top
G14: x | H14: Kote (m) | I14: Kote (m) | J14: Kote (m)
F15: Trykledning | G15: 0 | H15: ='Sulfiddannelse i trykledning'!C27 -> 0 | I15: =H15+'Sulfiddannelse i trykledning'!C23/1000 -> 0.17 | J15: =I15 -> 0.17
G16: =G15+'Sulfiddannelse i trykledning'!C24 -> 1200 | H16: =H15+'Sulfiddannelse i trykledning'!C26 -> 3 | I16: =H16+'Sulfiddannelse i trykledning'!C23/1000 -> 3.17 | J16: =I16 -> 3.17
F17: Gravitationsledning | G17: =G16 -> 1200 | H17: =H16 -> 3 | I17: =H17+Hydraulics_gravity!M51 -> 3.038 | J17: =H17+'Korrosion nedstrøms'!C13 -> 3.4
G18: ='Gravitationsledning beregning'!D1015+G17 -> 2200 | H18: =H17+('Korrosion nedstrøms'!$C$15*(Ledningsprofil!G18-G17)*-1) -> -2 | I18: =H18+Hydraulics_gravity!M51 -> -1.962 | J18: =H18+'Korrosion nedstrøms'!C13 -> -1.6

Sheet Trykledning beregning (hidden)
A1: Trykledning
C3: =AVERAGE(D31:D8670)*60*24 -> 249.9690934 | D3: m3/d | E3: <-- denne værdi er en beregnet kontrol
A4: Daily flow | C4: ='Sulfiddannelse i trykledning'!$C$9 -> 250 | D4: m3/d
A5: Average minute | C5: =Daily_flow/(24*60) -> 0.1736111111 | D5: m3/min | F5: Sulfide production | J5: Nitrate consumption
A7: Pumping station/wet well
A8: Volume | C8: ='Sulfiddannelse i trykledning'!C18 -> 3 | D8: m3 | F8: A/V | G8: =2*PipeDia/2/(PipeDia/2)^2 -> 23.52941176 | H8: 1/m | J8: WW | K8: =0.7*1.07^(Temp-20) -> 0.5340266484 | L8: gN/m3/h | M8: Figure 5.16 in sewer processes
A9: Pump capacity | C9: ='Sulfiddannelse i trykledning'!C19/60 -> 1 | D9: m3/min | F9: CODs | G9: ='Sulfiddannelse i trykledning'!C12 -> 230 | H9: g/m3 | J9: BIOFILM | K9: =0.04*1.03^(Temp-20)*A_V_ratio -> 0.8362231039 | L9: gN/m3/h | M9: Poulsen et al. 1997 (se Sewer Processes p. 206)
C10: =Flow*1000/60 -> 16.66666667 | D10: L/second | F10: a** | G10: =IF('Sulfiddannelse i trykledning'!$C$8="Husspildevand",0.0015,IF('Sulfiddannelse i trykledning'!$C$8="Typisk_blandet",0.0045,0.0085)) -> 0.0045 | J10: Total | K10: =SUM(K8:K9) -> 1.370249752 | L10: gN/m3/h
A11: Infiltration | C11: =1/(2*60*24) -> 0.0003472222222 | F11: Temp | G11: ='Sulfiddannelse i trykledning'!C11 -> 16 | H11: C
F12: Rate_a | G12: =IFERROR(rate_cst*(CODs-50)^0.5*1.03^(Temp-20),0) -> 0.05364137078 | H12: gS/m2/h
F13: Viskositet (m^2/s, 7C): | G13: 1.30698506e-06
F14: % H2S | G14: =1/((1/10)^7*10^'Sulfiddannelse i trykledning'!$C$13+1) -> 0.3868631798
A15: Pressure main | F15: Henry | G15: =10^(104.069-4423.11*(G11+273)^-1-36.6296*LOG(G11+273)+0.01387*(G11+273)) -> 427.4127627
A16: Pump operation | C16: =(SUM(L31:L8670)/2)/3 -> 249.5 | D16: minutes | G16: =(G14/(32*55.56))*G15*10^3 -> 93.00208136 | H16: ppm/(mg/L)
A17: Pump starts | C17: =(MAX(K31:K2911)+1) -> 63
A18: Pumped vol | C18: =C16*Flow -> 249.5 | D18: m3
A19: Length | C19: ='Sulfiddannelse i trykledning'!$C$24 -> 1200 | D19: m
A20: Diameter | C20: ='Sulfiddannelse i trykledning'!C23/1000 -> 0.17 | D20: m | F20: min dia | G20: 147 | H20: mm
A21: Area | C21: =PI()*(C20/2)^2 -> 0.02269800692 | D21: m2 | F21: max dia | G21: 230 | H21: mm
A22: Velocity | C22: =Flow/PipeArea -> 44.05673165 | D22: m/min | Q22: =AVERAGE(Q31:Q8670)*60*24 -> 249.9690934 | AG22: 00:01:00
C23: =C22/60 -> 0.7342788609 | D23: m/second
A24: Ruhed | C24: 0.002 | D24: m
A25: Reynolds tal | C25: =(C23*PipeDia/4)/$G$13 -> 23876.97652 | AH25: =SUM(AH31:AH54) -> 23.997 | AI25: =SUM(AI31:AI54) -> 1
A26: Friktionstal | C26: =0.341/(LN(C24/(14.8*PipeDia/4)+1.65/C25^0.9))^2 -> 0.01052086632
A27: Energigradient (friktion) | C27: =(C26*C23^2/(2*9.81*(PipeDia/4)))*C19 -> 8.163320848 | D27: m vandsøjle
A29: Time | C29: Relative flow | D29: Flow | E29: Volume | H29: Above deltaH | I29: Below 0 | J29: sum | M29: Transport distance | O29: Time | V29: Maks H2S ppm | W29: =W31*G16 -> 581.0437104 | X29: =IF(W29<50,"Lav",IF(W29>300,"Høj","Moderat")) -> Høj | AF29: Flowvariation | AJ29: Relative flow
A30: hh:mm | B30: (hel dage) | C30: Q/Qd | D30: m3/min | F30: Pump off | G30: Pump on | M30: m | O30: (hel dage) | AF30: Fra | AG30: Til | AH30: Faktor | AJ30: Q/Qd
A31: 1900-01-01 | B31: =A31-1 -> 0 | C31: 0.0002907866544 | D31: =Q31 -> 0.1449834007 | E31: 0 | J31: 0 | K31: 0 | L31: =IF(J31>=1,1,0) -> 0 | M31: =L31*Flow/PipeArea*1/2 -> 0 | O31: =B31 -> 0 | Q31: =VLOOKUP(B31,$AF$31:$AK$54,6,TRUE) -> 0.1449834007 | V31: Maks sulfid | W31: =MAX(W36:W84) -> 6.247642008 | AF31: 00:00:00 | AG31: 01:00:00 | AH31: ='Sulfiddannelse i trykledning'!C47 -> 0.835 | AI31: =AH31/Sumfaktor -> 0.03479601617 | AJ31: =AI31/(60*2) -> 0.0002899668014 | AK31: =AJ31*Daily_flow*2 -> 0.1449834007
A32: 1900-01-01T00:00:30 | B32: =A32-1 -> 0.0003472222222 | C32: 0.0002907866544 | D32: =Q32 -> 0.1449834007 | E32: =IF(J32=0,F32,G32) -> 0.07249170035 | F32: =E31+(D32/2) -> 0.07249170035 | G32: =E31+((D32-Flow)/2) -> -0.4275082996 | H32: =IF(E31>deltaV,1,0) -> 0 | I32: =IF(E31<0,-1,0) -> 0 | J32: =IF(E31>0,J31+SUM(H32:I32),0) -> 0 | K32: =IF(AND(E32<E31,E32<E33),K31+1,K31) -> 0 | L32: =IF(J32>=1,1,0) -> 0 | M32: 0 | N32: =SUM($M$31:M32) -> 0 | O32: 0.0003472222222 | Q32: 0.1449834007 | V32: Middel sulfid | W32: =AVERAGE(W36:W84) -> 3.550977178 | X32: Flow vægtet middel | Y32: =X84/S84 -> 3.318075738 | Z32: mg/L | AF32: 01:00:00 | AG32: 02:00:00 | AH32: ='Sulfiddannelse i trykledning'!C48 -> 0.702 | AI32: 0.02925365671 | AJ32: =AI32/(60*2) -> 0.0002437804726 | AK32: 0.1218902363
A33: 1900-01-01T00:01:00 | B33: =A33-1 -> 0.0006944444444 | C33: 0.0002907866544 | D33: 0.1449834007 | E33: =IF(J33=0,F33,G33) -> 0.1449834007 | F33: =E32+(D33/2) -> 0.1449834007 | G33: =E32+((D33-Flow)/2) -> -0.3550165993 | H33: 0 | I33: =IF(E32<0,-1,0) -> 0 | J33: =IF(E32>0,J32+SUM(H33:I33),0) -> 0 | K33: 0 | L33: 0 | M33: 0 | N33: =SUM($M$31:M33) -> 0 | O33: 0.0006944444444 | Q33: 0.1449834007 | S33: Start | T33: End | Y33: =SUM(Z36:Z84) -> 817.4745094 | Z33: gS/d | AA33: =Y33/32 -> 25.54607842 | AB33: molS/d | AF33: 02:00:00 | AG33: 03:00:00 | AH33: ='Sulfiddannelse i trykledning'!C49 -> 0.645 | AI33: 0.02687835979 | AJ33: 0.0002239863316 | AK33: 0.1119931658
A34: 1900-01-01T00:01:30 | B34: 0.001041666667 | C34: 0.0002907866544 | D34: 0.1449834007 | E34: 0.2174751011 | F34: 0.2174751011 | G34: -0.2825248989 | H34: 0 | I34: 0 | J34: 0 | K34: 0 | L34: 0 | M34: 0 | N34: =SUM($M$31:M34) -> 0 | O34: 0.001041666667 | Q34: 0.1449834007 | R34: Time in | S34: Dist | T34: Dist | U34: Time out | V34: Residence time | W34: Sulfide | Y34: Flow | Z34: Mass flow | AA34: Nitrate | AB34: =SUM(AA36:AA84) -> 887.489072 | AC34: gN/d | AF34: 03:00:00 | AG34: 04:00:00 | AH34: ='Sulfiddannelse i trykledning'!C50 -> 0.414 | AI34: 0.01725215652 | AJ34: 0.000143767971 | AK34: 0.0718839855
A35: 1900-01-01T00:02:00 | B35: 0.001388888889 | C35: 0.0002907866544 | D35: 0.1449834007 | E35: 0.2899668014 | F35: 0.2899668014 | G35: -0.2100331986 | H35: 0 | I35: 0 | J35: 0 | K35: 0 | L35: 0 | M35: 0 | N35: =SUM($M$31:M35) -> 0 | O35: 0.001388888889 | Q35: 0.1449834007 | R35: dd | S35: m | T35: m | U35: dd | V35: dd | W35: (g/m3) | Y35: (m3) | Z35: (g S(-II)) | AA35: (gN) | AB35: =AB34/SUM(Y36:Y84) -> 3.617005873 | AC35: gN/m3 | AF35: 04:00:00 | AG35: 05:00:00 | AH35: ='Sulfiddannelse i trykledning'!C51 -> 0.391 | AI35: 0.01629370338 | AJ35: 0.0001357808615 | AK35: 0.06789043075
A36: 1900-01-01T00:02:30 | B36: 0.001736111111 | C36: 0.0002907866544 | D36: 0.1449834007 | E36: 0.3624585018 | F36: 0.3624585018 | G36: -0.1375414982 | H36: 0 | I36: 0 | J36: 0 | K36: 0 | L36: 0 | M36: 0 | N36: =SUM($M$31:M36) -> 0 | O36: 0.001736111111 | Q36: 0.1449834007 | R36: 0 | S36: =VLOOKUP(R36,$B$31:$N$17311,13) -> 0 | T36: =$C$19+S36 -> 1200 | U36: =VLOOKUP(T36,$N$31:$O$27004,2) -> 0.1829861111 | V36: =U36-R36 -> 0.1829861111 | W36: =IF(24*V36*A_V_ratio*Rate_a<'Sulfiddannelse i trykledning'!$C$14,24*V36*A_V_ratio*Rate_a,'Sulfiddannelse i trykledning'!$C$14) -> 5.542941647 | Y36: =VLOOKUP(R36,$B$31:$D$8670,3)*60*24*0.02 -> 4.17552194 | Z36: =Y36*W36 -> 23.14467446 | AA36: =Y36*V36*24*N_rate -> 25.12695555 | AF36: 05:00:00 | AG36: 06:00:00 | AH36: ='Sulfiddannelse i trykledning'!C52 -> 0.466 | AI36: 0.01941909405 | AJ36: 0.0001618257838 | AK36: 0.08091289189
A37: 1900-01-01T00:03:00 | B37: 0.002083333333 | C37: 0.0002907866544 | D37: 0.1449834007 | E37: 0.4349502021 | F37: 0.4349502021 | G37: -0.06504979789 | H37: 0 | I37: 0 | J37: 0 | K37: 0 | L37: 0 | M37: 0 | N37: =SUM($M$31:M37) -> 0 | O37: 0.002083333333 | Q37: 0.1449834007 | R37: =R36+1/48 -> 0.02083333333 | S37: =VLOOKUP(R37,$B$31:$N$17311,13) -> 176.2269266 | T37: =$C$19+S37 -> 1376.226927 | U37: =VLOOKUP(T37,$N$31:$O$27004,2) -> 0.2177083333 | V37: =U37-R37 -> 0.196875 | W37: =IF(24*V37*A_V_ratio*Rate_a<'Sulfiddannelse i trykledning'!$C$14,24*V37*A_V_ratio*Rate_a,'Sulfiddannelse i trykledning'!$C$14) -> 5.963658281 | X37: =W37*(S37-S36)+X36 -> 1050.95717 | Y37: =VLOOKUP(R37,$B$31:$D$8670,3)*60*24*0.02 -> 4.17552194 | Z37: =Y37*W37 -> 24.901386 | AA37: =Y37*V37*24*N_rate -> 27.03412485 | AF37: 06:00:00 | AG37: 07:00:00 | AH37: ='Sulfiddannelse i trykledning'!C53 -> 0.881 | AI37: 0.03671292245 | AJ37: 0.0003059410204 | AK37: 0.1529705102
A38: 1900-01-01T00:03:30 | B38: 0.002430555556 | C38: 0.0002907866544 | D38: 0.1449834007 | E38: 0.5074419025 | F38: 0.5074419025 | G38: 0.00744190246 | H38: 0 | I38: 0 | J38: 0 | K38: 0 | L38: 0 | M38: 0 | N38: =SUM($M$31:M38) -> 0 | O38: 0.002430555556 | Q38: 0.1449834007 | R38: =R37+1/48 -> 0.04166666667 | S38: 352.4538532 | T38: 1552.453853 | U38: 0.2479166667 | V38: 0.20625 | W38: =IF(24*V38*A_V_ratio*Rate_a<'Sulfiddannelse i trykledning'!$C$14,24*V38*A_V_ratio*Rate_a,'Sulfiddannelse i trykledning'!$C$14) -> 6.247642008 | X38: =W38*(S38-S37)+X37 -> 2151.95992 | Y38: 4.17552194 | Z38: 26.08716628 | AA38: =Y38*V38*24*N_rate -> 28.32146413 | AF38: 07:00:00 | AG38: 08:00:00 | AH38: ='Sulfiddannelse i trykledning'!C54 -> 1.364 | AI38: 0.05684043839 | AJ38: 0.0004736703199 | AK38: 0.23683516
A39: 1900-01-01T00:04:00 | B39: 0.002777777778 | C39: 0.0002907866544 | D39: 0.1449834007 | E39: 0.5799336028 | F39: 0.5799336028 | G39: 0.07993360281 | H39: 0 | I39: 0 | J39: 0 | K39: 0 | L39: 0 | M39: 0 | N39: =SUM($M$31:M39) -> 0 | O39: 0.002777777778 | Q39: 0.1449834007 | R39: 0.0625 | S39: 506.652414 | T39: 1706.652414 | U39: 0.265625 | V39: =U39-R39 -> 0.203125 | W39: =IF(24*V39*A_V_ratio*Rate_a<'Sulfiddannelse i trykledning'!$C$14,24*V39*A_V_ratio*Rate_a,'Sulfiddannelse i trykledning'!$C$14) -> 6.152980766 | X39: 3100.740698 | Y39: 3.510438805 | Z39: 21.59966245 | AA39: =Y39*V39*24*N_rate -> 23.44961728 | AF39: 08:00:00 | AG39: 09:00:00 | AH39: ='Sulfiddannelse i trykledning'!C55 -> 1.456 | AI39: 0.06067425095 | AJ39: 0.0005056187579 | AK39: 0.252809379
A40: 1900-01-01T00:04:30 | B40: 0.003125 | C40: 0.0002907866544 | D40: 0.1449834007 | E40: 0.6524253032 | F40: 0.6524253032 | G40: 0.1524253032 | H40: 0 | I40: 0 | J40: 0 | K40: 0 | L40: 0 | M40: 0 | N40: =SUM($M$31:M40) -> 0 | O40: 0.003125 | Q40: 0.1449834007 | R40: 0.08333333333 | S40: 660.8509748 | T40: 1860.850975 | U40: 0.2833333333 | V40: 0.2 | W40: =IF(24*V40*A_V_ratio*Rate_a<'Sulfiddannelse i trykledning'!$C$14,24*V40*A_V_ratio*Rate_a,'Sulfiddannelse i trykledning'!$C$14) -> 6.058319523 | X40: 4034.92485 | Y40: 3.510438805 | Z40: 21.26735995 | AA40: 23.08885393 | AF40: 09:00:00 | AG40: 10:00:00 | AH40: ='Sulfiddannelse i trykledning'!C56 -> 1.232 | AI40: 0.0513397508 | AJ40: 0.0004278312567 | AK40: 0.2139156283
A41: 1900-01-01T00:05:00 | B41: 0.003472222222 | C41: 0.0002907866544 | D41: 0.1449834007 | E41: 0.7249170035 | F41: 0.7249170035 | G41: 0.2249170035 | H41: 0 | I41: 0 | J41: 0 | K41: 0 | L41: 0 | M41: 0 | N41: =SUM($M$31:M41) -> 0 | O41: 0.003472222222 | Q41: 0.1449834007 | R41: 0.1041666667 | S41: 815.0495356 | T41: 2015.049536 | U41: 0.2982638889 | V41: 0.1940972222 | W41: =IF(24*V41*A_V_ratio*Rate_a<'Sulfiddannelse i trykledning'!$C$14,24*V41*A_V_ratio*Rate_a,'Sulfiddannelse i trykledning'!$C$14) -> 5.879514954 | X41: 4941.537594 | Y41: 3.225403175 | Z41: 18.9638062 | AA41: 20.58800681 | AF41: 10:00:00 | AG41: 11:00:00 | AH41: ='Sulfiddannelse i trykledning'!C57 -> 1.099 | AI41: 0.04579739134 | AJ41: 0.0003816449278 | AK41: 0.1908224639
A42: 1900-01-01T00:05:30 | B42: 0.003819444444 | C42: 0.0002907866544 | D42: 0.1449834007 | E42: 0.7974087039 | F42: 0.7974087039 | G42: 0.2974087039 | H42: 0 | I42: 0 | J42: =IF(E41>0,J41+SUM(H42:I42),0) -> 0 | K42: 0 | L42: 0 | M42: 0 | N42: =SUM($M$31:M42) -> 0 | O42: 0.003819444444 | Q42: 0.1449834007 | R42: 0.125 | S42: 969.2480963 | T42: 2169.248096 | U42: 0.3107638889 | V42: 0.1857638889 | W42: =IF(24*V42*A_V_ratio*Rate_a<'Sulfiddannelse i trykledning'!$C$14,24*V42*A_V_ratio*Rate_a,'Sulfiddannelse i trykledning'!$C$14) -> 5.627084974 | X42: 5809.225998 | Y42: 3.225403175 | Z42: 18.14961774 | AA42: 19.70408523 | AF42: 11:00:00 | AG42: 12:00:00 | AH42: ='Sulfiddannelse i trykledning'!C58 -> 1.076 | AI42: 0.0448389382 | AJ42: 0.0003736578183 | AK42: 0.1868289092
A43: 1900-01-01T00:06:00 | B43: 0.004166666667 | C43: 0.0002907866544 | D43: 0.1449834007 | E43: 0.8699004042 | F43: 0.8699004042 | G43: 0.3699004042 | H43: 0 | I43: 0 | J43: 0 | K43: 0 | L43: 0 | M43: 0 | N43: =SUM($M$31:M43) -> 0 | O43: 0.004166666667 | Q43: 0.1449834007 | R43: 0.1458333333 | S43: 969.2480963 | T43: 2169.248096 | U43: 0.3107638889 | V43: 0.1649305556 | W43: =IF(24*V43*A_V_ratio*Rate_a<'Sulfiddannelse i trykledning'!$C$14,24*V43*A_V_ratio*Rate_a,'Sulfiddannelse i trykledning'!$C$14) -> 4.996010024 | X43: 5809.225998 | Y43: 2.070258782 | Z43: 10.34303363 | AA43: 11.22888752 | AF43: 12:00:00 | AG43: 13:00:00 | AH43: ='Sulfiddannelse i trykledning'!C59 -> 1.047 | AI43: 0.04363045381 | AJ43: 0.0003635871151 | AK43: 0.1817935575
A44: 1900-01-01T00:06:30 | B44: 0.004513888889 | C44: 0.0002907866544 | D44: 0.1449834007 | E44: 0.9423921046 | F44: 0.9423921046 | G44: 0.4423921046 | H44: 0 | I44: 0 | J44: 0 | K44: 0 | L44: 0 | M44: 0 | N44: =SUM($M$31:M44) -> 0 | O44: 0.004513888889 | Q44: 0.1449834007 | R44: 0.1666666667 | S44: 1123.446657 | T44: 2323.446657 | U44: 0.3131944444 | V44: 0.1465277778 | W44: =IF(24*V44*A_V_ratio*Rate_a<'Sulfiddannelse i trykledning'!$C$14,24*V44*A_V_ratio*Rate_a,'Sulfiddannelse i trykledning'!$C$14) -> 4.438560484 | X44: 6493.645637 | Y44: 2.070258782 | Z44: 9.188968823 | AA44: 9.97598007 | AF44: 13:00:00 | AG44: 14:00:00 | AH44: ='Sulfiddannelse i trykledning'!C60 -> 1.099 | AI44: 0.04579739134 | AJ44: 0.0003816449278 | AK44: 0.1908224639
A45: 1900-01-01T00:07:00 | B45: 0.004861111111 | C45: 0.0002907866544 | D45: 0.1449834007 | E45: 1.014883805 | F45: 1.014883805 | G45: 0.5148838049 | H45: 0 | I45: 0 | J45: 0 | K45: 0 | L45: 0 | M45: 0 | N45: =SUM($M$31:M45) -> 0 | O45: 0.004861111111 | Q45: 0.1449834007 | R45: 0.1875 | S45: 1277.645218 | T45: 2477.645218 | U45: 0.3256944444 | V45: 0.1381944444 | W45: =IF(24*V45*A_V_ratio*Rate_a<'Sulfiddannelse i trykledning'!$C$14,24*V45*A_V_ratio*Rate_a,'Sulfiddannelse i trykledning'!$C$14) -> 4.186130504 | X45: 7139.140936 | Y45: 1.955244406 | Z45: 8.184908249 | AA45: 8.885924322 | AF45: 14:00:00 | AG45: 15:00:00 | AH45: ='Sulfiddannelse i trykledning'!C61 -> 1.053 | AI45: 0.04388048506 | AJ45: 0.0003656707088 | AK45: 0.1828353544
A46: 1900-01-01T00:07:30 | B46: 0.005208333333 | C46: 0.0002907866544 | D46: 0.1449834007 | E46: 1.087375505 | F46: 1.087375505 | G46: 0.5873755053 | H46: 0 | I46: 0 | J46: 0 | K46: 0 | L46: 0 | M46: 0 | N46: =SUM($M$31:M46) -> 0 | O46: 0.005208333333 | Q46: 0.1449834007 | R46: 0.2083333333 | S46: 1277.645218 | T46: 2477.645218 | U46: 0.3256944444 | V46: 0.1173611111 | W46: =IF(24*V46*A_V_ratio*Rate_a<'Sulfiddannelse i trykledning'!$C$14,24*V46*A_V_ratio*Rate_a,'Sulfiddannelse i trykledning'!$C$14) -> 3.555055554 | X46: 7139.140936 | Y46: 2.330291286 | Z46: 8.284314979 | AA46: 8.99384498 | AF46: 15:00:00 | AG46: 16:00:00 | AH46: ='Sulfiddannelse i trykledning'!C62 -> 0.967 | AI46: 0.04029670375 | AJ46: 0.0003358058646 | AK46: 0.1679029323
A47: 1900-01-01T00:08:00 | B47: 0.005555555556 | C47: 0.0002907866544 | D47: 0.1449834007 | E47: 1.159867206 | F47: 1.159867206 | G47: 0.6598672056 | H47: 0 | I47: 0 | J47: 0 | K47: 0 | L47: 0 | M47: 0 | N47: =SUM($M$31:M47) -> 0 | O47: 0.005555555556 | Q47: 0.1449834007 | R47: 0.2291666667 | S47: 1431.843779 | T47: 2631.843779 | U47: 0.3378472222 | V47: 0.1086805556 | W47: =IF(24*V47*A_V_ratio*Rate_a<'Sulfiddannelse i trykledning'!$C$14,24*V47*A_V_ratio*Rate_a,'Sulfiddannelse i trykledning'!$C$14) -> 3.292107658 | X47: 7646.779198 | Y47: 2.330291286 | Z47: 7.671569788 | AA47: 8.32861976 | AF47: 16:00:00 | AG47: 17:00:00 | AH47: ='Sulfiddannelse i trykledning'!C63 -> 0.99 | AI47: 0.04125515689 | AJ47: 0.0003437929741 | AK47: 0.1718964871
A48: 1900-01-01T00:08:30 | B48: 0.005902777778 | C48: 0.0002907866544 | D48: 0.1449834007 | E48: 1.232358906 | F48: 1.232358906 | G48: 0.732358906 | H48: 0 | I48: 0 | J48: 0 | K48: 0 | L48: 0 | M48: 0 | N48: =SUM($M$31:M48) -> 0 | O48: 0.005902777778 | Q48: 0.1449834007 | R48: 0.25 | S48: 1586.042339 | T48: 2786.042339 | U48: 0.3496527778 | V48: 0.09965277778 | W48: =IF(24*V48*A_V_ratio*Rate_a<'Sulfiddannelse i trykledning'!$C$14,24*V48*A_V_ratio*Rate_a,'Sulfiddannelse i trykledning'!$C$14) -> 3.018641846 | X48: 8112.249426 | Y48: 4.405550694 | Z48: 13.29877968 | AA48: 14.43778552 | AF48: 17:00:00 | AG48: 18:00:00 | AH48: ='Sulfiddannelse i trykledning'!C64 -> 1.168 | AI48: 0.04867275076 | AJ48: 0.0004056062563 | AK48: 0.2028031282
A49: 1900-01-01T00:09:00 | B49: 0.00625 | C49: 0.0002907866544 | D49: 0.1449834007 | E49: 1.304850606 | F49: 1.304850606 | G49: 0.8048506063 | H49: 0 | I49: 0 | J49: 0 | K49: 0 | L49: 0 | M49: 0 | N49: =SUM($M$31:M49) -> 0 | O49: 0.00625 | Q49: 0.1449834007 | R49: 0.2708333333 | S49: 1762.269266 | T49: 2962.269266 | U49: 0.3618055556 | V49: 0.09097222222 | W49: =IF(24*V49*A_V_ratio*Rate_a<'Sulfiddannelse i trykledning'!$C$14,24*V49*A_V_ratio*Rate_a,'Sulfiddannelse i trykledning'!$C$14) -> 2.75569395 | X49: 8597.876902 | Y49: 4.405550694 | Z49: 12.14034939 | AA49: 13.1801387 | AF49: 18:00:00 | AG49: 19:00:00 | AH49: ='Sulfiddannelse i trykledning'!C65 -> 1.341 | AI49: 0.05588198525 | AJ49: 0.0004656832104 | AK49: 0.2328416052
A50: 1900-01-01T00:09:30 | B50: 0.006597222222 | C50: 0.0002907866544 | D50: 0.1449834007 | E50: 1.377342307 | F50: 1.377342307 | G50: 0.8773423067 | H50: 0 | I50: 0 | J50: 0 | K50: 0 | L50: 0 | M50: 0 | N50: =SUM($M$31:M50) -> 0 | O50: 0.006597222222 | Q50: 0.1449834007 | R50: 0.2916666667 | S50: 1938.496193 | T50: 3138.496193 | U50: 0.3736111111 | V50: 0.08194444444 | W50: =IF(24*V50*A_V_ratio*Rate_a<'Sulfiddannelse i trykledning'!$C$14,24*V50*A_V_ratio*Rate_a,'Sulfiddannelse i trykledning'!$C$14) -> 2.482228138 | X50: 9035.312338 | Y50: 4.405550694 | Z50: 10.9355819 | AA50: 11.872186 | AF50: 19:00:00 | AG50: 20:00:00 | AH50: ='Sulfiddannelse i trykledning'!C66 -> 1.496 | AI50: 0.06234112597 | AJ50: 0.0005195093831 | AK50: 0.2597546916
A51: 1900-01-01T00:10:00 | B51: 0.006944444444 | C51: 0.0002907866544 | D51: 0.1449834007 | E51: 1.449834007 | F51: 1.449834007 | G51: 0.949834007 | H51: 0 | I51: 0 | J51: 0 | K51: 0 | L51: 0 | M51: 0 | N51: =SUM($M$31:M51) -> 0 | O51: 0.006944444444 | Q51: 0.1449834007 | R51: 0.3125 | S51: 2246.893314 | T51: 3446.893314 | U51: 0.3885416667 | V51: 0.07604166667 | W51: =IF(24*V51*A_V_ratio*Rate_a<'Sulfiddannelse i trykledning'!$C$14,24*V51*A_V_ratio*Rate_a,'Sulfiddannelse i trykledning'!$C$14) -> 2.303423569 | X51: 9745.681536 | Y51: 6.820852607 | Z51: 15.71131265 | AA51: 17.05694566 | AF51: 20:00:00 | AG51: 21:00:00 | AH51: ='Sulfiddannelse i trykledning'!C67 -> 1.312 | AI51: 0.05467350085 | AJ51: 0.0004556125071 | AK51: 0.2278062536
A52: 1900-01-01T00:10:30 | B52: 0.007291666667 | C52: 0.0002907866544 | D52: 0.1449834007 | E52: 1.522325707 | F52: 1.522325707 | G52: 1.022325707 | H52: 0 | I52: 0 | J52: 0 | K52: 0 | L52: 0 | M52: 0 | N52: =SUM($M$31:M52) -> 0 | O52: 0.007291666667 | Q52: 0.1449834007 | R52: 0.3333333333 | S52: 2533.26207 | T52: 3733.26207 | U52: 0.4135416667 | V52: 0.08020833333 | W52: =IF(24*V52*A_V_ratio*Rate_a<'Sulfiddannelse i trykledning'!$C$14,24*V52*A_V_ratio*Rate_a,'Sulfiddannelse i trykledning'!$C$14) -> 2.429638559 | X52: 10441.45411 | Y52: 6.820852607 | Z52: 16.5722065 | AA52: 17.99157282 | AF52: 21:00:00 | AG52: 22:00:00 | AH52: ='Sulfiddannelse i trykledning'!C68 -> 1.099 | AI52: 0.04579739134 | AJ52: 0.0003816449278 | AK52: 0.1908224639
A53: 1900-01-01T00:11:00 | B53: 0.007638888889 | C53: 0.0002907866544 | D53: 0.1449834007 | E53: 1.594817408 | F53: 1.594817408 | G53: 1.094817408 | H53: 0 | I53: 0 | J53: 0 | K53: 0 | L53: 0 | M53: 0 | N53: =SUM($M$31:M53) -> 0 | O53: 0.007638888889 | Q53: 0.1449834007 | R53: 0.3541666667 | S53: 2929.772655 | T53: 4129.772655 | U53: 0.4427083333 | V53: 0.08854166667 | W53: =IF(24*V53*A_V_ratio*Rate_a<'Sulfiddannelse i trykledning'!$C$14,24*V53*A_V_ratio*Rate_a,'Sulfiddannelse i trykledning'!$C$14) -> 2.682068539 | X53: 11504.92267 | Y53: 7.280910114 | Z53: 19.52789995 | AA53: 21.20041372 | AF53: 22:00:00 | AG53: 23:00:00 | AH53: ='Sulfiddannelse i trykledning'!C69 -> 0.955 | AI53: 0.03979664125 | AJ53: 0.0003316386771 | AK53: 0.1658193385
A54: 1900-01-01T00:11:30 | B54: 0.007986111111 | C54: 0.0002907866544 | D54: 0.1449834007 | E54: 1.667309108 | F54: 1.667309108 | G54: 1.167309108 | H54: 0 | I54: 0 | J54: 0 | K54: 0 | L54: 0 | M54: 0 | N54: =SUM($M$31:M54) -> 0 | O54: 0.007986111111 | Q54: 0.1449834007 | R54: 0.375 | S54: 3194.113045 | T54: 4394.113045 | U54: 0.4708333333 | V54: 0.09583333333 | W54: =IF(24*V54*A_V_ratio*Rate_a<'Sulfiddannelse i trykledning'!$C$14,24*V54*A_V_ratio*Rate_a,'Sulfiddannelse i trykledning'!$C$14) -> 2.902944772 | X54: 12272.28822 | Y54: 7.280910114 | Z54: 21.13607995 | AA54: 22.94633014 | AF54: 23:00:00 | AG54: 1 | AH54: ='Sulfiddannelse i trykledning'!C70 -> 0.909 | AI54: 0.03787973497 | AJ54: 0.0003156644581 | AK54: 0.157832229
A55: 1900-01-01T00:12:00 | B55: 0.008333333333 | C55: 0.0002907866544 | D55: 0.1449834007 | E55: 1.739800808 | F55: 1.739800808 | G55: 1.239800808 | H55: 0 | I55: 0 | J55: 0 | K55: 0 | L55: 0 | M55: 0 | N55: =SUM($M$31:M55) -> 0 | O55: 0.008333333333 | Q55: 0.1449834007 | R55: 0.3958333333 | S55: 3480.4818 | T55: 4680.4818 | U55: 0.4871527778 | V55: 0.09131944444 | W55: =IF(24*V55*A_V_ratio*Rate_a<'Sulfiddannelse i trykledning'!$C$14,24*V55*A_V_ratio*Rate_a,'Sulfiddannelse i trykledning'!$C$14) -> 2.766211866 | X55: 13064.44488 | Y55: 6.160770096 | Z55: 17.04199534 | AA55: 18.50159786
A56: 1900-01-01T00:12:30 | B56: 0.008680555556 | C56: 0.0002907866544 | D56: 0.1449834007 | E56: 1.812292509 | F56: 1.812292509 | G56: 1.312292509 | H56: 0 | I56: 0 | J56: 0 | K56: 0 | L56: 0 | M56: 0 | N56: =SUM($M$31:M56) -> 0 | O56: 0.008680555556 | Q56: 0.1449834007 | R56: 0.4166666667 | S56: 3832.935654 | T56: 5032.935654 | U56: 0.5173611111 | V56: 0.1006944444 | W56: =IF(24*V56*A_V_ratio*Rate_a<'Sulfiddannelse i trykledning'!$C$14,24*V56*A_V_ratio*Rate_a,'Sulfiddannelse i trykledning'!$C$14) -> 3.050195593 | X56: 14139.49806 | Y56: 6.160770096 | Z56: 18.7915538 | AA56: 20.40100144
A57: 1900-01-01T00:13:00 | B57: 0.009027777778 | C57: 0.0002907866544 | D57: 0.1449834007 | E57: 1.884784209 | F57: 1.884784209 | G57: 1.384784209 | H57: 0 | I57: 0 | J57: 0 | K57: 0 | L57: 0 | M57: 0 | N57: =SUM($M$31:M57) -> 0 | O57: 0.009027777778 | Q57: 0.1449834007 | R57: 0.4375 | S57: 4009.16258 | T57: 5209.16258 | U57: 0.5326388889 | V57: 0.09513888889 | W57: =IF(24*V57*A_V_ratio*Rate_a<'Sulfiddannelse i trykledning'!$C$14,24*V57*A_V_ratio*Rate_a,'Sulfiddannelse i trykledning'!$C$14) -> 2.88190894 | X57: 14647.36802 | Y57: 5.495686961 | Z57: 15.83806938 | AA57: 17.19455878
A58: 1900-01-01T00:13:30 | B58: 0.009375 | C58: 0.0002907866544 | D58: 0.1449834007 | E58: =IF(OR(J58=0,I58=-1),F58,G58) -> 1.957275909 | F58: 1.957275909 | G58: 1.457275909 | H58: 0 | I58: 0 | J58: 0 | K58: 0 | L58: 0 | M58: 0 | N58: =SUM($M$31:M58) -> 0 | O58: 0.009375 | Q58: 0.1449834007 | R58: 0.4583333333 | S58: 4339.588068 | T58: 5539.588068 | U58: 0.5621527778 | V58: 0.1038194444 | W58: =IF(24*V58*A_V_ratio*Rate_a<'Sulfiddannelse i trykledning'!$C$14,24*V58*A_V_ratio*Rate_a,'Sulfiddannelse i trykledning'!$C$14) -> 3.144856836 | X58: 15686.50887 | Y58: 5.495686961 | Z58: 17.28314871 | AA58: 18.76340538
A59: 1900-01-01T00:14:00 | B59: 0.009722222222 | C59: 0.0002907866544 | D59: 0.1449834007 | E59: 2.02976761 | F59: 2.02976761 | G59: 1.52976761 | H59: 0 | I59: =IF(E58<0,-1,0) -> 0 | J59: =IF(E58>0,J58+SUM(H59:I59),0) -> 0 | K59: 0 | L59: 0 | M59: 0 | N59: =SUM($M$31:M59) -> 0 | O59: 0.009722222222 | Q59: 0.1449834007 | R59: 0.4791666667 | S59: 4537.84336 | T59: 5737.84336 | U59: 0.5770833333 | V59: =U59-R59 -> 0.09791666667 | W59: =IF(24*V59*A_V_ratio*Rate_a<'Sulfiddannelse i trykledning'!$C$14,24*V59*A_V_ratio*Rate_a,'Sulfiddannelse i trykledning'!$C$14) -> 2.966052267 | X59: 16274.54443 | Y59: 5.380672584 | Z59: 15.95935611 | AA59: 17.3262334
A60: 1900-01-01T00:14:30 | B60: 0.01006944444 | C60: 0.0002907866544 | D60: 0.1449834007 | E60: 2.10225931 | F60: 2.10225931 | G60: 1.60225931 | H60: 0 | I60: =IF(E59<0,-1,0) -> 0 | J60: =IF(E59>0,J59+SUM(H60:I60),0) -> 0 | K60: 0 | L60: 0 | M60: 0 | N60: =SUM($M$31:M60) -> 0 | O60: 0.01006944444 | Q60: 0.1449834007 | R60: 0.5 | S60: 4714.070287 | T60: 5914.070287 | U60: 0.5916666667 | V60: 0.09166666667 | W60: =IF(24*V60*A_V_ratio*Rate_a<'Sulfiddannelse i trykledning'!$C$14,24*V60*A_V_ratio*Rate_a,'Sulfiddannelse i trykledning'!$C$14) -> 2.776729782 | X60: 16763.87899 | Y60: 5.380672584 | Z60: 14.94067381 | AA60: 16.22030361
A61: 1900-01-01T00:15:00 | B61: 0.01041666667 | C61: 0.0002907866544 | D61: 0.1449834007 | E61: 2.174751011 | F61: 2.174751011 | G61: 1.674751011 | H61: 0 | I61: 0 | J61: 0 | K61: 0 | L61: 0 | M61: 0 | N61: =SUM($M$31:M61) -> 0 | O61: 0.01041666667 | Q61: 0.1449834007 | R61: 0.5208333333 | S61: 5066.52414 | T61: 6266.52414 | U61: 0.6222222222 | V61: 0.1013888889 | W61: =IF(24*V61*A_V_ratio*Rate_a<'Sulfiddannelse i trykledning'!$C$14,24*V61*A_V_ratio*Rate_a,'Sulfiddannelse i trykledning'!$C$14) -> 3.071231425 | X61: 17846.34634 | Y61: 5.235654457 | Z61: 16.0799065 | AA61: 17.45710861
A62: 1900-01-01T00:15:30 | B62: 0.01076388889 | C62: 0.0002907866544 | D62: 0.1449834007 | E62: 2.247242711 | F62: 2.247242711 | G62: 1.747242711 | H62: 0 | I62: =IF(E61<0,-1,0) -> 0 | J62: 0 | K62: 0 | L62: 0 | M62: 0 | N62: =SUM($M$31:M62) -> 0 | O62: 0.01076388889 | Q62: 0.1449834007 | R62: 0.5416666667 | S62: 5242.751067 | T62: 6442.751067 | U62: 0.6381944444 | V62: 0.09652777778 | W62: =IF(24*V62*A_V_ratio*Rate_a<'Sulfiddannelse i trykledning'!$C$14,24*V62*A_V_ratio*Rate_a,'Sulfiddannelse i trykledning'!$C$14) -> 2.923980603 | X62: 18361.63045 | Y62: 5.235654457 | Z62: 15.30895208 | AA62: 16.62012395
A63: 1900-01-01T00:16:00 | B63: 0.01111111111 | C63: 0.0002907866544 | D63: 0.1449834007 | E63: 2.319734411 | F63: 2.319734411 | G63: 1.819734411 | H63: 0 | I63: 0 | J63: 0 | K63: 0 | L63: 0 | M63: 0 | N63: =SUM($M$31:M63) -> 0 | O63: 0.01111111111 | Q63: 0.1449834007 | R63: 0.5625 | S63: 5529.119822 | T63: 6729.119822 | U63: 0.6701388889 | V63: =U63-R63 -> 0.1076388889 | W63: =IF(24*V63*A_V_ratio*Rate_a<'Sulfiddannelse i trykledning'!$C$14,24*V63*A_V_ratio*Rate_a,'Sulfiddannelse i trykledning'!$C$14) -> 3.26055391 | X63: 19295.35122 | Y63: 5.495686961 | Z63: 17.91898361 | AA63: 19.45369788
A64: 1900-01-01T00:16:30 | B64: 0.01145833333 | C64: 0.0002907866544 | D64: 0.1449834007 | E64: 2.392226112 | F64: 2.392226112 | G64: 1.892226112 | H64: 0 | I64: 0 | J64: 0 | K64: 0 | L64: 0 | M64: 0 | N64: =SUM($M$31:M64) -> 0 | O64: 0.01145833333 | Q64: 0.1449834007 | R64: 0.5833333333 | S64: 5771.431846 | T64: 6971.431846 | U64: 0.6875 | V64: 0.1041666667 | W64: =IF(24*V64*A_V_ratio*Rate_a<'Sulfiddannelse i trykledning'!$C$14,24*V64*A_V_ratio*Rate_a,'Sulfiddannelse i trykledning'!$C$14) -> 3.155374752 | X64: 20059.93646 | Y64: 5.495686961 | Z64: 17.34095188 | AA64: 18.82615924
A65: 1900-01-01T00:17:00 | B65: 0.01180555556 | C65: 0.0002907866544 | D65: 0.1449834007 | E65: 2.464717812 | F65: 2.464717812 | G65: 1.964717812 | H65: 0 | I65: 0 | J65: 0 | K65: 0 | L65: 0 | M65: 0 | N65: =SUM($M$31:M65) -> 0 | O65: 0.01180555556 | Q65: 0.1449834007 | R65: 0.6041666667 | S65: 5947.658773 | T65: 7147.658773 | U65: 0.7034722222 | V65: 0.09930555556 | W65: =IF(24*V65*A_V_ratio*Rate_a<'Sulfiddannelse i trykledning'!$C$14,24*V65*A_V_ratio*Rate_a,'Sulfiddannelse i trykledning'!$C$14) -> 3.00812393 | X65: 20590.0489 | Y65: 5.265658207 | Z65: 15.83975246 | AA65: 17.196386
A66: 1900-01-01T00:17:30 | B66: 0.01215277778 | C66: 0.0002907866544 | D66: 0.1449834007 | E66: 2.537209512 | F66: 2.537209512 | G66: 2.037209512 | H66: 0 | I66: 0 | J66: 0 | K66: 0 | L66: 0 | M66: 0 | N66: =SUM($M$31:M66) -> 0 | O66: 0.01215277778 | Q66: 0.1449834007 | R66: 0.625 | S66: 6300.112626 | T66: 7500.112626 | U66: 0.7319444444 | V66: 0.1069444444 | W66: =IF(24*V66*A_V_ratio*Rate_a<'Sulfiddannelse i trykledning'!$C$14,24*V66*A_V_ratio*Rate_a,'Sulfiddannelse i trykledning'!$C$14) -> 3.239518078 | X66: 21731.82953 | Y66: 4.835604451 | Z66: 15.66502804 | AA66: 17.00669689
A67: 1900-01-01T00:18:00 | B67: 0.0125 | C67: 0.0002907866544 | D67: 0.1449834007 | E67: 2.609701213 | F67: 2.609701213 | G67: 2.109701213 | H67: 0 | I67: 0 | J67: 0 | K67: 0 | L67: 0 | M67: 0 | N67: =SUM($M$31:M67) -> 0 | O67: 0.0125 | Q67: 0.1449834007 | R67: 0.6458333333 | S67: 6476.339553 | T67: 7676.339553 | U67: 0.7458333333 | V67: 0.1 | W67: =IF(24*V67*A_V_ratio*Rate_a<'Sulfiddannelse i trykledning'!$C$14,24*V67*A_V_ratio*Rate_a,'Sulfiddannelse i trykledning'!$C$14) -> 3.029159762 | X67: 22265.64904 | Y67: 4.835604451 | Z67: 14.64781842 | AA67: 15.90236592
A68: 1900-01-01T00:18:30 | B68: 0.01284722222 | C68: 0.0002907866544 | D68: 0.1449834007 | E68: 2.682192913 | F68: 2.682192913 | G68: 2.182192913 | H68: 0 | I68: 0 | J68: 0 | K68: 0 | L68: 0 | M68: 0 | N68: =SUM($M$31:M68) -> 0 | O68: 0.01284722222 | Q68: 0.1449834007 | R68: 0.6666666667 | S68: 6652.566479 | T68: 7852.566479 | U68: 0.7583333333 | V68: 0.09166666667 | W68: =IF(24*V68*A_V_ratio*Rate_a<'Sulfiddannelse i trykledning'!$C$14,24*V68*A_V_ratio*Rate_a,'Sulfiddannelse i trykledning'!$C$14) -> 2.776729782 | X68: 22754.9836 | Y68: 4.835604451 | Z68: 13.42716689 | AA68: =Y68*V68*24*N_rate -> 14.57716876
A69: 1900-01-01T00:19:00 | B69: 0.01319444444 | C69: 0.0002907866544 | D69: 0.1449834007 | E69: 2.754684613 | F69: 2.754684613 | G69: 2.254684613 | H69: 0 | I69: 0 | J69: 0 | K69: 0 | L69: 0 | M69: 0 | N69: =SUM($M$31:M69) -> 0 | O69: 0.01319444444 | Q69: 0.1449834007 | R69: 0.6875 | S69: 6960.963601 | T69: 8160.963601 | U69: 0.7826388889 | V69: 0.09513888889 | W69: =IF(24*V69*A_V_ratio*Rate_a<'Sulfiddannelse i trykledning'!$C$14,24*V69*A_V_ratio*Rate_a,'Sulfiddannelse i trykledning'!$C$14) -> 2.88190894 | X69: 23643.75602 | Y69: 4.950618827 | Z69: 14.26723266 | AA69: 15.48918397
A70: 1900-01-01T00:19:30 | B70: 0.01354166667 | C70: 0.0002907866544 | D70: 0.1449834007 | E70: =IF(OR(J70=0,I70=-1),F70,G70) -> 2.827176314 | F70: 2.827176314 | G70: 2.327176314 | H70: 0 | I70: =IF(E69<0,-1,0) -> 0 | J70: =IF(E69>0,J69+SUM(H70:I70),0) -> 0 | K70: 0 | L70: 0 | M70: 0 | N70: =SUM($M$31:M70) -> 0 | O70: 0.01354166667 | Q70: 0.1449834007 | R70: 0.7083333333 | S70: 7181.247259 | T70: 8381.247259 | U70: 0.7951388889 | V70: =U70-R70 -> 0.08680555556 | W70: =IF(24*V70*A_V_ratio*Rate_a<'Sulfiddannelse i trykledning'!$C$14,24*V70*A_V_ratio*Rate_a,'Sulfiddannelse i trykledning'!$C$14) -> 2.62947896 | X70: 24222.98726 | Y70: 5.840730091 | Z70: 15.35807688 | AA70: 16.67345617
A71: 1900-01-01T00:20:00 | B71: 0.01388888889 | C71: 0.0002907866544 | D71: 0.1449834007 | E71: 2.899668014 | F71: 2.899668014 | G71: 2.399668014 | H71: 0 | I71: 0 | J71: 0 | K71: 0 | L71: 0 | M71: 0 | N71: =SUM($M$31:M71) -> 0 | O71: 0.01388888889 | Q71: 0.1449834007 | R71: 0.7291666667 | S71: 7357.474186 | T71: 8557.474186 | U71: 0.8069444444 | V71: 0.07777777778 | W71: =IF(24*V71*A_V_ratio*Rate_a<'Sulfiddannelse i trykledning'!$C$14,24*V71*A_V_ratio*Rate_a,'Sulfiddannelse i trykledning'!$C$14) -> 2.356013148 | X71: 24638.18022 | Y71: 5.840730091 | Z71: 13.76083689 | AA71: 14.93941673
A72: 1900-01-01T00:20:30 | B72: 0.01423611111 | C72: 0.0002907866544 | D72: 0.1449834007 | E72: 2.972159714 | F72: 2.972159714 | G72: 2.472159714 | H72: 0 | I72: 0 | J72: 0 | K72: 0 | L72: 0 | M72: 0 | N72: =SUM($M$31:M72) -> 0 | O72: 0.01423611111 | Q72: 0.1449834007 | R72: 0.75 | S72: 7709.928039 | T72: 8909.928039 | U72: 0.8302083333 | V72: 0.08020833333 | W72: =IF(24*V72*A_V_ratio*Rate_a<'Sulfiddannelse i trykledning'!$C$14,24*V72*A_V_ratio*Rate_a,'Sulfiddannelse i trykledning'!$C$14) -> 2.429638559 | X72: 25494.51569 | Y72: 6.70583823 | Z72: 16.29276313 | AA72: 17.68819586
A73: 1900-01-01T00:21:00 | B73: 0.01458333333 | C73: 0.0002907866544 | D73: 0.1449834007 | E73: 3.044651415 | F73: 3.044651415 | G73: 2.544651415 | H73: 0 | I73: 0 | J73: 0 | K73: 0 | L73: 0 | M73: 0 | N73: =SUM($M$31:M73) -> 0 | O73: 0.01458333333 | Q73: 0.1449834007 | R73: 0.7708333333 | S73: 8040.353526 | T73: 9240.353526 | U73: 0.8548611111 | V73: 0.08402777778 | W73: =IF(24*V73*A_V_ratio*Rate_a<'Sulfiddannelse i trykledning'!$C$14,24*V73*A_V_ratio*Rate_a,'Sulfiddannelse i trykledning'!$C$14) -> 2.545335633 | X73: 26335.55946 | Y73: 6.70583823 | Z73: 17.068609 | AA73: 18.5304909
A74: 1900-01-01T00:21:30 | B74: 0.01493055556 | C74: 0.0002907866544 | D74: 0.1449834007 | E74: 2.617143115 | F74: 3.117143115 | G74: 2.617143115 | H74: 1 | I74: 0 | J74: 1 | K74: 0 | L74: 1 | M74: 22.02836583 | N74: =SUM($M$31:M74) -> 22.02836583 | O74: 0.01493055556 | Q74: 0.1449834007 | R74: 0.7916666667 | S74: 8260.637185 | T74: 9460.637185 | U74: 0.8677083333 | V74: 0.07604166667 | W74: =IF(24*V74*A_V_ratio*Rate_a<'Sulfiddannelse i trykledning'!$C$14,24*V74*A_V_ratio*Rate_a,'Sulfiddannelse i trykledning'!$C$14) -> 2.303423569 | X74: 26842.96603 | Y74: 6.70583823 | Z74: 15.44638583 | AA74: 16.76932854
A75: 1900-01-01T00:22:00 | B75: 0.01527777778 | C75: 0.0002907866544 | D75: 0.1449834007 | E75: 2.189634815 | F75: 2.689634815 | G75: 2.189634815 | H75: 0 | I75: 0 | J75: 1 | K75: 0 | L75: 1 | M75: 22.02836583 | N75: =SUM($M$31:M75) -> 44.05673165 | O75: 0.01527777778 | Q75: 0.1449834007 | R75: 0.8125 | S75: 8657.14777 | T75: 9857.14777 | U75: 0.8961805556 | V75: 0.08368055556 | W75: =IF(24*V75*A_V_ratio*Rate_a<'Sulfiddannelse i trykledning'!$C$14,24*V75*A_V_ratio*Rate_a,'Sulfiddannelse i trykledning'!$C$14) -> 2.534817717 | X75: 27848.04808 | Y75: 7.480935117 | Z75: 18.96280688 | AA75: 20.5869219
A76: 1900-01-01T00:22:30 | B76: 0.015625 | C76: 0.0002907866544 | D76: 0.1449834007 | E76: 1.762126516 | F76: 2.262126516 | G76: 1.762126516 | H76: 0 | I76: 0 | J76: 1 | K76: 0 | L76: 1 | M76: 22.02836583 | N76: =SUM($M$31:M76) -> 66.08509748 | O76: 0.015625 | Q76: 0.1449834007 | R76: 0.8333333333 | S76: 9053.658354 | T76: 10253.65835 | U76: 0.9270833333 | V76: 0.09375 | W76: =IF(24*V76*A_V_ratio*Rate_a<'Sulfiddannelse i trykledning'!$C$14,24*V76*A_V_ratio*Rate_a,'Sulfiddannelse i trykledning'!$C$14) -> 2.839837277 | X76: 28974.07362 | Y76: 6.560820103 | Z76: 18.63166149 | AA76: 20.22741477
A77: 1900-01-01T00:23:00 | B77: 0.01597222222 | C77: 0.0002907866544 | D77: 0.1449834007 | E77: 1.334618216 | F77: 1.834618216 | G77: 1.334618216 | H77: 0 | I77: 0 | J77: 1 | K77: 0 | L77: 1 | M77: 22.02836583 | N77: =SUM($M$31:M77) -> 88.1134633 | O77: 0.01597222222 | Q77: 0.1449834007 | R77: 0.8541666667 | S77: 9229.885281 | T77: 10429.88528 | U77: 0.94375 | V77: 0.08958333333 | W77: =IF(24*V77*A_V_ratio*Rate_a<'Sulfiddannelse i trykledning'!$C$14,24*V77*A_V_ratio*Rate_a,'Sulfiddannelse i trykledning'!$C$14) -> 2.713622286 | X77: 29452.28694 | Y77: 6.560820103 | Z77: 17.80358765 | AA77: 19.32841856
A78: 1900-01-01T00:23:30 | B78: 0.01631944444 | C78: 0.0002907866544 | D78: 0.1449834007 | E78: 0.9071099165 | F78: 1.407109917 | G78: 0.9071099165 | H78: 0 | I78: 0 | J78: 1 | K78: 0 | L78: 1 | M78: 22.02836583 | N78: =SUM($M$31:M78) -> 110.1418291 | O78: 0.01631944444 | Q78: 0.1449834007 | R78: 0.875 | S78: 9582.339134 | T78: 10782.33913 | U78: 0.978125 | V78: 0.103125 | W78: =IF(24*V78*A_V_ratio*Rate_a<'Sulfiddannelse i trykledning'!$C$14,24*V78*A_V_ratio*Rate_a,'Sulfiddannelse i trykledning'!$C$14) -> 3.123821004 | X78: 30553.28969 | Y78: 5.495686961 | Z78: 17.16754236 | AA78: 18.63789765
A79: 1900-01-01T00:24:00 | B79: 0.01666666667 | C79: 0.0002907866544 | D79: 0.1449834007 | E79: 0.4796016169 | F79: 0.9796016169 | G79: 0.4796016169 | H79: 0 | I79: 0 | J79: 1 | K79: 0 | L79: 1 | M79: 22.02836583 | N79: =SUM($M$31:M79) -> 132.170195 | O79: 0.01666666667 | Q79: 0.1449834007 | R79: 0.8958333333 | S79: 9824.651158 | T79: 11024.65116 | U79: 1.0125 | V79: 0.1166666667 | W79: =IF(24*V79*A_V_ratio*Rate_a<'Sulfiddannelse i trykledning'!$C$14,24*V79*A_V_ratio*Rate_a,'Sulfiddannelse i trykledning'!$C$14) -> 3.534019722 | X79: 31409.62516 | Y79: 5.495686961 | Z79: 19.42186611 | AA79: 21.08529835
A80: 1900-01-01T00:24:30 | B80: 0.01701388889 | C80: 0.0002907866544 | D80: 0.1449834007 | E80: 0.05209331722 | F80: 0.5520933172 | G80: 0.05209331722 | H80: 0 | I80: 0 | J80: 1 | K80: 0 | L80: 1 | M80: 22.02836583 | N80: =SUM($M$31:M80) -> 154.1985608 | O80: 0.01701388889 | Q80: 0.1449834007 | R80: 0.9166666667 | S80: 10111.01991 | T80: 11311.01991 | U80: 1.033680556 | V80: 0.1170138889 | W80: =IF(24*V80*A_V_ratio*Rate_a<'Sulfiddannelse i trykledning'!$C$14,24*V80*A_V_ratio*Rate_a,'Sulfiddannelse i trykledning'!$C$14) -> 3.544537638 | X80: 32424.66999 | Y80: 5.495686961 | Z80: 19.47966928 | AA80: 21.14805222
A81: 1900-01-01T00:25:00 | B81: 0.01736111111 | C81: 0.0002907866544 | D81: 0.1449834007 | E81: -0.3754149824 | F81: 0.1245850176 | G81: -0.3754149824 | H81: 0 | I81: 0 | J81: 1 | K81: 1 | L81: 1 | M81: 22.02836583 | N81: =SUM($M$31:M81) -> 176.2269266 | O81: 0.01736111111 | Q81: 0.1449834007 | R81: 0.9375 | S81: 10287.24684 | T81: 11487.24684 | U81: 1.054513889 | V81: 0.1170138889 | W81: =IF(24*V81*A_V_ratio*Rate_a<'Sulfiddannelse i trykledning'!$C$14,24*V81*A_V_ratio*Rate_a,'Sulfiddannelse i trykledning'!$C$14) -> 3.544537638 | X81: 33049.31297 | Y81: 4.77559695 | Z81: 16.92728313 | AA81: 18.37706084
A82: 1900-01-01T00:25:30 | B82: 0.01770833333 | C82: 0.0002907866544 | D82: 0.1449834007 | E82: -0.3029232821 | F82: -0.3029232821 | G82: -0.8029232821 | H82: 0 | I82: -1 | J82: 0 | K82: 1 | L82: 0 | M82: 0 | N82: =SUM($M$31:M82) -> 176.2269266 | O82: 0.01770833333 | Q82: 0.1449834007 | R82: 0.9583333333 | S82: 10463.47377 | T82: 11663.47377 | U82: 1.093055556 | V82: =U82-R82 -> 0.1347222222 | W82: =IF(24*V82*A_V_ratio*Rate_a<'Sulfiddannelse i trykledning'!$C$14,24*V82*A_V_ratio*Rate_a,'Sulfiddannelse i trykledning'!$C$14) -> 4.080951346 | X82: 33768.48648 | Y82: 4.545568196 | Z82: 18.55024265 | AA82: 20.13902261
A83: 1900-01-01T00:26:00 | B83: 0.01805555556 | C83: 0.0002907866544 | D83: 0.1449834007 | E83: -0.2304315817 | F83: -0.2304315817 | G83: -0.7304315817 | H83: 0 | I83: -1 | J83: 0 | K83: 1 | L83: 0 | M83: 0 | N83: =SUM($M$31:M83) -> 176.2269266 | O83: 0.01805555556 | Q83: 0.1449834007 | R83: 0.9791666667 | S83: 10815.92762 | T83: 12015.92762 | U83: 1.143402778 | V83: 0.1642361111 | W83: =IF(24*V83*A_V_ratio*Rate_a<'Sulfiddannelse i trykledning'!$C$14,24*V83*A_V_ratio*Rate_a,'Sulfiddannelse i trykledning'!$C$14) -> 4.974974192 | X83: 35521.9353 | Y83: 4.545568196 | Z83: 22.61408446 | AA83: 24.5509219
A84: 1900-01-01T00:26:30 | B84: 0.01840277778 | C84: 0.0002907866544 | D84: 0.1449834007 | E84: -0.1579398814 | F84: -0.1579398814 | G84: -0.6579398814 | H84: 0 | I84: -1 | J84: 0 | K84: 1 | L84: 0 | M84: 0 | N84: =SUM($M$31:M84) -> 176.2269266 | O84: 0.01840277778 | Q84: 0.1449834007 | R84: 1 | S84: =VLOOKUP(R84,$B$31:$N$17311,13) -> 10992.15455 | T84: 12192.15455 | U84: 1.178125 | V84: 0.178125 | W84: =IF(24*V84*A_V_ratio*Rate_a<'Sulfiddannelse i trykledning'!$C$14,24*V84*A_V_ratio*Rate_a,'Sulfiddannelse i trykledning'!$C$14) -> 5.395690825 | X84: 36472.80132 | Y84: 4.17552194 | Z84: 22.52982542 | AA84: 24.45944629
A85: 1900-01-01T00:27:00 | B85: 0.01875 | C85: 0.0002907866544 | D85: 0.1449834007 | E85: -0.08544818102 | F85: -0.08544818102 | G85: -0.585448181 | H85: 0 | I85: -1 | J85: 0 | K85: 1 | L85: 0 | M85: 0 | N85: =SUM($M$31:M85) -> 176.2269266 | O85: 0.01875 | Q85: 0.1449834007
A86: 1900-01-01T00:27:30 | B86: 0.01909722222 | C86: 0.0002907866544 | D86: 0.1449834007 | E86: -0.01295648067 | F86: -0.01295648067 | G86: -0.5129564807 | H86: 0 | I86: -1 | J86: 0 | K86: 1 | L86: 0 | M86: 0 | N86: =SUM($M$31:M86) -> 176.2269266 | O86: 0.01909722222 | Q86: 0.1449834007
A87: 1900-01-01T00:28:00 | B87: 0.01944444444 | C87: 0.0002907866544 | D87: 0.1449834007 | E87: 0.05953521968 | F87: 0.05953521968 | G87: -0.4404647803 | H87: 0 | I87: -1 | J87: 0 | K87: 1 | L87: 0 | M87: 0 | N87: =SUM($M$31:M87) -> 176.2269266 | O87: 0.01944444444 | Q87: 0.1449834007
A88: 1900-01-01T00:28:30 | B88: 0.01979166667 | C88: 0.0002907866544 | D88: 0.1449834007 | E88: 0.13202692 | F88: 0.13202692 | G88: -0.36797308 | H88: 0 | I88: 0 | J88: 0 | K88: 1 | L88: 0 | M88: 0 | N88: =SUM($M$31:M88) -> 176.2269266 | O88: 0.01979166667 | Q88: 0.1449834007
A89: 1900-01-01T00:29:00 | B89: 0.02013888889 | C89: 0.0002907866544 | D89: 0.1449834007 | E89: 0.2045186204 | F89: 0.2045186204 | G89: -0.2954813796 | H89: 0 | I89: 0 | J89: 0 | K89: 1 | L89: 0 | M89: 0 | N89: =SUM($M$31:M89) -> 176.2269266 | O89: 0.02013888889 | Q89: 0.1449834007
A90: 1900-01-01T00:29:30 | B90: 0.02048611111 | C90: 0.0002907866544 | D90: 0.1449834007 | E90: 0.2770103207 | F90: 0.2770103207 | G90: -0.2229896793 | H90: 0 | I90: 0 | J90: 0 | K90: 1 | L90: 0 | M90: 0 | N90: =SUM($M$31:M90) -> 176.2269266 | O90: 0.02048611111 | Q90: 0.1449834007
A91: 1900-01-01T00:30:00 | B91: 0.02083333333 | C91: 0.0002907866544 | D91: 0.1449834007 | E91: 0.3495020211 | F91: 0.3495020211 | G91: -0.1504979789 | H91: 0 | I91: 0 | J91: 0 | K91: 1 | L91: 0 | M91: 0 | N91: =SUM($M$31:M91) -> 176.2269266 | O91: 0.02083333333 | Q91: 0.1449834007
A92: 1900-01-01T00:30:30 | B92: 0.02118055556 | C92: 0.0002907866544 | D92: 0.1449834007 | E92: 0.4219937214 | F92: 0.4219937214 | G92: -0.07800627856 | H92: 0 | I92: 0 | J92: 0 | K92: 1 | L92: 0 | M92: 0 | N92: =SUM($M$31:M92) -> 176.2269266 | O92: 0.02118055556 | Q92: 0.1449834007
A93: 1900-01-01T00:31:00 | B93: 0.02152777778 | C93: 0.0002907866544 | D93: 0.1449834007 | E93: 0.4944854218 | F93: 0.4944854218 | G93: -0.005514578211 | H93: 0 | I93: 0 | J93: 0 | K93: 1 | L93: 0 | M93: 0 | N93: =SUM($M$31:M93) -> 176.2269266 | O93: 0.02152777778 | Q93: 0.1449834007
A94: 1900-01-01T00:31:30 | B94: 0.021875 | C94: 0.0002907866544 | D94: 0.1449834007 | E94: 0.5669771221 | F94: 0.5669771221 | G94: 0.06697712214 | H94: 0 | I94: 0 | J94: 0 | K94: 1 | L94: 0 | M94: 0 | N94: =SUM($M$31:M94) -> 176.2269266 | O94: 0.021875 | Q94: 0.1449834007
A95: 1900-01-01T00:32:00 | B95: 0.02222222222 | C95: 0.0002907866544 | D95: 0.1449834007 | E95: 0.6394688225 | F95: 0.6394688225 | G95: 0.1394688225 | H95: 0 | I95: 0 | J95: 0 | K95: 1 | L95: 0 | M95: =L95*Flow/PipeArea*1/2 -> 0 | N95: =SUM($M$31:M95) -> 176.2269266 | O95: =B95 -> 0.02222222222 | Q95: =VLOOKUP(B95,$AF$31:$AK$54,6,TRUE) -> 0.1449834007
A96: 1900-01-01T00:32:30 | B96: =A96-1 -> 0.02256944444 | C96: 0.0002907866544 | D96: =Q96 -> 0.1449834007 | E96: 0.7119605228 | F96: 0.7119605228 | G96: =E95+((D96-Flow)/2) -> 0.2119605228 | H96: =IF(E95>deltaV,1,0) -> 0 | I96: 0 | J96: 0 | K96: =IF(AND(E96<E95,E96<E97),K95+1,K95) -> 1 | L96: =IF(J96>=1,1,0) -> 0 | M96: 0 | N96: =SUM($M$31:M96) -> 176.2269266 | O96: 0.02256944444 | Q96: 0.1449834007
A97: 1900-01-01T00:33:00 | B97: 0.02291666667 | C97: 0.0002907866544 | D97: 0.1449834007 | E97: 0.7844522232 | F97: =E96+(D97/2) -> 0.7844522232 | G97: 0.2844522232 | H97: 0 | I97: 0 | J97: 0 | K97: 1 | L97: 0 | M97: 0 | N97: =SUM($M$31:M97) -> 176.2269266 | O97: 0.02291666667 | Q97: 0.1449834007
A98: 1900-01-01T00:33:30 | B98: 0.02326388889 | C98: 0.0002907866544 | D98: 0.1449834007 | E98: 0.8569439235 | F98: 0.8569439235 | G98: 0.3569439235 | H98: 0 | I98: 0 | J98: 0 | K98: 1 | L98: 0 | M98: 0 | N98: =SUM($M$31:M98) -> 176.2269266 | O98: 0.02326388889 | Q98: 0.1449834007
A99: 1900-01-01T00:34:00 | B99: 0.02361111111 | C99: 0.0002907866544 | D99: 0.1449834007 | E99: 0.9294356239 | F99: 0.9294356239 | G99: 0.4294356239 | H99: 0 | I99: 0 | J99: 0 | K99: 1 | L99: 0 | M99: 0 | N99: =SUM($M$31:M99) -> 176.2269266 | O99: 0.02361111111 | Q99: 0.1449834007
A100: 1900-01-01T00:34:30 | B100: 0.02395833333 | C100: 0.0002907866544 | D100: 0.1449834007 | E100: 1.001927324 | F100: 1.001927324 | G100: 0.5019273242 | H100: 0 | I100: 0 | J100: 0 | K100: 1 | L100: 0 | M100: 0 | N100: =SUM($M$31:M100) -> 176.2269266 | O100: 0.02395833333 | Q100: 0.1449834007
A101: 1900-01-01T00:35:00 | B101: 0.02430555556 | C101: 0.0002907866544 | D101: 0.1449834007 | E101: 1.074419025 | F101: 1.074419025 | G101: 0.5744190246 | H101: 0 | I101: 0 | J101: 0 | K101: 1 | L101: 0 | M101: 0 | N101: =SUM($M$31:M101) -> 176.2269266 | O101: 0.02430555556 | Q101: 0.1449834007
A102: 1900-01-01T00:35:30 | B102: 0.02465277778 | C102: 0.0002907866544 | D102: 0.1449834007 | E102: 1.146910725 | F102: 1.146910725 | G102: 0.646910725 | H102: 0 | I102: 0 | J102: 0 | K102: 1 | L102: 0 | M102: 0 | N102: =SUM($M$31:M102) -> 176.2269266 | O102: 0.02465277778 | Q102: 0.1449834007
A103: 1900-01-01T00:36:00 | B103: 0.025 | C103: 0.0002907866544 | D103: 0.1449834007 | E103: 1.219402425 | F103: 1.219402425 | G103: 0.7194024253 | H103: 0 | I103: 0 | J103: 0 | K103: 1 | L103: 0 | M103: 0 | N103: =SUM($M$31:M103) -> 176.2269266 | O103: 0.025 | Q103: 0.1449834007
A104: 1900-01-01T00:36:30 | B104: 0.02534722222 | C104: 0.0002907866544 | D104: 0.1449834007 | E104: 1.291894126 | F104: 1.291894126 | G104: 0.7918941257 | H104: 0 | I104: 0 | J104: 0 | K104: 1 | L104: 0 | M104: 0 | N104: =SUM($M$31:M104) -> 176.2269266 | O104: 0.02534722222 | Q104: 0.1449834007
A105: 1900-01-01T00:37:00 | B105: 0.02569444444 | C105: 0.0002907866544 | D105: 0.1449834007 | E105: 1.364385826 | F105: 1.364385826 | G105: 0.864385826 | H105: 0 | I105: 0 | J105: 0 | K105: 1 | L105: 0 | M105: 0 | N105: =SUM($M$31:M105) -> 176.2269266 | O105: 0.02569444444 | Q105: 0.1449834007
A106: 1900-01-01T00:37:30 | B106: 0.02604166667 | C106: 0.0002907866544 | D106: 0.1449834007 | E106: 1.436877526 | F106: 1.436877526 | G106: 0.9368775264 | H106: 0 | I106: 0 | J106: 0 | K106: 1 | L106: 0 | M106: 0 | N106: =SUM($M$31:M106) -> 176.2269266 | O106: 0.02604166667 | Q106: 0.1449834007
A107: 1900-01-01T00:38:00 | B107: 0.02638888889 | C107: 0.0002907866544 | D107: 0.1449834007 | E107: 1.509369227 | F107: 1.509369227 | G107: 1.009369227 | H107: 0 | I107: 0 | J107: 0 | K107: 1 | L107: 0 | M107: 0 | N107: =SUM($M$31:M107) -> 176.2269266 | O107: 0.02638888889 | Q107: 0.1449834007
A108: 1900-01-01T00:38:30 | B108: 0.02673611111 | C108: 0.0002907866544 | D108: 0.1449834007 | E108: 1.581860927 | F108: 1.581860927 | G108: 1.081860927 | H108: 0 | I108: 0 | J108: 0 | K108: 1 | L108: 0 | M108: 0 | N108: =SUM($M$31:M108) -> 176.2269266 | O108: 0.02673611111 | Q108: 0.1449834007
A109: 1900-01-01T00:39:00 | B109: 0.02708333333 | C109: 0.0002907866544 | D109: 0.1449834007 | E109: 1.654352627 | F109: 1.654352627 | G109: 1.154352627 | H109: 0 | I109: 0 | J109: 0 | K109: 1 | L109: 0 | M109: 0 | N109: =SUM($M$31:M109) -> 176.2269266 | O109: 0.02708333333 | Q109: 0.1449834007
A110: 1900-01-01T00:39:30 | B110: 0.02743055556 | C110: 0.0002907866544 | D110: 0.1449834007 | E110: 1.726844328 | F110: 1.726844328 | G110: 1.226844328 | H110: 0 | I110: 0 | J110: 0 | K110: 1 | L110: 0 | M110: 0 | N110: =SUM($M$31:M110) -> 176.2269266 | O110: 0.02743055556 | Q110: 0.1449834007
A111: 1900-01-01T00:40:00 | B111: 0.02777777778 | C111: 0.0002907866544 | D111: 0.1449834007 | E111: 1.799336028 | F111: 1.799336028 | G111: 1.299336028 | H111: 0 | I111: 0 | J111: 0 | K111: 1 | L111: 0 | M111: 0 | N111: =SUM($M$31:M111) -> 176.2269266 | O111: 0.02777777778 | Q111: 0.1449834007
A112: 1900-01-01T00:40:30 | B112: 0.028125 | C112: 0.0002907866544 | D112: 0.1449834007 | E112: 1.871827728 | F112: 1.871827728 | G112: 1.371827728 | H112: 0 | I112: 0 | J112: 0 | K112: 1 | L112: 0 | M112: 0 | N112: =SUM($M$31:M112) -> 176.2269266 | O112: 0.028125 | Q112: 0.1449834007
A113: 1900-01-01T00:41:00 | B113: 0.02847222222 | C113: 0.0002907866544 | D113: 0.1449834007 | E113: 1.944319429 | F113: 1.944319429 | G113: 1.444319429 | H113: 0 | I113: 0 | J113: 0 | K113: 1 | L113: 0 | M113: 0 | N113: =SUM($M$31:M113) -> 176.2269266 | O113: 0.02847222222 | Q113: 0.1449834007
A114: 1900-01-01T00:41:30 | B114: 0.02881944444 | C114: 0.0002907866544 | D114: 0.1449834007 | E114: 2.016811129 | F114: 2.016811129 | G114: 1.516811129 | H114: 0 | I114: 0 | J114: 0 | K114: 1 | L114: 0 | M114: 0 | N114: =SUM($M$31:M114) -> 176.2269266 | O114: 0.02881944444 | Q114: 0.1449834007
A115: 1900-01-01T00:42:00 | B115: 0.02916666667 | C115: 0.0002907866544 | D115: 0.1449834007 | E115: 2.08930283 | F115: 2.08930283 | G115: 1.58930283 | H115: 0 | I115: 0 | J115: 0 | K115: 1 | L115: 0 | M115: 0 | N115: =SUM($M$31:M115) -> 176.2269266 | O115: 0.02916666667 | Q115: 0.1449834007
A116: 1900-01-01T00:42:30 | B116: 0.02951388889 | C116: 0.0002907866544 | D116: 0.1449834007 | E116: 2.16179453 | F116: 2.16179453 | G116: 1.66179453 | H116: 0 | I116: 0 | J116: 0 | K116: 1 | L116: 0 | M116: 0 | N116: =SUM($M$31:M116) -> 176.2269266 | O116: 0.02951388889 | Q116: 0.1449834007
A117: 1900-01-01T00:43:00 | B117: 0.02986111111 | C117: 0.0002907866544 | D117: 0.1449834007 | E117: 2.23428623 | F117: 2.23428623 | G117: 1.73428623 | H117: 0 | I117: 0 | J117: 0 | K117: 1 | L117: 0 | M117: 0 | N117: =SUM($M$31:M117) -> 176.2269266 | O117: 0.02986111111 | Q117: 0.1449834007
A118: 1900-01-01T00:43:30 | B118: 0.03020833333 | C118: 0.0002907866544 | D118: 0.1449834007 | E118: 2.306777931 | F118: 2.306777931 | G118: 1.806777931 | H118: 0 | I118: 0 | J118: 0 | K118: 1 | L118: 0 | M118: 0 | N118: =SUM($M$31:M118) -> 176.2269266 | O118: 0.03020833333 | Q118: 0.1449834007
A119: 1900-01-01T00:44:00 | B119: 0.03055555556 | C119: 0.0002907866544 | D119: 0.1449834007 | E119: 2.379269631 | F119: 2.379269631 | G119: 1.879269631 | H119: 0 | I119: 0 | J119: 0 | K119: 1 | L119: 0 | M119: 0 | N119: =SUM($M$31:M119) -> 176.2269266 | O119: 0.03055555556 | Q119: 0.1449834007
A120: 1900-01-01T00:44:30 | B120: 0.03090277778 | C120: 0.0002907866544 | D120: 0.1449834007 | E120: 2.451761331 | F120: 2.451761331 | G120: 1.951761331 | H120: 0 | I120: 0 | J120: 0 | K120: 1 | L120: 0 | M120: 0 | N120: =SUM($M$31:M120) -> 176.2269266 | O120: 0.03090277778 | Q120: 0.1449834007
A121: 1900-01-01T00:45:00 | B121: 0.03125 | C121: 0.0002907866544 | D121: 0.1449834007 | E121: 2.524253032 | F121: 2.524253032 | G121: 2.024253032 | H121: 0 | I121: 0 | J121: 0 | K121: 1 | L121: 0 | M121: 0 | N121: =SUM($M$31:M121) -> 176.2269266 | O121: 0.03125 | Q121: 0.1449834007
A122: 1900-01-01T00:45:30 | B122: 0.03159722222 | C122: 0.0002907866544 | D122: 0.1449834007 | E122: 2.596744732 | F122: 2.596744732 | G122: 2.096744732 | H122: 0 | I122: 0 | J122: 0 | K122: 1 | L122: 0 | M122: 0 | N122: =SUM($M$31:M122) -> 176.2269266 | O122: 0.03159722222 | Q122: 0.1449834007
A123: 1900-01-01T00:46:00 | B123: 0.03194444444 | C123: 0.0002907866544 | D123: 0.1449834007 | E123: 2.669236432 | F123: 2.669236432 | G123: 2.169236432 | H123: 0 | I123: 0 | J123: 0 | K123: 1 | L123: 0 | M123: 0 | N123: =SUM($M$31:M123) -> 176.2269266 | O123: 0.03194444444 | Q123: 0.1449834007
A124: 1900-01-01T00:46:30 | B124: 0.03229166667 | C124: 0.0002907866544 | D124: 0.1449834007 | E124: 2.741728133 | F124: 2.741728133 | G124: 2.241728133 | H124: 0 | I124: 0 | J124: 0 | K124: 1 | L124: 0 | M124: 0 | N124: =SUM($M$31:M124) -> 176.2269266 | O124: 0.03229166667 | Q124: 0.1449834007
A125: 1900-01-01T00:47:00 | B125: 0.03263888889 | C125: 0.0002907866544 | D125: 0.1449834007 | E125: 2.814219833 | F125: 2.814219833 | G125: 2.314219833 | H125: 0 | I125: 0 | J125: 0 | K125: 1 | L125: 0 | M125: 0 | N125: =SUM($M$31:M125) -> 176.2269266 | O125: 0.03263888889 | Q125: 0.1449834007
A126: 1900-01-01T00:47:30 | B126: 0.03298611111 | C126: 0.0002907866544 | D126: 0.1449834007 | E126: 2.886711533 | F126: 2.886711533 | G126: 2.386711533 | H126: 0 | I126: 0 | J126: 0 | K126: 1 | L126: 0 | M126: 0 | N126: =SUM($M$31:M126) -> 176.2269266 | O126: 0.03298611111 | Q126: 0.1449834007
A127: 1900-01-01T00:48:00 | B127: 0.03333333333 | C127: 0.0002907866544 | D127: 0.1449834007 | E127: 2.959203234 | F127: 2.959203234 | G127: 2.459203234 | H127: 0 | I127: 0 | J127: 0 | K127: 1 | L127: 0 | M127: 0 | N127: =SUM($M$31:M127) -> 176.2269266 | O127: 0.03333333333 | Q127: 0.1449834007
A128: 1900-01-01T00:48:30 | B128: 0.03368055556 | C128: 0.0002907866544 | D128: 0.1449834007 | E128: 3.031694934 | F128: 3.031694934 | G128: 2.531694934 | H128: 0 | I128: 0 | J128: 0 | K128: 1 | L128: 0 | M128: 0 | N128: =SUM($M$31:M128) -> 176.2269266 | O128: 0.03368055556 | Q128: 0.1449834007
A129: 1900-01-01T00:49:00 | B129: 0.03402777778 | C129: 0.0002907866544 | D129: 0.1449834007 | E129: 2.604186634 | F129: 3.104186634 | G129: 2.604186634 | H129: 1 | I129: 0 | J129: 1 | K129: 1 | L129: 1 | M129: 22.02836583 | N129: =SUM($M$31:M129) -> 198.2552924 | O129: 0.03402777778 | Q129: 0.1449834007
A130: 1900-01-01T00:49:30 | B130: 0.034375 | C130: 0.0002907866544 | D130: 0.1449834007 | E130: 2.176678335 | F130: 2.676678335 | G130: 2.176678335 | H130: 0 | I130: 0 | J130: 1 | K130: 1 | L130: 1 | M130: 22.02836583 | N130: =SUM($M$31:M130) -> 220.2836583 | O130: 0.034375 | Q130: 0.1449834007
A131: 1900-01-01T00:50:00 | B131: 0.03472222222 | C131: 0.0002907866544 | D131: 0.1449834007 | E131: 1.749170035 | F131: 2.249170035 | G131: 1.749170035 | H131: 0 | I131: 0 | J131: 1 | K131: 1 | L131: 1 | M131: 22.02836583 | N131: =SUM($M$31:M131) -> 242.3120241 | O131: 0.03472222222 | Q131: 0.1449834007
A132: 1900-01-01T00:50:30 | B132: 0.03506944444 | C132: 0.0002907866544 | D132: 0.1449834007 | E132: 1.321661735 | F132: 1.821661735 | G132: 1.321661735 | H132: 0 | I132: 0 | J132: 1 | K132: 1 | L132: 1 | M132: 22.02836583 | N132: =SUM($M$31:M132) -> 264.3403899 | O132: 0.03506944444 | Q132: 0.1449834007
A133: 1900-01-01T00:51:00 | B133: 0.03541666667 | C133: 0.0002907866544 | D133: 0.1449834007 | E133: 0.8941534358 | F133: 1.394153436 | G133: 0.8941534358 | H133: 0 | I133: 0 | J133: 1 | K133: 1 | L133: 1 | M133: 22.02836583 | N133: =SUM($M$31:M133) -> 286.3687557 | O133: 0.03541666667 | Q133: 0.1449834007
A134: 1900-01-01T00:51:30 | B134: 0.03576388889 | C134: 0.0002907866544 | D134: 0.1449834007 | E134: =IF(OR(J134=0,I134=-1),F134,G134) -> 0.4666451362 | F134: 0.9666451362 | G134: 0.4666451362 | H134: 0 | I134: =IF(E133<0,-1,0) -> 0 | J134: =IF(E133>0,J133+SUM(H134:I134),0) -> 1 | K134: 1 | L134: 1 | M134: 22.02836583 | N134: =SUM($M$31:M134) -> 308.3971216 | O134: 0.03576388889 | Q134: 0.1449834007
A135: 1900-01-01T00:52:00 | B135: 0.03611111111 | C135: 0.0002907866544 | D135: 0.1449834007 | E135: 0.03913683655 | F135: 0.5391368365 | G135: 0.03913683655 | H135: 0 | I135: 0 | J135: 1 | K135: 1 | L135: 1 | M135: 22.02836583 | N135: =SUM($M$31:M135) -> 330.4254874 | O135: 0.03611111111 | Q135: 0.1449834007
A136: 1900-01-01T00:52:30 | B136: 0.03645833333 | C136: 0.0002907866544 | D136: 0.1449834007 | E136: -0.3883714631 | F136: 0.1116285369 | G136: -0.3883714631 | H136: 0 | I136: 0 | J136: 1 | K136: 2 | L136: 1 | M136: 22.02836583 | N136: =SUM($M$31:M136) -> 352.4538532 | O136: 0.03645833333 | Q136: 0.1449834007
A137: 1900-01-01T00:53:00 | B137: 0.03680555556 | C137: 0.0002907866544 | D137: 0.1449834007 | E137: -0.3158797627 | F137: -0.3158797627 | G137: -0.8158797627 | H137: 0 | I137: -1 | J137: 0 | K137: 2 | L137: 0 | M137: 0 | N137: =SUM($M$31:M137) -> 352.4538532 | O137: 0.03680555556 | Q137: 0.1449834007
A138: 1900-01-01T00:53:30 | B138: 0.03715277778 | C138: 0.0002907866544 | D138: 0.1449834007 | E138: -0.2433880624 | F138: -0.2433880624 | G138: -0.7433880624 | H138: 0 | I138: -1 | J138: 0 | K138: 2 | L138: 0 | M138: 0 | N138: =SUM($M$31:M138) -> 352.4538532 | O138: 0.03715277778 | Q138: 0.1449834007
A139: 1900-01-01T00:54:00 | B139: 0.0375 | C139: 0.0002907866544 | D139: 0.1449834007 | E139: -0.170896362 | F139: -0.170896362 | G139: -0.670896362 | H139: 0 | I139: -1 | J139: 0 | K139: 2 | L139: 0 | M139: 0 | N139: =SUM($M$31:M139) -> 352.4538532 | O139: 0.0375 | Q139: 0.1449834007
A140: 1900-01-01T00:54:30 | B140: 0.03784722222 | C140: 0.0002907866544 | D140: 0.1449834007 | E140: -0.09840466169 | F140: -0.09840466169 | G140: -0.5984046617 | H140: 0 | I140: -1 | J140: 0 | K140: 2 | L140: 0 | M140: 0 | N140: =SUM($M$31:M140) -> 352.4538532 | O140: 0.03784722222 | Q140: 0.1449834007
A141: 1900-01-01T00:55:00 | B141: 0.03819444444 | C141: 0.0002907866544 | D141: 0.1449834007 | E141: -0.02591296134 | F141: -0.02591296134 | G141: -0.5259129613 | H141: 0 | I141: -1 | J141: 0 | K141: 2 | L141: 0 | M141: 0 | N141: =SUM($M$31:M141) -> 352.4538532 | O141: 0.03819444444 | Q141: 0.1449834007
A142: 1900-01-01T00:55:30 | B142: 0.03854166667 | C142: 0.0002907866544 | D142: 0.1449834007 | E142: 0.04657873901 | F142: 0.04657873901 | G142: -0.453421261 | H142: 0 | I142: -1 | J142: 0 | K142: 2 | L142: 0 | M142: 0 | N142: =SUM($M$31:M142) -> 352.4538532 | O142: 0.03854166667 | Q142: 0.1449834007
A143: 1900-01-01T00:56:00 | B143: 0.03888888889 | C143: 0.0002907866544 | D143: 0.1449834007 | E143: 0.1190704394 | F143: 0.1190704394 | G143: -0.3809295606 | H143: 0 | I143: 0 | J143: 0 | K143: 2 | L143: 0 | M143: 0 | N143: =SUM($M$31:M143) -> 352.4538532 | O143: 0.03888888889 | Q143: 0.1449834007
A144: 1900-01-01T00:56:30 | B144: 0.03923611111 | C144: 0.0002907866544 | D144: 0.1449834007 | E144: 0.1915621397 | F144: 0.1915621397 | G144: -0.3084378603 | H144: 0 | I144: 0 | J144: 0 | K144: 2 | L144: 0 | M144: 0 | N144: =SUM($M$31:M144) -> 352.4538532 | O144: 0.03923611111 | Q144: 0.1449834007
A145: 1900-01-01T00:57:00 | B145: 0.03958333333 | C145: 0.0002907866544 | D145: 0.1449834007 | E145: 0.2640538401 | F145: 0.2640538401 | G145: -0.2359461599 | H145: 0 | I145: 0 | J145: 0 | K145: 2 | L145: 0 | M145: 0 | N145: =SUM($M$31:M145) -> 352.4538532 | O145: 0.03958333333 | Q145: 0.1449834007
A146: 1900-01-01T00:57:30 | B146: 0.03993055556 | C146: 0.0002907866544 | D146: 0.1449834007 | E146: 0.3365455404 | F146: 0.3365455404 | G146: -0.1634544596 | H146: 0 | I146: 0 | J146: 0 | K146: 2 | L146: 0 | M146: 0 | N146: =SUM($M$31:M146) -> 352.4538532 | O146: 0.03993055556 | Q146: 0.1449834007
A147: 1900-01-01T00:58:00 | B147: 0.04027777778 | C147: 0.0002907866544 | D147: 0.1449834007 | E147: 0.4090372408 | F147: 0.4090372408 | G147: -0.09096275923 | H147: 0 | I147: 0 | J147: 0 | K147: 2 | L147: 0 | M147: 0 | N147: =SUM($M$31:M147) -> 352.4538532 | O147: 0.04027777778 | Q147: 0.1449834007
A148: 1900-01-01T00:58:30 | B148: 0.040625 | C148: 0.0002907866544 | D148: 0.1449834007 | E148: 0.4815289411 | F148: 0.4815289411 | G148: -0.01847105888 | H148: 0 | I148: 0 | J148: 0 | K148: 2 | L148: 0 | M148: 0 | N148: =SUM($M$31:M148) -> 352.4538532 | O148: 0.040625 | Q148: 0.1449834007
A149: 1900-01-01T00:59:00 | B149: 0.04097222222 | C149: 0.0002907866544 | D149: 0.1449834007 | E149: 0.5540206415 | F149: 0.5540206415 | G149: 0.05402064147 | H149: 0 | I149: 0 | J149: 0 | K149: 2 | L149: 0 | M149: 0 | N149: =SUM($M$31:M149) -> 352.4538532 | O149: 0.04097222222 | Q149: 0.1449834007
A150: 1900-01-01T00:59:30 | B150: 0.04131944444 | C150: 0.0002907866544 | D150: 0.1449834007 | E150: 0.6265123418 | F150: 0.6265123418 | G150: 0.1265123418 | H150: 0 | I150: 0 | J150: 0 | K150: 2 | L150: 0 | M150: 0 | N150: =SUM($M$31:M150) -> 352.4538532 | O150: 0.04131944444 | Q150: 0.1449834007
A151: 1900-01-01T01:00:00 | B151: 0.04166666667 | C151: 0.0002448729721 | D151: 0.1218902363 | E151: 0.68745746 | F151: 0.68745746 | G151: 0.18745746 | H151: 0 | I151: 0 | J151: 0 | K151: 2 | L151: 0 | M151: 0 | N151: =SUM($M$31:M151) -> 352.4538532 | O151: 0.04166666667 | Q151: 0.1218902363
A152: 1900-01-01T01:00:30 | B152: 0.04201388889 | C152: 0.0002448729721 | D152: 0.1218902363 | E152: 0.7484025781 | F152: 0.7484025781 | G152: 0.2484025781 | H152: 0 | I152: 0 | J152: 0 | K152: 2 | L152: 0 | M152: 0 | N152: =SUM($M$31:M152) -> 352.4538532 | O152: 0.04201388889 | Q152: 0.1218902363
A153: 1900-01-01T01:01:00 | B153: 0.04236111111 | C153: 0.0002448729721 | D153: 0.1218902363 | E153: 0.8093476962 | F153: 0.8093476962 | G153: 0.3093476962 | H153: 0 | I153: 0 | J153: 0 | K153: 2 | L153: 0 | M153: 0 | N153: =SUM($M$31:M153) -> 352.4538532 | O153: 0.04236111111 | Q153: 0.1218902363
A154: 1900-01-01T01:01:30 | B154: 0.04270833333 | C154: 0.0002448729721 | D154: 0.1218902363 | E154: 0.8702928144 | F154: 0.8702928144 | G154: 0.3702928144 | H154: 0 | I154: 0 | J154: 0 | K154: 2 | L154: 0 | M154: 0 | N154: =SUM($M$31:M154) -> 352.4538532 | O154: 0.04270833333 | Q154: 0.1218902363
A155: 1900-01-01T01:02:00 | B155: 0.04305555556 | C155: 0.0002448729721 | D155: 0.1218902363 | E155: 0.9312379325 | F155: 0.9312379325 | G155: 0.4312379325 | H155: 0 | I155: 0 | J155: 0 | K155: 2 | L155: 0 | M155: 0 | N155: =SUM($M$31:M155) -> 352.4538532 | O155: 0.04305555556 | Q155: 0.1218902363
A156: 1900-01-01T01:02:30 | B156: 0.04340277778 | C156: 0.0002448729721 | D156: 0.1218902363 | E156: 0.9921830507 | F156: 0.9921830507 | G156: 0.4921830507 | H156: 0 | I156: 0 | J156: 0 | K156: 2 | L156: 0 | M156: 0 | N156: =SUM($M$31:M156) -> 352.4538532 | O156: 0.04340277778 | Q156: 0.1218902363
A157: 1900-01-01T01:03:00 | B157: 0.04375 | C157: 0.0002448729721 | D157: 0.1218902363 | E157: 1.053128169 | F157: 1.053128169 | G157: 0.5531281688 | H157: 0 | I157: 0 | J157: 0 | K157: 2 | L157: 0 | M157: 0 | N157: =SUM($M$31:M157) -> 352.4538532 | O157: 0.04375 | Q157: 0.1218902363
A158: 1900-01-01T01:03:30 | B158: 0.04409722222 | C158: 0.0002448729721 | D158: 0.1218902363 | E158: 1.114073287 | F158: 1.114073287 | G158: 0.6140732869 | H158: 0 | I158: 0 | J158: 0 | K158: 2 | L158: 0 | M158: 0 | N158: =SUM($M$31:M158) -> 352.4538532 | O158: 0.04409722222 | Q158: 0.1218902363
A159: 1900-01-01T01:04:00 | B159: 0.04444444444 | C159: 0.0002448729721 | D159: 0.1218902363 | E159: 1.175018405 | F159: 1.175018405 | G159: 0.6750184051 | H159: 0 | I159: 0 | J159: 0 | K159: 2 | L159: 0 | M159: =L159*Flow/PipeArea*1/2 -> 0 | N159: =SUM($M$31:M159) -> 352.4538532 | O159: =B159 -> 0.04444444444 | Q159: =VLOOKUP(B159,$AF$31:$AK$54,6,TRUE) -> 0.1218902363
A160: 1900-01-01T01:04:30 | B160: =A160-1 -> 0.04479166667 | C160: 0.0002448729721 | D160: =Q160 -> 0.1218902363 | E160: 1.235963523 | F160: 1.235963523 | G160: =E159+((D160-Flow)/2) -> 0.7359635232 | H160: =IF(E159>deltaV,1,0) -> 0 | I160: 0 | J160: 0 | K160: =IF(AND(E160<E159,E160<E161),K159+1,K159) -> 2 | L160: =IF(J160>=1,1,0) -> 0 | M160: 0 | N160: =SUM($M$31:M160) -> 352.4538532 | O160: 0.04479166667 | Q160: 0.1218902363
A161: 1900-01-01T01:05:00 | B161: 0.04513888889 | C161: 0.0002448729721 | D161: 0.1218902363 | E161: 1.296908641 | F161: =E160+(D161/2) -> 1.296908641 | G161: 0.7969086414 | H161: 0 | I161: 0 | J161: 0 | K161: 2 | L161: 0 | M161: 0 | N161: =SUM($M$31:M161) -> 352.4538532 | O161: 0.04513888889 | Q161: 0.1218902363
A162: 1900-01-01T01:05:30 | B162: 0.04548611111 | C162: 0.0002448729721 | D162: 0.1218902363 | E162: 1.357853759 | F162: 1.357853759 | G162: 0.8578537595 | H162: 0 | I162: 0 | J162: 0 | K162: 2 | L162: 0 | M162: 0 | N162: =SUM($M$31:M162) -> 352.4538532 | O162: 0.04548611111 | Q162: 0.1218902363
A163: 1900-01-01T01:06:00 | B163: 0.04583333333 | C163: 0.0002448729721 | D163: 0.1218902363 | E163: 1.418798878 | F163: 1.418798878 | G163: 0.9187988776 | H163: 0 | I163: 0 | J163: 0 | K163: 2 | L163: 0 | M163: 0 | N163: =SUM($M$31:M163) -> 352.4538532 | O163: 0.04583333333 | Q163: 0.1218902363
A164: 1900-01-01T01:06:30 | B164: 0.04618055556 | C164: 0.0002448729721 | D164: 0.1218902363 | E164: 1.479743996 | F164: 1.479743996 | G164: 0.9797439958 | H164: 0 | I164: 0 | J164: 0 | K164: 2 | L164: 0 | M164: 0 | N164: =SUM($M$31:M164) -> 352.4538532 | O164: 0.04618055556 | Q164: 0.1218902363
A165: 1900-01-01T01:07:00 | B165: 0.04652777778 | C165: 0.0002448729721 | D165: 0.1218902363 | E165: 1.540689114 | F165: 1.540689114 | G165: 1.040689114 | H165: 0 | I165: 0 | J165: 0 | K165: 2 | L165: 0 | M165: 0 | N165: =SUM($M$31:M165) -> 352.4538532 | O165: 0.04652777778 | Q165: 0.1218902363
A166: 1900-01-01T01:07:30 | B166: 0.046875 | C166: 0.0002448729721 | D166: 0.1218902363 | E166: 1.601634232 | F166: 1.601634232 | G166: 1.101634232 | H166: 0 | I166: 0 | J166: 0 | K166: 2 | L166: 0 | M166: 0 | N166: =SUM($M$31:M166) -> 352.4538532 | O166: 0.046875 | Q166: 0.1218902363
A167: 1900-01-01T01:08:00 | B167: 0.04722222222 | C167: 0.0002448729721 | D167: 0.1218902363 | E167: 1.66257935 | F167: 1.66257935 | G167: 1.16257935 | H167: 0 | I167: 0 | J167: 0 | K167: 2 | L167: 0 | M167: 0 | N167: =SUM($M$31:M167) -> 352.4538532 | O167: 0.04722222222 | Q167: 0.1218902363
A168: 1900-01-01T01:08:30 | B168: 0.04756944444 | C168: 0.0002448729721 | D168: 0.1218902363 | E168: 1.723524468 | F168: 1.723524468 | G168: 1.223524468 | H168: 0 | I168: 0 | J168: 0 | K168: 2 | L168: 0 | M168: 0 | N168: =SUM($M$31:M168) -> 352.4538532 | O168: 0.04756944444 | Q168: 0.1218902363
A169: 1900-01-01T01:09:00 | B169: 0.04791666667 | C169: 0.0002448729721 | D169: 0.1218902363 | E169: 1.784469586 | F169: 1.784469586 | G169: 1.284469586 | H169: 0 | I169: 0 | J169: 0 | K169: 2 | L169: 0 | M169: 0 | N169: =SUM($M$31:M169) -> 352.4538532 | O169: 0.04791666667 | Q169: 0.1218902363
A170: 1900-01-01T01:09:30 | B170: 0.04826388889 | C170: 0.0002448729721 | D170: 0.1218902363 | E170: 1.845414705 | F170: 1.845414705 | G170: 1.345414705 | H170: 0 | I170: 0 | J170: 0 | K170: 2 | L170: 0 | M170: 0 | N170: =SUM($M$31:M170) -> 352.4538532 | O170: 0.04826388889 | Q170: 0.1218902363
A171: 1900-01-01T01:10:00 | B171: 0.04861111111 | C171: 0.0002448729721 | D171: 0.1218902363 | E171: 1.906359823 | F171: 1.906359823 | G171: 1.406359823 | H171: 0 | I171: 0 | J171: 0 | K171: 2 | L171: 0 | M171: 0 | N171: =SUM($M$31:M171) -> 352.4538532 | O171: 0.04861111111 | Q171: 0.1218902363
A172: 1900-01-01T01:10:30 | B172: 0.04895833333 | C172: 0.0002448729721 | D172: 0.1218902363 | E172: 1.967304941 | F172: 1.967304941 | G172: 1.467304941 | H172: 0 | I172: 0 | J172: 0 | K172: 2 | L172: 0 | M172: 0 | N172: =SUM($M$31:M172) -> 352.4538532 | O172: 0.04895833333 | Q172: 0.1218902363
A173: 1900-01-01T01:11:00 | B173: 0.04930555556 | C173: 0.0002448729721 | D173: 0.1218902363 | E173: 2.028250059 | F173: 2.028250059 | G173: 1.528250059 | H173: 0 | I173: 0 | J173: 0 | K173: 2 | L173: 0 | M173: 0 | N173: =SUM($M$31:M173) -> 352.4538532 | O173: 0.04930555556 | Q173: 0.1218902363
A174: 1900-01-01T01:11:30 | B174: 0.04965277778 | C174: 0.0002448729721 | D174: 0.1218902363 | E174: 2.089195177 | F174: 2.089195177 | G174: 1.589195177 | H174: 0 | I174: 0 | J174: 0 | K174: 2 | L174: 0 | M174: 0 | N174: =SUM($M$31:M174) -> 352.4538532 | O174: 0.04965277778 | Q174: 0.1218902363
A175: 1900-01-01T01:12:00 | B175: 0.05 | C175: 0.0002448729721 | D175: 0.1218902363 | E175: 2.150140295 | F175: 2.150140295 | G175: 1.650140295 | H175: 0 | I175: 0 | J175: 0 | K175: 2 | L175: 0 | M175: 0 | N175: =SUM($M$31:M175) -> 352.4538532 | O175: 0.05 | Q175: 0.1218902363
A176: 1900-01-01T01:12:30 | B176: 0.05034722222 | C176: 0.0002448729721 | D176: 0.1218902363 | E176: 2.211085413 | F176: 2.211085413 | G176: 1.711085413 | H176: 0 | I176: 0 | J176: 0 | K176: 2 | L176: 0 | M176: 0 | N176: =SUM($M$31:M176) -> 352.4538532 | O176: 0.05034722222 | Q176: 0.1218902363
A177: 1900-01-01T01:13:00 | B177: 0.05069444444 | C177: 0.0002448729721 | D177: 0.1218902363 | E177: 2.272030532 | F177: 2.272030532 | G177: 1.772030532 | H177: 0 | I177: 0 | J177: 0 | K177: 2 | L177: 0 | M177: 0 | N177: =SUM($M$31:M177) -> 352.4538532 | O177: 0.05069444444 | Q177: 0.1218902363
A178: 1900-01-01T01:13:30 | B178: 0.05104166667 | C178: 0.0002448729721 | D178: 0.1218902363 | E178: 2.33297565 | F178: 2.33297565 | G178: 1.83297565 | H178: 0 | I178: 0 | J178: 0 | K178: 2 | L178: 0 | M178: 0 | N178: =SUM($M$31:M178) -> 352.4538532 | O178: 0.05104166667 | Q178: 0.1218902363
A179: 1900-01-01T01:14:00 | B179: 0.05138888889 | C179: 0.0002448729721 | D179: 0.1218902363 | E179: 2.393920768 | F179: 2.393920768 | G179: 1.893920768 | H179: 0 | I179: 0 | J179: 0 | K179: 2 | L179: 0 | M179: 0 | N179: =SUM($M$31:M179) -> 352.4538532 | O179: 0.05138888889 | Q179: 0.1218902363
A180: 1900-01-01T01:14:30 | B180: 0.05173611111 | C180: 0.0002448729721 | D180: 0.1218902363 | E180: 2.454865886 | F180: 2.454865886 | G180: 1.954865886 | H180: 0 | I180: 0 | J180: 0 | K180: 2 | L180: 0 | M180: 0 | N180: =SUM($M$31:M180) -> 352.4538532 | O180: 0.05173611111 | Q180: 0.1218902363
A181: 1900-01-01T01:15:00 | B181: 0.05208333333 | C181: 0.0002448729721 | D181: 0.1218902363 | E181: 2.515811004 | F181: 2.515811004 | G181: 2.015811004 | H181: 0 | I181: 0 | J181: 0 | K181: 2 | L181: 0 | M181: 0 | N181: =SUM($M$31:M181) -> 352.4538532 | O181: 0.05208333333 | Q181: 0.1218902363
A182: 1900-01-01T01:15:30 | B182: 0.05243055556 | C182: 0.0002448729721 | D182: 0.1218902363 | E182: 2.576756122 | F182: 2.576756122 | G182: 2.076756122 | H182: 0 | I182: 0 | J182: 0 | K182: 2 | L182: 0 | M182: 0 | N182: =SUM($M$31:M182) -> 352.4538532 | O182: 0.05243055556 | Q182: 0.1218902363
A183: 1900-01-01T01:16:00 | B183: 0.05277777778 | C183: 0.0002448729721 | D183: 0.1218902363 | E183: 2.63770124 | F183: 2.63770124 | G183: 2.13770124 | H183: 0 | I183: 0 | J183: 0 | K183: 2 | L183: 0 | M183: 0 | N183: =SUM($M$31:M183) -> 352.4538532 | O183: 0.05277777778 | Q183: 0.1218902363
A184: 1900-01-01T01:16:30 | B184: 0.053125 | C184: 0.0002448729721 | D184: 0.1218902363 | E184: 2.698646359 | F184: 2.698646359 | G184: 2.198646359 | H184: 0 | I184: 0 | J184: 0 | K184: 2 | L184: 0 | M184: 0 | N184: =SUM($M$31:M184) -> 352.4538532 | O184: 0.053125 | Q184: 0.1218902363
A185: 1900-01-01T01:17:00 | B185: 0.05347222222 | C185: 0.0002448729721 | D185: 0.1218902363 | E185: 2.759591477 | F185: 2.759591477 | G185: 2.259591477 | H185: 0 | I185: 0 | J185: 0 | K185: 2 | L185: 0 | M185: 0 | N185: =SUM($M$31:M185) -> 352.4538532 | O185: 0.05347222222 | Q185: 0.1218902363
A186: 1900-01-01T01:17:30 | B186: 0.05381944444 | C186: 0.0002448729721 | D186: 0.1218902363 | E186: 2.820536595 | F186: 2.820536595 | G186: 2.320536595 | H186: 0 | I186: 0 | J186: 0 | K186: 2 | L186: 0 | M186: 0 | N186: =SUM($M$31:M186) -> 352.4538532 | O186: 0.05381944444 | Q186: 0.1218902363
A187: 1900-01-01T01:18:00 | B187: 0.05416666667 | C187: 0.0002448729721 | D187: 0.1218902363 | E187: =IF(OR(J187=0,I187=-1),F187,G187) -> 2.881481713 | F187: 2.881481713 | G187: 2.381481713 | H187: 0 | I187: =IF(E186<0,-1,0) -> 0 | J187: =IF(E186>0,J186+SUM(H187:I187),0) -> 0 | K187: 2 | L187: 0 | M187: 0 | N187: =SUM($M$31:M187) -> 352.4538532 | O187: 0.05416666667 | Q187: 0.1218902363
A188: 1900-01-01T01:18:30 | B188: 0.05451388889 | C188: 0.0002448729721 | D188: 0.1218902363 | E188: 2.942426831 | F188: 2.942426831 | G188: 2.442426831 | H188: 0 | I188: 0 | J188: 0 | K188: 2 | L188: 0 | M188: 0 | N188: =SUM($M$31:M188) -> 352.4538532 | O188: 0.05451388889 | Q188: 0.1218902363
A189: 1900-01-01T01:19:00 | B189: 0.05486111111 | C189: 0.0002448729721 | D189: 0.1218902363 | E189: 3.003371949 | F189: 3.003371949 | G189: 2.503371949 | H189: 0 | I189: 0 | J189: 0 | K189: 2 | L189: 0 | M189: 0 | N189: =SUM($M$31:M189) -> 352.4538532 | O189: 0.05486111111 | Q189: 0.1218902363
A190: 1900-01-01T01:19:30 | B190: 0.05520833333 | C190: 0.0002448729721 | D190: 0.1218902363 | E190: 2.564317067 | F190: 3.064317067 | G190: 2.564317067 | H190: 1 | I190: 0 | J190: 1 | K190: 2 | L190: 1 | M190: 22.02836583 | N190: =SUM($M$31:M190) -> 374.482219 | O190: 0.05520833333 | Q190: 0.1218902363
A191: 1900-01-01T01:20:00 | B191: 0.05555555556 | C191: 0.0002448729721 | D191: 0.1218902363 | E191: 2.125262186 | F191: 2.625262186 | G191: 2.125262186 | H191: 0 | I191: 0 | J191: 1 | K191: 2 | L191: 1 | M191: 22.02836583 | N191: =SUM($M$31:M191) -> 396.5105849 | O191: 0.05555555556 | Q191: 0.1218902363
A192: 1900-01-01T01:20:30 | B192: 0.05590277778 | C192: 0.0002448729721 | D192: 0.1218902363 | E192: 1.686207304 | F192: 2.186207304 | G192: 1.686207304 | H192: 0 | I192: 0 | J192: 1 | K192: 2 | L192: 1 | M192: 22.02836583 | N192: =SUM($M$31:M192) -> 418.5389507 | O192: 0.05590277778 | Q192: 0.1218902363
A193: 1900-01-01T01:21:00 | B193: 0.05625 | C193: 0.0002448729721 | D193: 0.1218902363 | E193: 1.247152422 | F193: 1.747152422 | G193: 1.247152422 | H193: 0 | I193: 0 | J193: 1 | K193: 2 | L193: 1 | M193: 22.02836583 | N193: =SUM($M$31:M193) -> 440.5673165 | O193: 0.05625 | Q193: 0.1218902363
A194: 1900-01-01T01:21:30 | B194: 0.05659722222 | C194: 0.0002448729721 | D194: 0.1218902363 | E194: 0.80809754 | F194: 1.30809754 | G194: 0.80809754 | H194: 0 | I194: 0 | J194: 1 | K194: 2 | L194: 1 | M194: 22.02836583 | N194: =SUM($M$31:M194) -> 462.5956823 | O194: 0.05659722222 | Q194: 0.1218902363
A195: 1900-01-01T01:22:00 | B195: 0.05694444444 | C195: 0.0002448729721 | D195: 0.1218902363 | E195: 0.3690426581 | F195: 0.8690426581 | G195: 0.3690426581 | H195: 0 | I195: 0 | J195: 1 | K195: 2 | L195: 1 | M195: 22.02836583 | N195: =SUM($M$31:M195) -> 484.6240482 | O195: 0.05694444444 | Q195: 0.1218902363
A196: 1900-01-01T01:22:30 | B196: 0.05729166667 | C196: 0.0002448729721 | D196: 0.1218902363 | E196: -0.07001222375 | F196: 0.4299877762 | G196: -0.07001222375 | H196: 0 | I196: 0 | J196: 1 | K196: 3 | L196: 1 | M196: 22.02836583 | N196: =SUM($M$31:M196) -> 506.652414 | O196: 0.05729166667 | Q196: 0.1218902363
A197: 1900-01-01T01:23:00 | B197: 0.05763888889 | C197: 0.0002448729721 | D197: 0.1218902363 | E197: -0.00906710561 | F197: -0.00906710561 | G197: -0.5090671056 | H197: 0 | I197: -1 | J197: 0 | K197: 3 | L197: 0 | M197: 0 | N197: =SUM($M$31:M197) -> 506.652414 | O197: 0.05763888889 | Q197: 0.1218902363
A198: 1900-01-01T01:23:30 | B198: 0.05798611111 | C198: 0.0002448729721 | D198: 0.1218902363 | E198: 0.05187801253 | F198: 0.05187801253 | G198: -0.4481219875 | H198: 0 | I198: -1 | J198: 0 | K198: 3 | L198: 0 | M198: 0 | N198: =SUM($M$31:M198) -> 506.652414 | O198: 0.05798611111 | Q198: 0.1218902363
A199: 1900-01-01T01:24:00 | B199: 0.05833333333 | C199: 0.0002448729721 | D199: 0.1218902363 | E199: 0.1128231307 | F199: 0.1128231307 | G199: -0.3871768693 | H199: 0 | I199: 0 | J199: 0 | K199: 3 | L199: 0 | M199: 0 | N199: =SUM($M$31:M199) -> 506.652414 | O199: 0.05833333333 | Q199: 0.1218902363
A200: 1900-01-01T01:24:30 | B200: 0.05868055556 | C200: 0.0002448729721 | D200: 0.1218902363 | E200: 0.1737682488 | F200: 0.1737682488 | G200: -0.3262317512 | H200: 0 | I200: 0 | J200: 0 | K200: 3 | L200: 0 | M200: 0 | N200: =SUM($M$31:M200) -> 506.652414 | O200: 0.05868055556 | Q200: 0.1218902363
A201: 1900-01-01T01:25:00 | B201: 0.05902777778 | C201: 0.0002448729721 | D201: 0.1218902363 | E201: 0.2347133669 | F201: 0.2347133669 | G201: -0.2652866331 | H201: 0 | I201: 0 | J201: 0 | K201: 3 | L201: 0 | M201: 0 | N201: =SUM($M$31:M201) -> 506.652414 | O201: 0.05902777778 | Q201: 0.1218902363
A202: 1900-01-01T01:25:30 | B202: 0.059375 | C202: 0.0002448729721 | D202: 0.1218902363 | E202: 0.2956584851 | F202: 0.2956584851 | G202: -0.2043415149 | H202: 0 | I202: 0 | J202: 0 | K202: 3 | L202: 0 | M202: 0 | N202: =SUM($M$31:M202) -> 506.652414 | O202: 0.059375 | Q202: 0.1218902363
A203: 1900-01-01T01:26:00 | B203: 0.05972222222 | C203: 0.0002448729721 | D203: 0.1218902363 | E203: 0.3566036032 | F203: 0.3566036032 | G203: -0.1433963968 | H203: 0 | I203: 0 | J203: 0 | K203: 3 | L203: 0 | M203: 0 | N203: =SUM($M$31:M203) -> 506.652414 | O203: 0.05972222222 | Q203: 0.1218902363
... 4297 more rows

Sheet Hydraulics_gravity (hidden)
A1: Flow and reaeration in partially filled pipes
B2: Dont change
B3: Changable
A5: D | B5: ='Korrosion nedstrøms'!C13 -> 0.4 | C5: [m] | D5: Diameter
A6: s | B6: ='Korrosion nedstrøms'!C15 -> 0.005 | C6: [m/m] | D6: Slope
A7: k | B7: 0.001 | C7: [m] | D7: Roughness
A8: g | B8: 9.81 | C8: [m/s^2] | D8: Gravitation
A9: n | B9: 1.3e-06 | C9: [m^2/s] | D9: Kinematic viskocity
A10: y | B10: =M51 -> 0.038 | C10: [m] | D10: water depth
A25: Partial full pipe | E25: Herefter for en delvis fyldt ledning
A30: A/Afull | B30: =1/PI()*ACOS(1-2*(y/D))-1/PI()*(1-2*y/D)*SQRT(1-(1-2*y/D)^2) -> 0.04826724163 | C30: [-]
A31: A | B31: =O51 -> 0.006065440468 | C31: [m] | D31: Area
A32: V | B32: =R51 -> 0.4751596998 | C32: [m/s] | D32: Flow velocity
A34: b | B34: =S51 -> 0.2345719506 | C34: [m] | D34: width
A35: dm | B35: =Apart/b -> 0.02585748404 | C35: [m] | D35: Hydraulic m. depth
A36: Fr | B36: =Vpart/SQRT(g*dm) -> 0.9434349546 | C36: [-] | D36: Froude number
A39: Rearation | E39: Til sidst kan man beregne genluftningen
A40: KlaO2 | B40: =0.86*(1+0.2*(Fr)^2)*(s*Vpart)^(3/8)*dm^-1 -> 4.064350966 | C40: [1/h] | D40: (=Kl * A/V)
A41: KlaH2S | B41: =B40*0.84 -> 3.414054812 | C41: [1/h]
A43: SOS | B43: =+(760-20)/(760-20)*(14.652-0.41022*B42+0.00799*B42^2-0.0000773*B42^3) -> 14.652 | D43: Sat. oxygen conc.
A44: F | B44: =B40*(B43-B41) -> 45.67495339 | C44: [g/m^3/h] | D44: Reaeration | E44: Det her er geniltningshastigheden i g/m3/time
A47: Manning flow | K47: Fejl? | L47: =IF(K51>A1050,1,0) -> 0
A48: M | B48: =25.4/(B7)^(1/6) -> 80.32185257 | C48: [m^(1/3) s^-1] | D48: Manningtal
K49: Pump | L49: Gravity
A50: Q (m3/s) | B50: Rel depth (%) | C50: y [m] | D50: Teta (rad) | E50: A (m2) | F50: P (m) | G50: R | H50: v (m/s) | I50: w (m) | J50: A/V (1/m) | K50: Q (m3/s) | M50: y [m] | N50: Teta (rad) | O50: A (m2) | P50: P (m) | Q50: R | R50: v (m/s) | S50: w (m)
A51: =H51*E51 -> 1.586442862e-07 | B51: 0.001 | C51: =B51*D -> 0.0004 | D51: =ACOS(1-2*C51/D) -> 0.06325609888 | E51: =D^2/8*(2*D51-SIN(2*D51)) -> 6.744168122e-06 | F51: =D*D51 -> 0.02530243955 | G51: =D/(8*D51)*(2*D51-SIN(2*D51)) -> 0.0002665422087 | H51: =Manning_M*(G51)^(2/3)*s^(1/2) -> 0.02352318082 | I51: =D*(1-(1-2*C51/D)^2)^0.5 -> 0.02528556901 | J51: =F51/E51 -> 3751.751008 | K51: ='Sulfiddannelse i trykledning'!C9/3600/24 -> 0.002893518519 | L51: =VLOOKUP(K51,$A$51:$I$1500,1) -> 0.002882052872 | M51: =VLOOKUP(K51,$A$51:$I$1500,3) -> 0.038 | N51: =VLOOKUP(K51,$A$51:$I$1500,4) -> 0.6266442116 | O51: =VLOOKUP(K51,$A$51:$I$1500,5) -> 0.006065440468 | P51: =VLOOKUP(K51,$A$51:$I$1500,6) -> 0.2506576847 | Q51: =VLOOKUP(K51,$A$51:$I$1500,7) -> 0.02419810299 | R51: =VLOOKUP(K51,$A$51:$I$1500,8) -> 0.4751596998 | S51: =VLOOKUP(K51,$A$51:$I$1500,9) -> 0.2345719506 | T51: =P51/O51 -> 41.32555351
A52: 7.118531688e-07 | B52: 0.002 | C52: 0.0008 | D52: 0.0894725602 | E52: 1.906966065e-05 | F52: 0.03578902408 | G52: 0.0005328354471 | H52: 0.03732909473 | I52: 0.03574129265 | J52: =F52/E52 -> 1876.752017
A53: 1.712598801e-06 | B53: 0.003 | C53: 0.0012 | D53: 0.1095993578 | E53: 3.502267794e-05 | F53: 0.04383974313 | G53: 0.0007988796338 | H53: 0.04889971019 | I53: 0.04375202852 | J53: 1251.753027
A54: 3.192200819e-06 | B54: 0.004 | C54: 0.0016 | D54: 0.126575586 | E54: 5.390472896e-05 | F54: 0.05063023439 | G54: 0.001064674687 | H54: 0.05921930933 | I54: 0.05049514828 | J54: 939.2540389
A55: 5.173633896e-06 | B55: 0.005 | C55: 0.002 | D55: 0.1415394733 | E55: 7.531148503e-05 | F55: 0.05661578933 | G55: 0.001330220525 | H55: 0.06869647961 | I55: 0.05642694392 | J55: 751.7550518
A56: 7.67518185e-06 | B56: 0.006 | C56: 0.0024 | D56: 0.155074673 | E56: 9.896971493e-05 | F56: 0.06202986919 | G56: 0.001595517067 | H56: 0.07755081295 | I56: 0.06178155064 | J56: 626.756066
A57: 1.071207208e-05 | B57: 0.007 | C57: 0.0028 | D57: 0.1675278435 | E57: 0.0001246785252 | F57: 0.0670111374 | G57: 0.001860564229 | H57: 0.08591753927 | I57: 0.06669812591 | J57: 537.4713673
A58: 1.429736353e-05 | B58: 0.008 | C58: 0.0032 | D58: 0.1791248149 | E58: 0.0001522820249 | F58: 0.07164992595 | G58: 0.00212536193 | H58: 0.09388740095 | I58: 0.07126738384 | J58: 470.5080984
A59: 1.844248759e-05 | B59: 0.009 | C59: 0.0036 | D59: 0.1900224235 | E59: 0.0001816546026 | F59: 0.07600896939 | G59: 0.002389910087 | H59: 0.1015250223 | I59: 0.07555236595 | J59: 418.4257832
A60: 2.315760403e-05 | B60: 0.01 | C60: 0.004 | D60: 0.2003348423 | E60: 0.000212692186 | F60: 0.08013393693 | G60: 0.002654208618 | H60: 0.1088784899 | I60: 0.07959899497 | J60: 376.760136
A61: 2.845184856e-05 | B61: 0.011 | C61: 0.0044 | D61: 0.210148249 | E61: 0.0002453066765 | F61: 0.08405929961 | G61: 0.002918257441 | H61: 0.1159848112 | I61: 0.08344195587 | J61: 342.6702477
A62: 3.43335125e-05 | B62: 0.012 | C62: 0.0048 | D62: 0.2195295842 | E62: 0.0002794222137 | F62: 0.0878118337 | G62: 0.003182056472 | H62: 0.1228732392 | I62: 0.08710820857 | J62: 314.2621788
A63: 4.081017759e-05 | B63: 0.013 | C63: 0.0052 | D63: 0.2285320739 | E63: 0.0003149725601 | F63: 0.09141282958 | G63: 0.003445605628 | H63: 0.129567406 | I63: 0.09061920326 | J63: 290.2247407
A64: 4.788881991e-05 | B64: 0.014 | C64: 0.0056 | D64: 0.2371988667 | E64: 0.0003518992087 | F64: 0.09487954668 | G64: 0.003708904827 | H64: 0.1360867508 | I64: 0.09399234011 | J64: 269.6213698
A65: 5.557589185e-05 | B65: 0.015 | C65: 0.006 | D65: 0.2455655175 | E65: 0.0003901499744 | F65: 0.09822620701 | G65: 0.003971953986 | H65: 0.1424475086 | I65: 0.09724196625 | J65: 251.765253
A66: 6.387738783e-05 | B66: 0.016 | C66: 0.0064 | D66: 0.2536617361 | E66: 0.0004296779212 | F66: 0.1014646944 | G66: 0.00423475302 | H66: 0.1486634167 | I66: 0.1003800777 | J66: 236.1412803
A67: 7.27988981e-05 | B67: 0.017 | C67: 0.0068 | D67: 0.2615126492 | E67: 0.0004704405281 | F67: 0.1046050597 | G67: 0.004497301847 | H67: 0.1547462299 | I67: 0.1034168265 | J67: 222.3555443
A68: 8.234565312e-05 | B68: 0.018 | C68: 0.0072 | D68: 0.2691397329 | E68: 0.0005123990303 | F68: 0.1076558931 | G68: 0.004759600383 | H68: 0.1607061065 | I68: 0.1063608951 | J68: 210.1016723
A69: 9.252256084e-05 | B69: 0.019 | C69: 0.0076 | D69: 0.2765615144 | E69: 0.0005555178904 | F69: 0.1106246058 | G69: 0.005021648544 | H69: 0.1665519013 | I69: 0.1092197784 | J69: 199.1377914
A70: 0.0001033342382 | B70: 0.02 | C70: 0.008 | D70: 0.2837941092 | E70: 0.0005997643683 | F70: 0.1135176437 | G70: 0.005283446246 | H70: 0.1722913924 | I70: 0.112 | J70: 189.270403
A71: 0.0001147850379 | B71: 0.021 | C71: 0.0084 | D71: 0.2908516389 | E71: 0.0006451081678 | F71: 0.1163406556 | G71: 0.005544993404 | H71: 0.1779314596 | I71: 0.1147072796 | J71: 180.3428655
A72: 0.000126879072 | B72: 0.022 | C72: 0.0088 | D72: 0.2977465601 | E72: 0.0006915211421 | F72: 0.119098624 | G72: 0.005806289936 | H72: 0.1834782254 | I72: 0.1173466659 | J72: 172.2270178
A73: 0.0001396202317 | B73: 0.023 | C73: 0.0092 | D73: 0.3044899267 | E73: 0.0007389770479 | F73: 0.1217959707 | G73: 0.006067335756 | H73: 0.1889371694 | I73: 0.1199226417 | J73: 164.8169873
A74: 0.000153012205 | B74: 0.024 | C74: 0.0096 | D74: 0.3110916018 | E74: 0.0007874513362 | F74: 0.1244366407 | G74: 0.006328130779 | H74: 0.1943132203 | I74: 0.1224392094 | J74: 158.024547
A75: 0.0001670584924 | B75: 0.025 | C75: 0.01 | D75: 0.3175604293 | E75: 0.0008369209747 | F75: 0.1270241717 | G75: 0.006588674922 | H75: 0.1996108324 | I75: 0.12489996 | J75: 151.7755864
A76: 0.0001817624205 | B76: 0.026 | C76: 0.0104 | D76: 0.3239043758 | E76: 0.0008873642948 | F76: 0.1295617503 | G76: 0.006848968099 | H76: 0.204834048 | I76: 0.1273081301 | J76: 146.0073964
A77: 0.0001971271541 | B77: 0.027 | C77: 0.0108 | D77: 0.3301306476 | E77: 0.0009387608599 | F77: 0.1320522591 | G77: 0.007109010225 | H77: 0.2099865499 | I77: 0.1296666495 | J77: 140.6665581
A78: 0.0002131557072 | B78: 0.028 | C78: 0.0112 | D78: 0.3362457886 | E78: 0.0009910913503 | F78: 0.1344983154 | G78: 0.007368801216 | H78: 0.2150717057 | I78: 0.13197818 | J78: 135.7072841
A79: 0.0002298509527 | B79: 0.029 | C79: 0.0116 | D79: 0.3422557622 | E79: 0.001044337463 | F79: 0.1369023049 | G79: 0.007628340985 | H79: 0.2200926049 | I79: 0.1342451489 | J79: 131.0901023
A80: 0.0002472156313 | B80: 0.03 | C80: 0.012 | D80: 0.3481660213 | E80: 0.001098481825 | F80: 0.1392664085 | G80: 0.007887629447 | H80: 0.2250520908 | I80: 0.1364697769 | J80: 126.7808036
A81: 0.0002652523595 | B81: 0.031 | C81: 0.0124 | D81: 0.353981567 | E81: 0.001153507912 | F81: 0.1415926268 | G81: 0.008146666517 | H81: 0.2299527873 | I81: 0.138654102 | J81: 122.7495931
A82: 0.0002839636365 | B82: 0.032 | C82: 0.0128 | D82: 0.3597069996 | E82: 0.001209399983 | F82: 0.1438827998 | G82: 0.00840545211 | H82: 0.2347971228 | I82: 0.1408 | J82: 118.9704
A83: =H83*E83 -> 0.0003033518512 | B83: 0.033 | C83: =B83*D -> 0.0132 | D83: =ACOS(1-2*C83/D) -> 0.365346562 | E83: =D^2/8*(2*D83-SIN(2*D83)) -> 0.00126614302 | F83: =D*D83 -> 0.1461386248 | G83: =D/(8*D83)*(2*D83-SIN(2*D83)) -> 0.008663986138 | H83: =Manning_M*(G83)^(2/3)*s^(1/2) -> 0.2395873504 | I83: =D*(1-(1-2*C83/D)^2)^0.5 -> 0.1429092019 | J83: 115.4203139
A84: 0.0003234192882 | B84: 0.034 | C84: 0.0136 | D84: 0.3709041775 | E84: 0.001323722666 | F84: 0.148361671 | G84: 0.008922268516 | H84: 0.2443255649 | I84: 0.1449833094 | J84: 112.0791196
A85: 0.0003441681329 | B85: 0.035 | C85: 0.014 | D85: 0.3763834823 | E85: 0.001382125186 | F85: 0.1505533929 | G85: 0.009180299158 | H85: 0.2490137191 | I85: 0.1470238076 | J85: 108.9289121
A86: 0.0003656004768 | B86: 0.036 | C86: 0.0144 | D86: 0.3817878542 | E86: 0.001441337416 | F86: 0.1527151417 | G86: 0.009438077977 | H86: 0.2536536365 | I86: 0.1490320771 | J86: 105.953776
A87: 0.0003877183224 | B87: 0.037 | C87: 0.0148 | D87: 0.3871204376 | E87: 0.001501346723 | F87: 0.154848175 | G87: 0.009695604887 | H87: 0.2582470236 | I87: 0.1510094037 | J87: 103.1395165
A88: 0.0004105235872 | B88: 0.038 | C88: 0.0152 | D88: 0.3923841653 | E88: 0.001562140973 | F88: 0.1569536661 | G88: 0.009952879801 | H88: 0.2627954802 | I88: 0.1529569874 | J88: 100.4734328
A89: 0.0004340181076 | B89: 0.039 | C89: 0.0156 | D89: 0.397581778 | E89: 0.001623708497 | F89: 0.1590327112 | G89: 0.01020990263 | H89: 0.267300509 | I89: 0.1548759504 | J89: 97.94412699
A90: 0.000458203643 | B90: 0.04 | C90: 0.016 | D90: 0.4027158416 | E90: 0.001686038058 | F90: 0.1610863366 | G90: 0.01046667329 | H90: 0.2717635233 | I90: 0.1567673435 | J90: 95.54134078
A91: 0.0004830818787 | B91: 0.041 | C91: 0.0164 | D91: 0.4077887621 | E91: 0.001749118827 | F91: 0.1631155048 | G91: 0.0107231917 | H91: 0.2761858549 | I91: 0.1586321531 | J91: 93.25581674
A92: 0.0005086544296 | B92: 0.042 | C92: 0.0168 | D92: 0.4128027994 | E92: 0.00181294036 | F92: 0.1651211198 | G92: 0.01097945776 | H92: 0.2805687606 | I92: 0.1604713058 | J92: 91.07917913
A93: 0.0005349228429 | B93: 0.043 | C93: 0.0172 | D93: 0.4177600794 | E93: 0.001877492568 | F93: 0.1671040318 | G93: 0.01123547139 | H93: 0.2849134277 | I93: 0.162285674 | J93: 89.0038313
A94: 0.0005618886007 | B94: 0.044 | C94: 0.0176 | D94: 0.4226626048 | E94: 0.001942765704 | F94: 0.1690650419 | G94: 0.0114912325 | H94: 0.2892209799 | I94: 0.1640760799 | J94: 87.02286723
A95: 0.000589553123 | B95: 0.045 | C95: 0.018 | D95: 0.4275122649 | E95: 0.00200875034 | F95: 0.171004906 | G95: 0.011746741 | H95: 0.293492482 | I95: 0.1658432995 | J95: 85.12999478
A96: 0.0006179177701 | B96: 0.046 | C96: 0.0184 | D96: 0.4323108445 | E96: 0.00207543735 | F96: 0.1729243378 | G96: 0.01200199681 | H96: 0.2977289438 | I96: 0.1675880664 | J96: 83.31946892
A97: 0.0006469838445 | B97: 0.047 | C97: 0.0188 | D97: 0.4370600314 | E97: 0.002142817892 | F97: 0.1748240126 | G97: 0.01225699983 | H97: 0.3019313245 | I97: 0.1693110747 | J97: 81.5860336
A98: 0.0006767525933 | B98: 0.048 | C98: 0.0192 | D98: 0.4417614242 | E98: 0.002210883397 | F98: 0.1767045697 | G98: 0.01251174998 | H98: 0.3061005363 | I98: 0.171012982 | J98: 79.92487073
A99: 0.0007072252103 | B99: 0.049 | C99: 0.0196 | D99: 0.4464165382 | E99: 0.002279625548 | F99: 0.1785666153 | G99: 0.01276624718 | H99: 0.3102374471 | I99: 0.1726944122 | J99: 78.33155557
A100: 0.0007384028379 | B100: 0.05 | C100: 0.02 | D100: 0.4510268118 | E100: 0.002349036275 | F100: 0.1804107247 | G100: 0.01302049132 | H100: 0.3143428842 | I100: 0.1743559577 | J100: 76.80201733
A101: 0.0007702865685 | B101: 0.051 | C101: 0.0204 | D101: 0.4555936116 | E101: 0.002419107738 | F101: 0.1822374446 | G101: 0.01327448233 | H101: 0.3184176366 | I101: 0.1759981818 | J101: 75.33250454
A102: 0.000802877447 | B102: 0.052 | C102: 0.0208 | D102: 0.4601182374 | E102: 0.002489832316 | F102: 0.184047295 | G102: 0.01352822011 | H102: 0.3224624573 | I102: 0.1776216203 | J102: 73.91955425
A103: 0.0008361764714 | B103: 0.053 | C103: 0.0212 | D103: 0.4646019265 | E103: 0.002561202598 | F103: 0.1858407706 | G103: 0.01378170457 | H103: 0.3264780663 | I103: 0.1792267837 | J103: 72.55996491
A104: 0.0008701845952 | B104: 0.054 | C104: 0.0216 | D104: 0.4690458583 | E104: 0.002633211371 | F104: 0.1876183433 | G104: 0.01403493563 | H104: 0.3304651517 | I104: 0.1808141587 | J104: 71.2507721
A105: 0.0009049027283 | B105: 0.055 | C105: 0.022 | D105: 0.4734511573 | E105: 0.002705851615 | F105: 0.1893804629 | G105: 0.01428791319 | H105: 0.3344243725 | I105: 0.1823842098 | J105: 69.989227
A106: 0.0009403317387 | B106: 0.056 | C106: 0.0224 | D106: 0.4778188973 | E106: 0.002779116488 | F106: 0.1911275589 | G106: 0.01454063718 | H106: 0.3383563599 | I106: 0.1839373806 | J106: 68.77277714
A107: 0.0009764724535 | B107: 0.057 | C107: 0.0228 | D107: 0.4821501041 | E107: 0.002852999325 | F107: 0.1928600416 | G107: 0.01479310749 | H107: 0.3422617191 | I107: 0.1854740952 | J107: 67.59904915
A108: 0.00101332566 | B108: 0.058 | C108: 0.0232 | D108: 0.4864457586 | E108: 0.002927493625 | F108: 0.1945783035 | G108: 0.01504532403 | H108: 0.3461410307 | I108: 0.1869947593 | J108: 66.46583337
A109: 0.001050892109 | B109: 0.059 | C109: 0.0236 | D109: 0.4907067997 | E109: 0.003002593045 | F109: 0.1962827199 | G109: 0.01529728672 | H109: 0.3499948522 | I109: 0.1884997613 | J109: 65.37106993
A110: 0.001089172511 | B110: 0.06 | C110: 0.024 | D110: 0.4949341263 | E110: 0.003078291395 | F110: 0.1979736505 | G110: 0.01554899547 | H110: 0.3538237194 | I110: 0.1899894734 | J110: 64.31283629
A111: 0.001128167542 | B111: 0.061 | C111: 0.0244 | D111: 0.4991286001 | E111: 0.003154582632 | F111: 0.1996514401 | G111: 0.01580045018 | H111: 0.3576281472 | I111: 0.1914642525 | J111: 63.28933597
A112: 0.001167877844 | B112: 0.062 | C112: 0.0248 | D112: 0.5032910475 | E112: 0.003231460852 | F112: 0.201316419 | G112: 0.01605165077 | H112: 0.3614086313 | I112: 0.1929244412 | J112: 62.2988884
A113: 0.001208304022 | B113: 0.063 | C113: 0.0252 | D113: 0.5074222614 | E113: 0.003308920284 | F113: 0.2029689046 | G113: 0.01630259714 | H113: 0.3651656488 | I113: 0.1943703681 | J113: 61.33991972
A114: 0.001249446651 | B114: 0.064 | C114: 0.0256 | D114: 0.5115230037 | E114: 0.003386955287 | F114: 0.2046092015 | G114: 0.01655328921 | H114: 0.3688996592 | I114: 0.1958023493 | J114: 60.41095443
A115: =H115*E115 -> 0.001291306271 | B115: 0.065 | C115: =B115*D -> 0.026 | D115: =ACOS(1-2*C115/D) -> 0.5155940062 | E115: =D^2/8*(2*D115-SIN(2*D115)) -> 0.003465560344 | F115: =D*D115 -> 0.2062376025 | G115: =D/(8*D115)*(2*D115-SIN(2*D115)) -> 0.01680372688 | H115: =Manning_M*(G115)^(2/3)*s^(1/2) -> 0.3726111056 | I115: =D*(1-(1-2*C115/D)^2)^0.5 -> 0.1972206886 | J115: 59.51060781
A116: 0.001333883393 | B116: 0.066 | C116: 0.0264 | D116: 0.5196359729 | E116: 0.003544730058 | F116: 0.2078543892 | G116: 0.01705391006 | H116: 0.3763004152 | I116: 0.1986256781 | J116: =F116/E116 -> 58.6375791
A117: 0.001377178494 | B117: 0.067 | C117: 0.0268 | D117: 0.5236495809 | E117: 0.003624459144 | F117: 0.2094598324 | G117: 0.01730383866 | H117: 0.3799680005 | I117: 0.2000175992 | J117: 57.79064518
A118: 0.001421192024 | B118: 0.068 | C118: 0.0272 | D118: 0.5276354823 | E118: 0.003704742431 | F118: 0.2110541929 | G118: 0.01755351258 | H118: 0.3836142594 | I118: 0.2013967229 | J118: 56.96865486
A119: 0.001465924403 | B119: 0.069 | C119: 0.0276 | D119: 0.531594305 | E119: 0.003785574851 | F119: 0.212637722 | G119: 0.01780293175 | H119: 0.3872395767 | I119: 0.2027633103 | J119: 56.17052372
A120: 0.001511376022 | B120: 0.07 | C120: 0.028 | D120: 0.5355266543 | E120: 0.003866951441 | F120: 0.2142106617 | G120: 0.01805209605 | H120: 0.3908443239 | I120: 0.2041176132 | J120: 55.39522929
A121: 0.001557547244 | B121: 0.071 | C121: 0.0284 | D121: 0.5394331141 | E121: 0.003948867336 | F121: 0.2157732456 | G121: 0.01830100541 | H121: 0.3944288607 | I121: 0.2054598744 | J121: 54.64180669
A122: 0.001604438407 | B122: 0.072 | C122: 0.0288 | D122: 0.5433142474 | E122: 0.004031317767 | F122: 0.2173256989 | G122: 0.01854965973 | H122: 0.3979935347 | I122: 0.2067903286 | J122: 53.90934467
A123: 0.001652049821 | B123: 0.073 | C123: 0.0292 | D123: 0.5471705979 | E123: 0.004114298055 | F123: 0.2188682391 | G123: 0.01879805892 | H123: 0.4015386826 | I123: 0.2081092021 | J123: 53.1969819
A124: 0.001700381769 | B124: 0.074 | C124: 0.0296 | D124: 0.5510026906 | E124: 0.004197803613 | F124: 0.2204010763 | G124: 0.01904620288 | H124: 0.4050646303 | I124: 0.2094167138 | J124: 52.5039036
A125: 0.001749434511 | B125: 0.075 | C125: 0.03 | D125: 0.554811033 | E125: 0.004281829939 | F125: 0.2219244132 | G125: 0.01929409152 | H125: 0.4085716938 | I125: 0.2107130751 | J125: 51.82933847
A126: 0.00179920828 | B126: 0.076 | C126: 0.0304 | D126: 0.5585961153 | E126: 0.004366372614 | F126: 0.2234384461 | G126: 0.01954172475 | H126: 0.4120601789 | I126: 0.2119984906 | J126: 51.17255578
A127: 0.001849703288 | B127: 0.077 | C127: 0.0308 | D127: 0.562358412 | E127: 0.004451427299 | F127: 0.2249433648 | G127: 0.01978910248 | H127: 0.4155303826 | I127: 0.2132731582 | J127: 50.53286277
A128: 0.001900919721 | B128: 0.078 | C128: 0.0312 | D128: 0.5660983819 | E128: 0.004536989733 | F128: 0.2264393528 | G128: 0.02003622461 | H128: 0.4189825927 | I128: 0.2145372695 | J128: 49.9096022
A129: 0.001952857742 | B129: 0.079 | C129: 0.0316 | D129: 0.5698164694 | E129: 0.004623055732 | F129: 0.2279265877 | G129: 0.02028309105 | H129: 0.4224170885 | I129: 0.21579101 | J129: 49.30215013
A130: 0.002005517492 | B130: 0.08 | C130: 0.032 | D130: 0.5735131044 | E130: 0.004709621182 | F130: 0.2294052418 | G130: 0.0205297017 | H130: 0.4258341414 | I130: 0.2170345595 | J130: 48.70991379
A131: 0.00205889909 | B131: 0.081 | C131: 0.0324 | D131: 0.5771887039 | E131: 0.004796682044 | F131: 0.2308754816 | G131: 0.02077605648 | H131: 0.4292340146 | I131: 0.218268092 | J131: 48.13232969
A132: 0.002113002633 | B132: 0.082 | C132: 0.0328 | D132: 0.5808436717 | E132: 0.004884234343 | F132: 0.2323374687 | G132: 0.02102215528 | H132: 0.432616964 | I132: 0.2194917766 | J132: 47.56886185
A133: 0.002167828196 | B133: 0.083 | C133: 0.0332 | D133: 0.5844783994 | E133: 0.004972274174 | F133: 0.2337913598 | G133: 0.02126799801 | H133: 0.4359832383 | I133: 0.220705777 | J133: 47.01900008
A134: 0.002223375834 | B134: 0.084 | C134: 0.0336 | D134: 0.5880932668 | E134: 0.005060797694 | F134: 0.2352373067 | G134: 0.02151358458 | H134: 0.4393330792 | I134: 0.2219102521 | J134: 46.48225851
A135: 0.002279645583 | B135: 0.085 | C135: 0.034 | D135: 0.5916886424 | E135: 0.005149801126 | F135: 0.236675457 | G135: 0.0217589149 | H135: 0.4426667219 | I135: 0.2231053563 | J135: 45.95817415
A136: 0.002336637456 | B136: 0.086 | C136: 0.0344 | D136: 0.595264884 | E136: 0.00523928075 | F136: 0.2381059536 | G136: 0.02200398886 | H136: 0.445984395 | I136: 0.2242912392 | J136: 45.44630551
A137: 0.002394351448 | B137: 0.087 | C137: 0.0348 | D137: 0.5988223387 | E137: 0.005329232907 | F137: 0.2395289355 | G137: 0.02224880638 | H137: 0.4492863212 | I137: 0.2254680465 | J137: 44.94623141
A138: 0.002452787535 | B138: 0.088 | C138: 0.0352 | D138: 0.602361344 | E138: 0.005419653996 | F138: 0.2409445376 | G138: 0.02249336735 | H138: 0.4525727172 | I138: 0.2266359195 | J138: 44.45754983
A139: 0.002511945674 | B139: 0.089 | C139: 0.0356 | D139: 0.6058822276 | E139: 0.00551054047 | F139: 0.242352891 | G139: 0.02273767169 | H139: 0.4558437938 | I139: 0.2277949956 | J139: 43.97987681
A140: 0.002571825803 | B140: 0.09 | C140: 0.036 | D140: 0.609385308 | E140: 0.005601888837 | F140: 0.2437541232 | G140: 0.0229817193 | H140: 0.4590997567 | I140: 0.2289454083 | J140: 43.51284545
A141: 0.002632427841 | B141: 0.091 | C141: 0.0364 | D141: 0.612870895 | E141: 0.005693695659 | F141: 0.245148358 | G141: 0.02322551008 | H141: 0.4623408062 | I141: 0.2300872878 | J141: 43.05610498
A142: 0.002693751691 | B142: 0.092 | C142: 0.0368 | D142: 0.6163392897 | E142: 0.005785957547 | F142: 0.2465357159 | G142: 0.02346904393 | H142: 0.4655671372 | I142: 0.2312207603 | J142: 42.60931987
A143: 0.002755797238 | B143: 0.093 | C143: 0.0372 | D143: 0.6197907852 | E143: 0.005878671163 | F143: 0.2479163141 | G143: 0.02371232077 | H143: 0.4687789403 | I143: 0.232345949 | J143: 42.17216905
A144: 0.002818564348 | B144: 0.094 | C144: 0.0376 | D144: 0.6232256667 | E144: 0.005971833217 | F144: 0.2492902667 | G144: 0.02395534048 | H144: 0.4719764008 | I144: 0.2334629735 | J144: 41.74434509
A145: 0.002882052872 | B145: 0.095 | C145: 0.038 | D145: 0.6266442116 | E145: 0.006065440468 | F145: 0.2506576847 | G145: 0.02419810299 | H145: 0.4751596998 | I145: 0.2345719506 | J145: 41.32555351
A146: 0.002946262644 | B146: 0.096 | C146: 0.0384 | D146: 0.6300466904 | E146: 0.00615948972 | F146: 0.2520186762 | G146: 0.02444060819 | H146: 0.478329014 | I146: 0.2356729938 | J146: 40.9155121
A147: 0.003011193481 | B147: 0.097 | C147: =B147*D -> 0.0388 | D147: =ACOS(1-2*C147/D) -> 0.6334333663 | E147: =D^2/8*(2*D147-SIN(2*D147)) -> 0.00625397782 | F147: 0.2533733465 | G147: 0.02468285598 | H147: =Manning_M*(G147)^(2/3)*s^(1/2) -> 0.4814845156 | I147: 0.2367662138 | J147: 40.51395029
A148: 0.003076845184 | B148: 0.098 | C148: 0.0392 | D148: 0.6368044958 | E148: 0.006348901662 | F148: 0.2547217983 | G148: 0.02492484626 | H148: 0.4846263728 | I148: 0.2378517185 | J148: 40.12060855
A149: 0.003143217538 | B149: 0.099 | C149: 0.0396 | D149: 0.6401603287 | E149: 0.006444258181 | F149: 0.2560641315 | G149: 0.02516657895 | H149: 0.4877547501 | I149: 0.2389296131 | J149: 39.73523784
A150: 0.003210310314 | B150: 0.1 | C150: 0.04 | D150: 0.6435011088 | E150: 0.006540044352 | F150: 0.2574004435 | G150: 0.02540805393 | H150: 0.4908698078 | I150: 0.24 | J150: 39.35759907
A151: =H151*E151 -> 0.003278123265 | B151: 0.101 | C151: 0.0404 | D151: 0.6468270736 | E151: 0.006636257193 | F151: =D*D151 -> 0.2587308294 | G151: =D/(8*D151)*(2*D151-SIN(2*D151)) -> 0.02564927113 | H151: 0.4939717027 | I151: =D*(1-(1-2*C151/D)^2)^0.5 -> 0.2410629793 | J151: 38.98746265
A152: 0.003346656132 | B152: 0.102 | C152: 0.0408 | D152: 0.6501384547 | E152: 0.006732893761 | F152: 0.2600553819 | G152: 0.02589023043 | H152: 0.497060588 | I152: 0.2421186486 | J152: 38.62460795
A153: 0.003415908638 | B153: 0.103 | C153: 0.0412 | D153: 0.6534354783 | E153: 0.00682995115 | F153: 0.2613741913 | G153: 0.02613093173 | H153: 0.5001366134 | I153: 0.243167103 | J153: 38.26882295
A154: 0.003485880493 | B154: 0.104 | C154: 0.0416 | D154: 0.6567183647 | E154: 0.006927426493 | F154: 0.2626873459 | G154: 0.02637137495 | H154: 0.5031999252 | I154: 0.2442084356 | J154: 37.91990376
A155: 0.003556571394 | B155: 0.105 | C155: 0.042 | D155: 0.6599873294 | E155: 0.007025316961 | F155: 0.2639949318 | G155: 0.02661155998 | H155: 0.5062506665 | I155: 0.2452427369 | J155: 37.57765425
A156: 0.003627981021 | B156: 0.106 | C156: 0.0424 | D156: 0.6632425823 | E156: 0.007123619757 | F156: 0.2652970329 | G156: 0.02685148672 | H156: 0.5092889773 | I156: 0.2462700956 | J156: 37.24188572
A157: 0.003700109042 | B157: 0.107 | C157: 0.0428 | D157: 0.6664843287 | E157: 0.007222332123 | F157: 0.2665937315 | G157: 0.02709115508 | H157: 0.5123149945 | I157: 0.2472905983 | J157: 36.91241651
A158: 0.00377295511 | B158: 0.108 | C158: 0.0432 | D158: 0.669712769 | E158: 0.007321451333 | F158: 0.2678851076 | G158: 0.02733056495 | H158: 0.515328852 | I158: 0.2483043294 | J158: 36.58907167
A159: 0.003846518867 | B159: 0.109 | C159: 0.0436 | D159: 0.6729280988 | E159: 0.007420974695 | F159: 0.2691712395 | G159: 0.02756971624 | H159: 0.5183306809 | I159: 0.2493113716 | J159: 36.27168271
A160: 0.003920799938 | B160: 0.11 | C160: 0.044 | D160: 0.6761305096 | E160: 0.007520899549 | F160: 0.2704522038 | G160: 0.02780860885 | H160: 0.5213206096 | I160: 0.2503118056 | J160: 35.96008723
A161: 0.003995797937 | B161: 0.111 | C161: 0.0444 | D161: 0.6793201881 | E161: 0.007621223269 | F161: 0.2717280753 | G161: 0.02804724268 | H161: 0.5242987636 | I161: 0.2513057102 | J161: 35.6541287
A162: 0.004071512466 | B162: 0.112 | C162: 0.0448 | D162: 0.6824973173 | E162: 0.007721943257 | F162: 0.2729989269 | G162: 0.02828561762 | H162: 0.527265266 | I162: 0.2522931628 | J162: 35.35365617
A163: 0.004147943111 | B163: 0.113 | C163: 0.0452 | D163: 0.6856620756 | E163: 0.007823056949 | F163: 0.2742648303 | G163: 0.02852373358 | H163: 0.5302202372 | I163: 0.2532742387 | J163: 35.05852406
A164: 0.004225089449 | B164: 0.114 | C164: 0.0456 | D164: 0.688814638 | E164: 0.007924561808 | F164: 0.2755258552 | G164: 0.02876159046 | H164: 0.5331637953 | I164: 0.2542490118 | J164: 34.76859186
A165: 0.004302951043 | B165: 0.115 | C165: 0.046 | D165: 0.6919551751 | E165: 0.008026455327 | F165: 0.2767820701 | G165: 0.02899918816 | H165: 0.5360960558 | I165: 0.2552175543 | J165: 34.48372398
A166: 0.004381527443 | B166: 0.116 | C166: 0.0464 | D166: 0.6950838543 | E166: 0.00812873503 | F166: 0.2780335417 | G166: 0.02923652657 | H166: 0.539017132 | I166: 0.2561799368 | J166: 34.20378948
A167: 0.004460818187 | B167: 0.117 | C167: 0.0468 | D167: 0.6982008392 | E167: 0.008231398465 | F167: 0.2792803357 | G167: 0.0294736056 | H167: 0.541927135 | I167: 0.2571362285 | J167: 33.92866192
A168: 0.004540822803 | B168: 0.118 | C168: 0.0472 | D168: 0.7013062898 | E168: 0.008334443209 | F168: 0.2805225159 | G168: 0.02971042514 | H168: 0.5448261736 | I168: 0.2580864971 | J168: 33.65821913
A169: 0.004621540806 | B169: 0.119 | C169: 0.0476 | D169: 0.7044003628 | E169: 0.008437866868 | F169: 0.2817601451 | G169: 0.0299469851 | H169: 0.5477143546 | I169: 0.259030809 | J169: 33.39234306
A170: 0.004702971699 | B170: 0.12 | C170: 0.048 | D170: 0.7074832118 | E170: 0.008541667071 | F170: 0.2829932847 | G170: 0.03018328537 | H170: 0.5505917825 | I170: 0.2599692289 | J170: 33.13091957
A171: 0.004785114973 | B171: 0.121 | C171: 0.0484 | D171: 0.7105549869 | E171: 0.008645841474 | F171: 0.2842219948 | G171: 0.03041932586 | H171: 0.5534585601 | I171: 0.2609018206 | J171: 32.87383832
A172: 0.00486797011 | B172: 0.122 | C172: 0.0488 | D172: 0.7136158354 | E172: 0.008750387759 | F172: 0.2854463342 | G172: 0.03065510645 | H172: 0.5563147879 | I172: 0.2618286463 | J172: 32.62099258
A173: 0.004951536579 | B173: 0.123 | C173: 0.0492 | D173: 0.7166659013 | E173: 0.008855303631 | F173: 0.2866663605 | G173: 0.03089062705 | H173: 0.5591605648 | I173: 0.2627497669 | J173: 32.37227909
A174: 0.005035813839 | B174: 0.124 | C174: 0.0496 | D174: 0.719705326 | E174: 0.00896058682 | F174: 0.2878821304 | G174: 0.03112588755 | H174: 0.5619959876 | I174: 0.2636652423 | J174: 32.12759791
A175: 0.005120801337 | B175: 0.125 | C175: 0.05 | D175: 0.7227342478 | E175: 0.00906623508 | F175: 0.2890936991 | G175: 0.03136088786 | H175: 0.5648211514 | I175: 0.2645751311 | J175: 31.88685232
A176: 0.005206498509 | B176: 0.126 | C176: 0.0504 | D176: 0.7257528024 | E176: 0.009172246187 | F176: 0.2903011209 | G176: 0.03159562787 | H176: 0.5676361497 | I176: 0.2654794907 | J176: 31.64994866
A177: 0.005292904783 | B177: 0.127 | C177: 0.0508 | D177: 0.7287611226 | E177: 0.009278617942 | F177: 0.291504449 | G177: 0.03183010748 | H177: 0.5704410739 | I177: 0.2663783775 | J177: 31.41679621
A178: 0.005380019574 | B178: 0.128 | C178: 0.0512 | D178: 0.7317593389 | E178: 0.009385348167 | F178: 0.2927037356 | G178: 0.03206432658 | H178: 0.5732360141 | I178: 0.2672718466 | J178: 31.1873071
A179: 0.005467842288 | B179: 0.129 | C179: 0.0516 | D179: 0.7347475791 | E179: 0.009492434705 | F179: 0.2938990316 | G179: 0.03229828507 | H179: 0.5760210587 | I179: 0.2681599523 | J179: 30.96139618
A180: 0.005556372319 | B180: 0.13 | C180: 0.052 | D180: 0.7377259685 | E180: 0.009599875421 | F180: 0.2950903874 | G180: 0.03253198285 | H180: 0.5787962943 | I180: 0.2690427475 | J180: =F180/E180 -> 30.73898092
A181: 0.005645609053 | B181: 0.131 | C181: 0.0524 | D181: 0.74069463 | E181: 0.009707668202 | F181: 0.296277852 | G181: 0.03276541981 | H181: 0.5815618061 | I181: 0.2699202845 | J181: 30.5199813
A182: 0.005735551864 | B182: 0.132 | C182: 0.0528 | D182: 0.7436536843 | E182: 0.009815810954 | F182: 0.2974614737 | G182: 0.03299859586 | H182: 0.584317678 | I182: 0.2707926144 | J182: 30.30431975
A183: 0.005826200119 | B183: 0.133 | C183: 0.0532 | D183: 0.7466032497 | E183: 0.009924301605 | F183: 0.2986412999 | G183: 0.03323151088 | H183: 0.587063992 | I183: 0.2716597872 | J183: 30.091921
A184: 0.005917553172 | B184: 0.134 | C184: 0.0536 | D184: 0.7495434423 | E184: 0.0100331381 | F184: 0.2998173769 | G184: 0.03346416477 | H184: 0.5898008292 | I184: 0.2725218523 | J184: 29.88271206
A185: 0.00600961037 | B185: 0.135 | C185: 0.054 | D185: 0.7524743762 | E185: 0.01014231841 | F185: 0.3009897505 | G185: 0.03369655743 | H185: 0.5925282687 | I185: 0.273378858 | J185: 29.67662207
A186: 0.006102371048 | B186: 0.136 | C186: 0.0544 | D186: 0.755396163 | E186: 0.01025184052 | F186: 0.3021584652 | G186: 0.03392868875 | H186: 0.5952463887 | I186: 0.2742308517 | J186: 29.47358229
A187: 0.006195834534 | B187: 0.137 | C187: 0.0548 | D187: 0.7583089128 | E187: 0.01036170243 | F187: 0.3033235651 | G187: 0.03416055864 | H187: 0.597955266 | I187: 0.2750778799 | J187: 29.27352596
A188: 0.006290000145 | B188: 0.138 | C188: 0.0552 | D188: 0.7612127332 | E188: 0.01047190217 | F188: 0.3044850933 | G188: 0.03439216697 | H188: 0.6006549759 | I188: 0.2759199884 | J188: 29.07638826
A189: 0.006384867189 | B189: 0.139 | C189: 0.0556 | D189: 0.7641077303 | E189: 0.01058243777 | F189: 0.3056430921 | G189: 0.03462351365 | H189: 0.6033455926 | I189: 0.2767572221 | J189: 28.88210625
A190: 0.006480434967 | B190: 0.14 | C190: 0.056 | D190: 0.7669940079 | E190: 0.0106933073 | F190: 0.3067976031 | G190: 0.03485459858 | H190: 0.6060271891 | I190: 0.2775896252 | J190: 28.69061876
A191: 0.006576702767 | B191: 0.141 | C191: 0.0564 | D191: 0.7698716682 | E191: 0.01080450883 | F191: 0.3079486673 | G191: 0.03508542164 | H191: 0.608699837 | I191: 0.2784172408 | J191: 28.5018664
A192: 0.006673669871 | B192: 0.142 | C192: 0.0568 | D192: 0.7727408116 | E192: 0.01091604046 | F192: 0.3090963246 | G192: 0.03531598273 | H192: 0.611363607 | I192: 0.2792401117 | J192: 28.3157914
A193: 0.006771335552 | B193: 0.143 | C193: 0.0572 | D193: 0.7756015366 | E193: 0.0110279003 | F193: 0.3102406146 | G193: 0.03554628175 | H193: 0.6140185683 | I193: 0.2800582796 | J193: 28.13233764
A194: 0.006869699073 | B194: 0.144 | C194: 0.0576 | D194: 0.7784539402 | E194: 0.01114008646 | F194: 0.3113815761 | G194: 0.03577631858 | H194: 0.6166647894 | I194: 0.2808717857 | J194: 27.95145056
A195: 0.00696875969 | B195: 0.145 | C195: 0.058 | D195: 0.7812981174 | E195: 0.01125259711 | F195: 0.312519247 | G195: 0.03600609312 | H195: 0.6193023372 | I195: 0.2816806703 | J195: 27.77307709
A196: 0.007068516648 | B196: 0.146 | C196: 0.0584 | D196: 0.7841341621 | E196: 0.01136543039 | F196: 0.3136536648 | G196: 0.03623560527 | H196: 0.6219312781 | I196: 0.2824849731 | J196: 27.59716562
A197: 0.007168969187 | B197: 0.147 | C197: 0.0588 | D197: 0.7869621659 | E197: 0.01147858448 | F197: 0.3147848664 | G197: 0.03646485492 | H197: 0.6245516769 | I197: 0.2832847331 | J197: 27.42366595
A198: 0.007270116535 | B198: 0.148 | C198: 0.0592 | D198: 0.7897822196 | E198: 0.01159205758 | F198: 0.3159128878 | G198: 0.03669384195 | H198: 0.6271635977 | I198: 0.2840799887 | J198: 27.25252922
A199: 0.007371957913 | B199: 0.149 | C199: 0.0596 | D199: 0.7925944118 | E199: 0.01170584788 | F199: 0.3170377647 | G199: 0.03692256627 | H199: 0.6297671036 | I199: 0.2848707777 | J199: 27.08370791
A200: 0.007474492537 | B200: 0.15 | C200: 0.06 | D200: 0.7953988302 | E200: 0.01181995361 | F200: 0.3181595321 | G200: 0.03715102776 | H200: 0.6323622566 | I200: 0.2856571371 | J200: 26.91715574
A201: 0.007577719609 | B201: 0.151 | C201: 0.0604 | D201: 0.7981955606 | E201: 0.011934373 | F201: 0.3192782242 | G201: 0.03737922632 | H201: 0.6349491178 | I201: 0.2864391035 | J201: 26.75282767
A202: 0.007681638327 | B202: 0.152 | C202: 0.0608 | D202: 0.8009846877 | E202: 0.01204910431 | F202: 0.3203938751 | G202: 0.03760716183 | H202: 0.6375277473 | I202: 0.2872167126 | J202: 26.59067984
A203: 0.00778624788 | B203: 0.153 | C203: 0.0612 | D203: 0.8037662946 | E203: 0.0121641458 | F203: 0.3215065178 | G203: 0.0378348342 | H203: 0.6400982043 | I203: 0.2879899998 | J203: 26.43066955
A204: 0.00789154745 | B204: 0.154 | C204: 0.0616 | D204: 0.8065404632 | E204: 0.01227949574 | F204: 0.3226161853 | G204: 0.0380622433 | H204: 0.6426605472 | I204: 0.2887589999 | J204: 26.27275518
A205: 0.007997536209 | B205: 0.155 | C205: 0.062 | D205: 0.809307274 | E205: 0.01239515243 | F205: 0.3237229096 | G205: 0.03828938904 | H205: 0.6452148334 | I205: 0.2895237469 | J205: 26.11689622
A206: 0.008104213323 | B206: 0.156 | C206: 0.0624 | D206: 0.8120668064 | E206: 0.01251111417 | F206: 0.3248267226 | G206: 0.0385162713 | H206: 0.6477611196 | I206: 0.2902842745 | J206: 25.96305318
A207: 0.00821157795 | B207: 0.157 | C207: 0.0628 | D207: 0.8148191382 | E207: 0.01262737929 | F207: 0.3259276553 | G207: 0.03874288998 | H207: 0.6502994614 | I207: 0.2910406157 | J207: 25.81118756
A208: 0.008319629241 | B208: 0.158 | C208: 0.0632 | D208: 0.8175643463 | E208: 0.01274394611 | F208: 0.3270257385 | G208: 0.03896924496 | H208: 0.6528299138 | I208: 0.2917928032 | J208: 25.66126188
A209: 0.008428366337 | B209: 0.159 | C209: 0.0636 | D209: 0.8203025061 | E209: 0.01286081298 | F209: 0.3281210024 | G209: 0.03919533613 | H209: 0.6553525309 | I209: 0.2925408689 | J209: 25.51323955
A210: 0.008537788374 | B210: 0.16 | C210: 0.064 | D210: 0.8230336921 | E210: 0.01297797826 | F210: 0.3292134769 | G210: 0.03942116339 | H210: 0.657867366 | I210: 0.2932848445 | J210: 25.36708494
A211: 0.008647894481 | B211: 0.161 | C211: =B211*D -> 0.0644 | D211: =ACOS(1-2*C211/D) -> 0.8257579776 | E211: =D^2/8*(2*D211-SIN(2*D211)) -> 0.01309544032 | F211: 0.330303191 | G211: 0.03964672662 | H211: =Manning_M*(G211)^(2/3)*s^(1/2) -> 0.6603744717 | I211: 0.2940247609 | J211: 25.22276327
A212: 0.008758683777 | B212: 0.162 | C212: 0.0648 | D212: 0.8284754346 | E212: 0.01321319753 | F212: 0.3313901738 | G212: 0.03987202572 | H212: 0.6628738998 | I212: 0.2947606487 | J212: 25.08024065
A213: 0.008870155376 | B213: 0.163 | C213: 0.0652 | D213: 0.8311861341 | E213: 0.0133312483 | F213: 0.3324744536 | G213: 0.04009706056 | H213: 0.6653657013 | I213: 0.295492538 | J213: 24.93948399
A214: 0.008982308384 | B214: 0.164 | C214: 0.0656 | D214: 0.833890146 | E214: 0.01344959103 | F214: 0.3335560584 | G214: 0.04032183105 | H214: 0.6678499265 | I214: 0.2962204584 | J214: 24.80046104
A215: =H215*E215 -> 0.0090951419 | B215: 0.165 | C215: 0.066 | D215: 0.8365875393 | E215: 0.01356822414 | F215: =D*D215 -> 0.3346350157 | G215: =D/(8*D215)*(2*D215-SIN(2*D215)) -> 0.04054633707 | H215: 0.6703266251 | I215: =D*(1-(1-2*C215/D)^2)^0.5 -> 0.2969444392 | J215: 24.6631403
A216: 0.009208655015 | B216: 0.166 | C216: 0.0664 | D216: 0.8392783819 | E216: 0.01368714606 | F216: 0.3357113527 | G216: 0.04077057851 | H216: 0.672795846 | I216: 0.2976645091 | J216: 24.52749106
A217: 0.009322846816 | B217: 0.167 | C217: 0.0668 | D217: 0.8419627404 | E217: 0.01380635523 | F217: 0.3367850962 | G217: 0.04099455526 | H217: 0.6752576374 | I217: 0.2983806964 | J217: 24.39348332
A218: 0.009437716379 | B218: 0.168 | C218: 0.0672 | D218: 0.8446406808 | E218: 0.01392585011 | F218: 0.3378562723 | G218: 0.0412182672 | H218: 0.6777120468 | I218: 0.299093029 | J218: 24.26108781
A219: 0.009553262777 | B219: 0.169 | C219: 0.0676 | D219: 0.847312268 | E219: 0.01404562915 | F219: 0.3389249072 | G219: 0.04144171422 | H219: 0.6801591212 | I219: 0.2998015344 | J219: 24.13027595
A220: 0.009669485072 | B220: 0.17 | C220: 0.068 | D220: 0.8499775659 | E220: 0.01416569083 | F220: 0.3399910264 | G220: 0.04166489621 | H220: 0.6825989067 | I220: 0.3005062395 | J220: 24.00101982
A221: 0.009786382323 | B221: 0.171 | C221: 0.0684 | D221: 0.8526366376 | E221: 0.01428603364 | F221: 0.341054655 | G221: 0.04188781307 | H221: 0.6850314491 | I221: 0.3012071712 | J221: 23.87329218
A222: 0.009903953579 | B222: 0.172 | C222: 0.0688 | D222: 0.855289545 | E222: 0.01440665606 | F222: 0.342115818 | G222: 0.04211046466 | H222: 0.6874567932 | I222: 0.3019043557 | J222: 23.74706639
A223: 0.01002219789 | B223: 0.173 | C223: 0.0692 | D223: 0.8579363495 | E223: 0.01452755662 | F223: 0.3431745398 | G223: 0.04233285089 | H223: 0.6898749836 | I223: 0.3025978189 | J223: 23.62231645
A224: 0.01014111428 | B224: 0.174 | C224: 0.0696 | D224: 0.8605771113 | E224: 0.01464873383 | F224: 0.3442308445 | G224: 0.04255497164 | H224: 0.6922860638 | I224: 0.3032875863 | J224: 23.49901695
A225: 0.0102607018 | B225: 0.175 | C225: 0.07 | D225: 0.8632118901 | E225: 0.0147701862 | F225: 0.345284756 | G225: 0.04277682679 | H225: 0.6946900773 | I225: 0.3039736831 | J225: 23.37714307
... 825 more rows

Sheet Gravitationsledning beregning (hidden)
C1: Gastransport | E1: 0.1 | F1: Denne andel af frigivelsen sendes nedstrøms til næste beregningscelle
C3: WW volumen per beregningscelle | G3: =dm*(D16-D15) -> 0.02585748404 | H3: (m3) | I3: Drop structure (to be included later) | L3: Fraction of H2S reacting | N3: 0.3
C4: Gas volumen per beregningscelle | G4: =(PI()*(D16-D15)*(D/2)^2)-G3 -> 0.0998062221 | H4: (m3) | I4: so | J4: 1
C5: Korrosionsareal per beregningscelle | G5: =(PI()*D)-Hydraulics_gravity!P51*(D16-D15) -> 1.005979377 | H5: (m2) | I5: So,d | J5: 0 | K5: (g/m3)
C6: A/V | G6: =G5/G4 -> 10.07932527 | H6: (1/m) | I6: % of sat | J6: =H17/10 -> 0.1031821539
C8: Gas volumen første beregningscelle | G8: ='Korrosion nedstrøms'!$C$8*PI()*('Korrosion nedstrøms'!C7/2)^2 -> 0.7853981634 | H8: (m3) | I8: H2S release | J8: 0 | K8: of equlibrium
C9: Korrosionsareal første beregningscelle | G9: =PI()*'Korrosion nedstrøms'!C7*'Korrosion nedstrøms'!C8 -> 3.141592654 | H9: (m2) | J9: 0 | K9: ppm | O9: Tilladt korrosion
C10: A/V | G10: =G9/G8 -> 4 | H10: (1/m) | J10: 0 | K10: mol | P10: ='Korrosion nedstrøms'!C14*'Korrosion nedstrøms'!C18 -> 32.5 | Q10: mm
I11: Flow during pumping | J11: 0 | K11: L/s
C12: Tid | D12: Afstand | E12: Total sulfide | F12: Dissolved H2S | G12: HS- | H12: O2 | J12: H2S release | K12: H2S oxidation | L12: H2S ox bioflim | M12: O2 adsoprtion | N12: H2S ads korrosion | O12: Korrosion | P12: Levetid
C13: (s) | D13: (m) | E13: (mg/L) | F13: (mg/L) | G13: (mg/L) | H13: (mg/L) | J13: (g/m3/h) | K13: (g/m3/h) | L13: (g/m3/h) | M13: (g/m3/h) | N13: (g/m2/h) | O13: (mm/y) | P13: (yr)
C14: 0 | D14: 0 | E14: ='Trykledning beregning'!$Y$32 -> 3.318075738 | F14: =E14*'Trykledning beregning'!$G$14 -> 1.283641331 | G14: =E14-F14 -> 2.034434407 | H14: 1
B15: Drop | C15: 0 | D15: 0 | E15: =E14-(J15+K15)*(C15-C14)/3600 -> 3.318075738 | F15: =E15*'Trykledning beregning'!$G$14 -> 1.283641331 | G15: 2.034434407 | H15: =H14+(M15-K15*1.2-L15*0.5)*(C15-C14)/3600 -> 1 | J15: =Hydraulics_gravity!$B$41*1.03^('Sulfiddannelse i trykledning'!$C$11-20)*F14 -> 3.893725064 | M15: =Hydraulics_gravity!$B$40*1.03^('Sulfiddannelse i trykledning'!$C$11-20)*(10-H14) -> 32.50010873 | N15: =(1-$E$1)*(J16+J15)*$G$3/$G$9 -> 0.05768649874 | O15: =IF(11.4*(N15/'Korrosion nedstrøms'!$C$17)*'Sulfiddannelse i trykledning'!$C$34>0,11.4*(N15/'Korrosion nedstrøms'!$C$17)*'Sulfiddannelse i trykledning'!$C$34,0.00001) -> 0.5697142652 | P15: =IF($P$10/O15<100,$P$10/O15,100) -> 57.04614047
B16: Gravity | C16: =D16/Hydraulics_gravity!$R$51+$C$15 -> 2.104555585 | D16: 1 | E16: =IF(E15-(J16+K16+L16)*(C16-C15)/3600>0,E15-(J16+K16+L16)*(C16-C15)/3600,0) -> 3.310964046 | F16: =E16*'Trykledning beregning'!$G$14 -> 1.280890079 | G16: 2.030073967 | H16: =H15+(M16-K16*1.2-L16*0.5)*(C16-C15)/3600 -> 1.015933975 | J16: =Hydraulics_gravity!$B$41*1.03^('Sulfiddannelse i trykledning'!$C$11-20)*F15 -> 3.893725064 | K16: =(0.349+0.671)*H15^0.1*G15*1.07^('Sulfiddannelse i trykledning'!$C$11-20) -> 1.583101474 | L16: =2.4/24*E15^0.5*H15^0.5*1.03^('Sulfiddannelse i trykledning'!$C$11-20)*Hydraulics_gravity!$T$51 -> 6.688256617 | M16: =Hydraulics_gravity!$B$40*1.03^('Sulfiddannelse i trykledning'!$C$11-20)*(10-H15) -> 32.50010873 | N16: =(($E$1*J16)+(1-$E$1)*J17)*$G$3/$G$5 -> 0.09989043704 | O16: =IF(11.4*(N16/'Korrosion nedstrøms'!$C$17)*k_corr>0,11.4*(N16/'Korrosion nedstrøms'!$C$17)*k_corr,0.00001) -> 1.708126473 | P16: =IF($P$10/O16<100,$P$10/O16,100) -> 19.02669416
C17: =D17/Hydraulics_gravity!$R$51+$C$15 -> 4.20911117 | D17: 2 | E17: =IF(E16-(J17+K17+L17)*(C17-C16)/3600>0,E16-(J17+K17+L17)*(C17-C16)/3600,0) -> 3.303830953 | F17: =E17*'Trykledning beregning'!$G$14 -> 1.278130548 | G17: 2.025700405 | H17: 1.031821539 | J17: =Hydraulics_gravity!$B$41*1.03^('Sulfiddannelse i trykledning'!$C$11-20)*F16 -> 3.885379571 | K17: =(0.349+0.671)*H16^0.1*G16*1.07^('Sulfiddannelse i trykledning'!$C$11-20) -> 1.582207619 | L17: =2.4/24*E16^0.5*H16^0.5*1.03^('Sulfiddannelse i trykledning'!$C$11-20)*Hydraulics_gravity!$T$51 -> 6.734103003 | M17: =Hydraulics_gravity!$B$40*1.03^('Sulfiddannelse i trykledning'!$C$11-20)*(10-H16) -> 32.44256918 | N17: 0.09967534529 | O17: =IF(11.4*(N17/'Korrosion nedstrøms'!$C$17)*k_corr>0,11.4*(N17/'Korrosion nedstrøms'!$C$17)*k_corr,0.00001) -> 1.704448405 | P17: 19.06775231
C18: =D18/Hydraulics_gravity!$R$51+$C$15 -> 6.313666755 | D18: 3 | E18: 3.296676926 | F18: =E18*'Trykledning beregning'!$G$14 -> 1.275362918 | G18: 2.021314007 | H18: 1.047663042 | J18: =Hydraulics_gravity!$B$41*1.03^('Sulfiddannelse i trykledning'!$C$11-20)*F17 -> 3.877008966 | K18: =(0.349+0.671)*H17^0.1*G17*1.07^('Sulfiddannelse i trykledning'!$C$11-20) -> 1.581250715 | L18: =2.4/24*E17^0.5*H17^0.5*1.03^('Sulfiddannelse i trykledning'!$C$11-20)*Hydraulics_gravity!$T$51 -> 6.779239607 | M18: =Hydraulics_gravity!$B$40*1.03^('Sulfiddannelse i trykledning'!$C$11-20)*(10-H17) -> 32.38519723 | N18: 0.0994596207 | O18: =IF(11.4*(N18/'Korrosion nedstrøms'!$C$17)*k_corr>0,11.4*(N18/'Korrosion nedstrøms'!$C$17)*k_corr,0.00001) -> 1.700759514 | P18: 19.10910963
C19: =D19/Hydraulics_gravity!$R$51+$C$15 -> 8.418222339 | D19: 4 | E19: 3.28950242 | F19: =E19*'Trykledning beregning'!$G$14 -> 1.272587366 | G19: 2.016915054 | H19: 1.063458825 | J19: =Hydraulics_gravity!$B$41*1.03^('Sulfiddannelse i trykledning'!$C$11-20)*F18 -> 3.868613794 | K19: =(0.349+0.671)*H18^0.1*G18*1.07^('Sulfiddannelse i trykledning'!$C$11-20) -> 1.580232571 | L19: =2.4/24*E18^0.5*H18^0.5*1.03^('Sulfiddannelse i trykledning'!$C$11-20)*Hydraulics_gravity!$T$51 -> 6.823682109 | M19: =Hydraulics_gravity!$B$40*1.03^('Sulfiddannelse i trykledning'!$C$11-20)*(10-H18) -> 32.32799161 | N19: 0.09924327706 | O19: =IF(11.4*(N19/'Korrosion nedstrøms'!$C$17)*k_corr>0,11.4*(N19/'Korrosion nedstrøms'!$C$17)*k_corr,0.00001) -> 1.697060038 | P19: 19.1507662
C20: =D20/Hydraulics_gravity!$R$51+$C$15 -> 10.52277792 | D20: 5 | E20: 3.282307883 | F20: =E20*'Trykledning beregning'!$G$14 -> 1.269804065 | G20: 2.012503818 | H20: 1.079209227 | J20: =Hydraulics_gravity!$B$41*1.03^('Sulfiddannelse i trykledning'!$C$11-20)*F19 -> 3.860194592 | K20: =(0.349+0.671)*H19^0.1*G19*1.07^('Sulfiddannelse i trykledning'!$C$11-20) -> 1.579154915 | L20: =2.4/24*E19^0.5*H19^0.5*1.03^('Sulfiddannelse i trykledning'!$C$11-20)*Hydraulics_gravity!$T$51 -> 6.867445561 | M20: =Hydraulics_gravity!$B$40*1.03^('Sulfiddannelse i trykledning'!$C$11-20)*(10-H19) -> 32.27095109 | N20: 0.09902632783 | O20: =IF(11.4*(N20/'Korrosion nedstrøms'!$C$17)*k_corr>0,11.4*(N20/'Korrosion nedstrøms'!$C$17)*k_corr,0.00001) -> 1.693350206 | P20: 19.19272215
C21: =D21/Hydraulics_gravity!$R$51+$C$15 -> 12.62733351 | D21: 6 | E21: 3.27509375 | F21: =E21*'Trykledning beregning'!$G$14 -> 1.267013182 | G21: =E21-F21 -> 2.008080567 | H21: 1.094914578 | J21: =Hydraulics_gravity!$B$41*1.03^('Sulfiddannelse i trykledning'!$C$11-20)*F20 -> 3.851751883 | K21: =(0.349+0.671)*H20^0.1*G20*1.07^('Sulfiddannelse i trykledning'!$C$11-20) -> 1.578019403 | L21: =2.4/24*E20^0.5*H20^0.5*1.03^('Sulfiddannelse i trykledning'!$C$11-20)*Hydraulics_gravity!$T$51 -> 6.910544425 | M21: =Hydraulics_gravity!$B$40*1.03^('Sulfiddannelse i trykledning'!$C$11-20)*(10-H20) -> 32.21407445 | N21: 0.09880878621 | O21: =IF(11.4*(N21/'Korrosion nedstrøms'!$C$17)*k_corr>0,11.4*(N21/'Korrosion nedstrøms'!$C$17)*k_corr,0.00001) -> 1.689630244 | P21: 19.23497766
C22: =D22/Hydraulics_gravity!$R$51+$C$15 -> 14.73188909 | D22: 7 | E22: 3.267860447 | F22: =E22*'Trykledning beregning'!$G$14 -> 1.264214884 | G22: 2.003645563 | H22: 1.110575202 | J22: =Hydraulics_gravity!$B$41*1.03^('Sulfiddannelse i trykledning'!$C$11-20)*F21 -> 3.843286177 | K22: =(0.349+0.671)*H21^0.1*G21*1.07^('Sulfiddannelse i trykledning'!$C$11-20) -> 1.576827619 | L22: =2.4/24*E21^0.5*H21^0.5*1.03^('Sulfiddannelse i trykledning'!$C$11-20)*Hydraulics_gravity!$T$51 -> 6.952992606 | M22: =Hydraulics_gravity!$B$40*1.03^('Sulfiddannelse i trykledning'!$C$11-20)*(10-H21) -> 32.15736049 | N22: 0.09859066509 | O22: =IF(11.4*(N22/'Korrosion nedstrøms'!$C$17)*k_corr>0,11.4*(N22/'Korrosion nedstrøms'!$C$17)*k_corr,0.00001) -> 1.685900373 | P22: 19.27753295
C23: =D23/Hydraulics_gravity!$R$51+$C$15 -> 16.83644468 | D23: 8 | E23: 3.260608392 | F23: =E23*'Trykledning beregning'!$G$14 -> 1.261409331 | G23: 1.999199061 | H23: 1.126191419 | J23: =Hydraulics_gravity!$B$41*1.03^('Sulfiddannelse i trykledning'!$C$11-20)*F22 -> 3.834797976 | K23: =(0.349+0.671)*H22^0.1*G22*1.07^('Sulfiddannelse i trykledning'!$C$11-20) -> 1.575581081 | L23: =2.4/24*E22^0.5*H22^0.5*1.03^('Sulfiddannelse i trykledning'!$C$11-20)*Hydraulics_gravity!$T$51 -> 6.994803478 | M23: =Hydraulics_gravity!$B$40*1.03^('Sulfiddannelse i trykledning'!$C$11-20)*(10-H22) -> 32.10080805 | N23: 0.09837197711 | O23: =IF(11.4*(N23/'Korrosion nedstrøms'!$C$17)*k_corr>0,11.4*(N23/'Korrosion nedstrøms'!$C$17)*k_corr,0.00001) -> 1.682160809 | P23: 19.3203883
C24: =D24/Hydraulics_gravity!$R$51+$C$15 -> 18.94100026 | D24: 9 | E24: 3.253337995 | F24: =E24*'Trykledning beregning'!$G$14 -> 1.258596682 | G24: 1.994741313 | H24: 1.141763542 | J24: =Hydraulics_gravity!$B$41*1.03^('Sulfiddannelse i trykledning'!$C$11-20)*F23 -> 3.826287771 | K24: =(0.349+0.671)*H23^0.1*G23*1.07^('Sulfiddannelse i trykledning'!$C$11-20) -> 1.574281245 | L24: =2.4/24*E23^0.5*H23^0.5*1.03^('Sulfiddannelse i trykledning'!$C$11-20)*Hydraulics_gravity!$T$51 -> 7.035989916 | M24: =Hydraulics_gravity!$B$40*1.03^('Sulfiddannelse i trykledning'!$C$11-20)*(10-H23) -> 32.04441597 | N24: 0.09815273462 | O24: =IF(11.4*(N24/'Korrosion nedstrøms'!$C$17)*k_corr>0,11.4*(N24/'Korrosion nedstrøms'!$C$17)*k_corr,0.00001) -> 1.678411762 | P24: 19.363544
C25: =D25/Hydraulics_gravity!$R$51+$C$15 -> 21.04555585 | D25: 10 | E25: 3.246049656 | F25: =E25*'Trykledning beregning'!$G$14 -> 1.255777092 | G25: 1.990272564 | H25: 1.15729188 | J25: =Hydraulics_gravity!$B$41*1.03^('Sulfiddannelse i trykledning'!$C$11-20)*F24 -> 3.817756041 | K25: =(0.349+0.671)*H24^0.1*G24*1.07^('Sulfiddannelse i trykledning'!$C$11-20) -> 1.572929511 | L25: =2.4/24*E24^0.5*H24^0.5*1.03^('Sulfiddannelse i trykledning'!$C$11-20)*Hydraulics_gravity!$T$51 -> 7.076564326 | M25: =Hydraulics_gravity!$B$40*1.03^('Sulfiddannelse i trykledning'!$C$11-20)*(10-H24) -> 31.98818311 | N25: 0.09793294974 | O25: =IF(11.4*(N25/'Korrosion nedstrøms'!$C$17)*k_corr>0,11.4*(N25/'Korrosion nedstrøms'!$C$17)*k_corr,0.00001) -> 1.67465344 | P25: 19.40700041
C26: =D26/Hydraulics_gravity!$R$51+$C$15 -> 23.15011143 | D26: 11 | E26: 3.238743768 | F26: =E26*'Trykledning beregning'!$G$14 -> 1.252950713 | G26: 1.985793055 | H26: 1.172776736 | J26: =Hydraulics_gravity!$B$41*1.03^('Sulfiddannelse i trykledning'!$C$11-20)*F25 -> 3.809203256 | K26: =(0.349+0.671)*H25^0.1*G25*1.07^('Sulfiddannelse i trykledning'!$C$11-20) -> 1.571527221 | L26: =2.4/24*E25^0.5*H25^0.5*1.03^('Sulfiddannelse i trykledning'!$C$11-20)*Hydraulics_gravity!$T$51 -> 7.116538661 | M26: =Hydraulics_gravity!$B$40*1.03^('Sulfiddannelse i trykledning'!$C$11-20)*(10-H25) -> 31.93210837 | N26: 0.09771263433 | O26: =IF(11.4*(N26/'Korrosion nedstrøms'!$C$17)*k_corr>0,11.4*(N26/'Korrosion nedstrøms'!$C$17)*k_corr,0.00001) -> 1.670886047 | P26: 19.45075791
C27: =D27/Hydraulics_gravity!$R$51+$C$15 -> 25.25466702 | D27: 12 | E27: 3.231420716 | F27: =E27*'Trykledning beregning'!$G$14 -> 1.250117693 | G27: 1.981303022 | H27: 1.188218409 | J27: =Hydraulics_gravity!$B$41*1.03^('Sulfiddannelse i trykledning'!$C$11-20)*F26 -> 3.800629877 | K27: =(0.349+0.671)*H26^0.1*G26*1.07^('Sulfiddannelse i trykledning'!$C$11-20) -> 1.570075666 | L27: =2.4/24*E26^0.5*H26^0.5*1.03^('Sulfiddannelse i trykledning'!$C$11-20)*Hydraulics_gravity!$T$51 -> 7.155924451 | M27: =Hydraulics_gravity!$B$40*1.03^('Sulfiddannelse i trykledning'!$C$11-20)*(10-H26) -> 31.87619065 | N27: 0.09749180004 | O27: =IF(11.4*(N27/'Korrosion nedstrøms'!$C$17)*k_corr>0,11.4*(N27/'Korrosion nedstrøms'!$C$17)*k_corr,0.00001) -> 1.667109781 | P27: 19.49481694
C28: =D28/Hydraulics_gravity!$R$51+$C$15 -> 27.3592226 | D28: 13 | E28: 3.224080876 | F28: =E28*'Trykledning beregning'!$G$14 -> 1.24727818 | G28: 1.976802696 | H28: 1.203617191 | J28: =Hydraulics_gravity!$B$41*1.03^('Sulfiddannelse i trykledning'!$C$11-20)*F27 -> 3.792036356 | K28: =(0.349+0.671)*H27^0.1*G27*1.07^('Sulfiddannelse i trykledning'!$C$11-20) -> 1.56857609 | L28: =2.4/24*E27^0.5*H27^0.5*1.03^('Sulfiddannelse i trykledning'!$C$11-20)*Hydraulics_gravity!$T$51 -> 7.194732824 | M28: =Hydraulics_gravity!$B$40*1.03^('Sulfiddannelse i trykledning'!$C$11-20)*(10-H27) -> 31.82042887 | N28: 0.09727045826 | O28: =IF(11.4*(N28/'Korrosion nedstrøms'!$C$17)*k_corr>0,11.4*(N28/'Korrosion nedstrøms'!$C$17)*k_corr,0.00001) -> 1.663324836 | P28: 19.53917797
C29: =D29/Hydraulics_gravity!$R$51+$C$15 -> 29.46377819 | D29: 14 | E29: 3.21672462 | F29: =E29*'Trykledning beregning'!$G$14 -> 1.244432315 | G29: 1.972292305 | H29: 1.218973373 | J29: =Hydraulics_gravity!$B$41*1.03^('Sulfiddannelse i trykledning'!$C$11-20)*F28 -> 3.783423136 | K29: =(0.349+0.671)*H28^0.1*G28*1.07^('Sulfiddannelse i trykledning'!$C$11-20) -> 1.567029686 | L29: =2.4/24*E28^0.5*H28^0.5*1.03^('Sulfiddannelse i trykledning'!$C$11-20)*Hydraulics_gravity!$T$51 -> 7.232974521 | M29: =Hydraulics_gravity!$B$40*1.03^('Sulfiddannelse i trykledning'!$C$11-20)*(10-H28) -> 31.76482196 | N29: 0.09704862018 | O29: =IF(11.4*(N29/'Korrosion nedstrøms'!$C$17)*k_corr>0,11.4*(N29/'Korrosion nedstrøms'!$C$17)*k_corr,0.00001) -> 1.659531405 | P29: 19.5838415
C30: =D30/Hydraulics_gravity!$R$51+$C$15 -> 31.56833377 | D30: 15 | E30: 3.20935231 | F30: =E30*'Trykledning beregning'!$G$14 -> 1.24158024 | G30: 1.96777207 | H30: 1.234287238 | J30: =Hydraulics_gravity!$B$41*1.03^('Sulfiddannelse i trykledning'!$C$11-20)*F29 -> 3.774790651 | K30: =(0.349+0.671)*H29^0.1*G29*1.07^('Sulfiddannelse i trykledning'!$C$11-20) -> 1.565437608 | L30: =2.4/24*E29^0.5*H29^0.5*1.03^('Sulfiddannelse i trykledning'!$C$11-20)*Hydraulics_gravity!$T$51 -> 7.270659922 | M30: =Hydraulics_gravity!$B$40*1.03^('Sulfiddannelse i trykledning'!$C$11-20)*(10-H29) -> 31.7093689 | N30: 0.09682629678 | O30: =IF(11.4*(N30/'Korrosion nedstrøms'!$C$17)*k_corr>0,11.4*(N30/'Korrosion nedstrøms'!$C$17)*k_corr,0.00001) -> 1.655729675 | P30: 19.62880807
C31: =D31/Hydraulics_gravity!$R$51+$C$15 -> 33.67288936 | D31: 16 | E31: 3.201964303 | F31: =E31*'Trykledning beregning'!$G$14 -> 1.238722092 | G31: 1.963242211 | H31: 1.249559067 | J31: =Hydraulics_gravity!$B$41*1.03^('Sulfiddannelse i trykledning'!$C$11-20)*F30 -> 3.766139327 | K31: =(0.349+0.671)*H30^0.1*G30*1.07^('Sulfiddannelse i trykledning'!$C$11-20) -> 1.563800966 | L31: =2.4/24*E30^0.5*H30^0.5*1.03^('Sulfiddannelse i trykledning'!$C$11-20)*Hydraulics_gravity!$T$51 -> 7.307799059 | M31: =Hydraulics_gravity!$B$40*1.03^('Sulfiddannelse i trykledning'!$C$11-20)*(10-H30) -> 31.65406865 | N31: 0.09660349883 | O31: =IF(11.4*(N31/'Korrosion nedstrøms'!$C$17)*k_corr>0,11.4*(N31/'Korrosion nedstrøms'!$C$17)*k_corr,0.00001) -> 1.65191983 | P31: 19.67407825
C32: =D32/Hydraulics_gravity!$R$51+$C$15 -> 35.77744494 | D32: 17 | E32: 3.194560949 | F32: =E32*'Trykledning beregning'!$G$14 -> 1.235858007 | G32: 1.958702942 | H32: 1.264789137 | J32: =Hydraulics_gravity!$B$41*1.03^('Sulfiddannelse i trykledning'!$C$11-20)*F31 -> 3.757469583 | K32: =(0.349+0.671)*H31^0.1*G31*1.07^('Sulfiddannelse i trykledning'!$C$11-20) -> 1.562120829 | L32: =2.4/24*E31^0.5*H31^0.5*1.03^('Sulfiddannelse i trykledning'!$C$11-20)*Hydraulics_gravity!$T$51 -> 7.344401633 | M32: =Hydraulics_gravity!$B$40*1.03^('Sulfiddannelse i trykledning'!$C$11-20)*(10-H31) -> 31.59892019 | N32: 0.09638023691 | O32: =IF(11.4*(N32/'Korrosion nedstrøms'!$C$17)*k_corr>0,11.4*(N32/'Korrosion nedstrøms'!$C$17)*k_corr,0.00001) -> 1.648102051 | P32: 19.71965266
C33: =D33/Hydraulics_gravity!$R$51+$C$15 -> 37.88200053 | D33: 18 | E33: 3.187142591 | F33: =E33*'Trykledning beregning'!$G$14 -> 1.232988117 | G33: 1.954154474 | H33: 1.279977718 | J33: =Hydraulics_gravity!$B$41*1.03^('Sulfiddannelse i trykledning'!$C$11-20)*F32 -> 3.748781829 | K33: =(0.349+0.671)*H32^0.1*G32*1.07^('Sulfiddannelse i trykledning'!$C$11-20) -> 1.560398231 | L33: =2.4/24*E32^0.5*H32^0.5*1.03^('Sulfiddannelse i trykledning'!$C$11-20)*Hydraulics_gravity!$T$51 -> 7.380477031 | M33: =Hydraulics_gravity!$B$40*1.03^('Sulfiddannelse i trykledning'!$C$11-20)*(10-H32) -> 31.54392253 | N33: 0.09615652139 | O33: =IF(11.4*(N33/'Korrosion nedstrøms'!$C$17)*k_corr>0,11.4*(N33/'Korrosion nedstrøms'!$C$17)*k_corr,0.00001) -> 1.644276516 | P33: 19.76553195
C34: =D34/Hydraulics_gravity!$R$51+$C$15 -> 39.98655611 | D34: 19 | E34: 3.179709567 | F34: =E34*'Trykledning beregning'!$G$14 -> 1.230112554 | G34: 1.949597013 | H34: 1.295125079 | J34: =Hydraulics_gravity!$B$41*1.03^('Sulfiddannelse i trykledning'!$C$11-20)*F33 -> 3.740076468 | K34: =(0.349+0.671)*H33^0.1*G33*1.07^('Sulfiddannelse i trykledning'!$C$11-20) -> 1.55863417 | L34: =2.4/24*E33^0.5*H33^0.5*1.03^('Sulfiddannelse i trykledning'!$C$11-20)*Hydraulics_gravity!$T$51 -> 7.416034339 | M34: =Hydraulics_gravity!$B$40*1.03^('Sulfiddannelse i trykledning'!$C$11-20)*(10-H33) -> 31.4890747 | N34: 0.09593236247 | O34: =IF(11.4*(N34/'Korrosion nedstrøms'!$C$17)*k_corr>0,11.4*(N34/'Korrosion nedstrøms'!$C$17)*k_corr,0.00001) -> 1.640443398 | P34: 19.81171678
C35: =D35/Hydraulics_gravity!$R$51+$C$15 -> 42.0911117 | D35: 20 | E35: 3.172262208 | F35: =E35*'Trykledning beregning'!$G$14 -> 1.227231445 | G35: 1.945030763 | H35: 1.310231485 | J35: =Hydraulics_gravity!$B$41*1.03^('Sulfiddannelse i trykledning'!$C$11-20)*F34 -> 3.731353897 | K35: =(0.349+0.671)*H34^0.1*G34*1.07^('Sulfiddannelse i trykledning'!$C$11-20) -> 1.55682961 | L35: =2.4/24*E34^0.5*H34^0.5*1.03^('Sulfiddannelse i trykledning'!$C$11-20)*Hydraulics_gravity!$T$51 -> 7.451082359 | M35: =Hydraulics_gravity!$B$40*1.03^('Sulfiddannelse i trykledning'!$C$11-20)*(10-H34) -> 31.43437571 | N35: 0.09570777016 | O35: =IF(11.4*(N35/'Korrosion nedstrøms'!$C$17)*k_corr>0,11.4*(N35/'Korrosion nedstrøms'!$C$17)*k_corr,0.00001) -> 1.63660287 | P35: 19.85820788
C36: =D36/Hydraulics_gravity!$R$51+$C$15 -> 44.19566728 | D36: 21 | E36: 3.164800839 | F36: =E36*'Trykledning beregning'!$G$14 -> 1.224344916 | G36: 1.940455923 | H36: 1.325297196 | J36: =Hydraulics_gravity!$B$41*1.03^('Sulfiddannelse i trykledning'!$C$11-20)*F35 -> 3.722614503 | K36: =(0.349+0.671)*H35^0.1*G35*1.07^('Sulfiddannelse i trykledning'!$C$11-20) -> 1.554985482 | L36: =2.4/24*E35^0.5*H35^0.5*1.03^('Sulfiddannelse i trykledning'!$C$11-20)*Hydraulics_gravity!$T$51 -> 7.485629617 | M36: =Hydraulics_gravity!$B$40*1.03^('Sulfiddannelse i trykledning'!$C$11-20)*(10-H35) -> 31.37982462 | N36: 0.09548275431 | O36: =IF(11.4*(N36/'Korrosion nedstrøms'!$C$17)*k_corr>0,11.4*(N36/'Korrosion nedstrøms'!$C$17)*k_corr,0.00001) -> 1.632755099 | P36: 19.90500598
C37: =D37/Hydraulics_gravity!$R$51+$C$15 -> 46.30022287 | D37: 22 | E37: 3.157325782 | F37: =E37*'Trykledning beregning'!$G$14 -> 1.221453092 | G37: 1.93587269 | H37: 1.340322469 | J37: =Hydraulics_gravity!$B$41*1.03^('Sulfiddannelse i trykledning'!$C$11-20)*F36 -> 3.71385867 | K37: =(0.349+0.671)*H36^0.1*G36*1.07^('Sulfiddannelse i trykledning'!$C$11-20) -> 1.553102687 | L37: =2.4/24*E36^0.5*H36^0.5*1.03^('Sulfiddannelse i trykledning'!$C$11-20)*Hydraulics_gravity!$T$51 -> 7.519684379 | M37: =Hydraulics_gravity!$B$40*1.03^('Sulfiddannelse i trykledning'!$C$11-20)*(10-H36) -> 31.32542048 | N37: 0.09525732459 | O37: =IF(11.4*(N37/'Korrosion nedstrøms'!$C$17)*k_corr>0,11.4*(N37/'Korrosion nedstrøms'!$C$17)*k_corr,0.00001) -> 1.628900251 | P37: 19.95211186
C38: =D38/Hydraulics_gravity!$R$51+$C$15 -> 48.40477845 | D38: 23 | E38: 3.14983735 | F38: =E38*'Trykledning beregning'!$G$14 -> 1.218556093 | G38: 1.931281257 | H38: 1.355307557 | J38: =Hydraulics_gravity!$B$41*1.03^('Sulfiddannelse i trykledning'!$C$11-20)*F37 -> 3.705086773 | K38: =(0.349+0.671)*H37^0.1*G37*1.07^('Sulfiddannelse i trykledning'!$C$11-20) -> 1.551182098 | L38: =2.4/24*E37^0.5*H37^0.5*1.03^('Sulfiddannelse i trykledning'!$C$11-20)*Hydraulics_gravity!$T$51 -> 7.553254662 | M38: =Hydraulics_gravity!$B$40*1.03^('Sulfiddannelse i trykledning'!$C$11-20)*(10-H37) -> 31.27116237 | N38: 0.09503149051 | O38: =IF(11.4*(N38/'Korrosion nedstrøms'!$C$17)*k_corr>0,11.4*(N38/'Korrosion nedstrøms'!$C$17)*k_corr,0.00001) -> 1.625038488 | P38: 19.99952632
C39: =D39/Hydraulics_gravity!$R$51+$C$15 -> 50.50933404 | D39: 24 | E39: 3.142335853 | F39: =E39*'Trykledning beregning'!$G$14 -> 1.21565404 | G39: 1.926681813 | H39: 1.370252712 | J39: =Hydraulics_gravity!$B$41*1.03^('Sulfiddannelse i trykledning'!$C$11-20)*F38 -> 3.696299182 | K39: =(0.349+0.671)*H38^0.1*G38*1.07^('Sulfiddannelse i trykledning'!$C$11-20) -> 1.549224558 | L39: =2.4/24*E38^0.5*H38^0.5*1.03^('Sulfiddannelse i trykledning'!$C$11-20)*Hydraulics_gravity!$T$51 -> 7.586348243 | M39: =Hydraulics_gravity!$B$40*1.03^('Sulfiddannelse i trykledning'!$C$11-20)*(10-H38) -> 31.21704937 | N39: 0.09480526142 | O39: =IF(11.4*(N39/'Korrosion nedstrøms'!$C$17)*k_corr>0,11.4*(N39/'Korrosion nedstrøms'!$C$17)*k_corr,0.00001) -> 1.62116997 | P39: 20.04725019
C40: =D40/Hydraulics_gravity!$R$51+$C$15 -> 52.61388962 | D40: 25 | E40: 3.134821596 | F40: =E40*'Trykledning beregning'!$G$14 -> 1.212747051 | G40: 1.922074545 | H40: 1.385158178 | J40: =Hydraulics_gravity!$B$41*1.03^('Sulfiddannelse i trykledning'!$C$11-20)*F39 -> 3.687496259 | K40: =(0.349+0.671)*H39^0.1*G39*1.07^('Sulfiddannelse i trykledning'!$C$11-20) -> 1.547230885 | L40: =2.4/24*E39^0.5*H39^0.5*1.03^('Sulfiddannelse i trykledning'!$C$11-20)*Hydraulics_gravity!$T$51 -> 7.618972671 | M40: =Hydraulics_gravity!$B$40*1.03^('Sulfiddannelse i trykledning'!$C$11-20)*(10-H39) -> 31.16308057 | N40: 0.09457864652 | O40: =IF(11.4*(N40/'Korrosion nedstrøms'!$C$17)*k_corr>0,11.4*(N40/'Korrosion nedstrøms'!$C$17)*k_corr,0.00001) -> 1.617294855 | P40: 20.09528435
C41: =D41/Hydraulics_gravity!$R$51+$C$15 -> 54.71844521 | D41: 26 | E41: 3.127294878 | F41: =E41*'Trykledning beregning'!$G$14 -> 1.209835241 | G41: 1.917459637 | H41: 1.400024201 | J41: =Hydraulics_gravity!$B$41*1.03^('Sulfiddannelse i trykledning'!$C$11-20)*F40 -> 3.678678361 | K41: =(0.349+0.671)*H40^0.1*G40*1.07^('Sulfiddannelse i trykledning'!$C$11-20) -> 1.545201871 | L41: =2.4/24*E40^0.5*H40^0.5*1.03^('Sulfiddannelse i trykledning'!$C$11-20)*Hydraulics_gravity!$T$51 -> 7.651135277 | M41: =Hydraulics_gravity!$B$40*1.03^('Sulfiddannelse i trykledning'!$C$11-20)*(10-H40) -> 31.1092551 | N41: 0.09435165484 | O41: =IF(11.4*(N41/'Korrosion nedstrøms'!$C$17)*k_corr>0,11.4*(N41/'Korrosion nedstrøms'!$C$17)*k_corr,0.00001) -> 1.613413298 | P41: 20.14362968
C42: =D42/Hydraulics_gravity!$R$51+$C$15 -> 56.82300079 | D42: 27 | E42: 3.119755993 | F42: =E42*'Trykledning beregning'!$G$14 -> 1.206918724 | G42: 1.912837269 | H42: 1.414851019 | J42: =Hydraulics_gravity!$B$41*1.03^('Sulfiddannelse i trykledning'!$C$11-20)*F41 -> 3.669845841 | K42: =(0.349+0.671)*H41^0.1*G41*1.07^('Sulfiddannelse i trykledning'!$C$11-20) -> 1.543138285 | L42: =2.4/24*E41^0.5*H41^0.5*1.03^('Sulfiddannelse i trykledning'!$C$11-20)*Hydraulics_gravity!$T$51 -> 7.68284318 | M42: =Hydraulics_gravity!$B$40*1.03^('Sulfiddannelse i trykledning'!$C$11-20)*(10-H41) -> 31.05557206 | N42: 0.0941242953 | O42: =IF(11.4*(N42/'Korrosion nedstrøms'!$C$17)*k_corr>0,11.4*(N42/'Korrosion nedstrøms'!$C$17)*k_corr,0.00001) -> 1.60952545 | P42: 20.19228712
C43: =D43/Hydraulics_gravity!$R$51+$C$15 -> 58.92755638 | D43: 28 | E43: 3.112205232 | F43: =E43*'Trykledning beregning'!$G$14 -> 1.203997612 | G43: 1.908207619 | H43: 1.429638872 | J43: =Hydraulics_gravity!$B$41*1.03^('Sulfiddannelse i trykledning'!$C$11-20)*F42 -> 3.660999043 | K43: =(0.349+0.671)*H42^0.1*G42*1.07^('Sulfiddannelse i trykledning'!$C$11-20) -> 1.541040871 | L43: =2.4/24*E42^0.5*H42^0.5*1.03^('Sulfiddannelse i trykledning'!$C$11-20)*Hydraulics_gravity!$T$51 -> 7.7141033 | M43: =Hydraulics_gravity!$B$40*1.03^('Sulfiddannelse i trykledning'!$C$11-20)*(10-H42) -> 31.00203059 | N43: 0.09389657664 | O43: =IF(11.4*(N43/'Korrosion nedstrøms'!$C$17)*k_corr>0,11.4*(N43/'Korrosion nedstrøms'!$C$17)*k_corr,0.00001) -> 1.605631461 | P43: 20.2412576
C44: =D44/Hydraulics_gravity!$R$51+$C$15 -> 61.03211196 | D44: 29 | E44: 3.104642879 | F44: =E44*'Trykledning beregning'!$G$14 -> 1.201072016 | G44: 1.903570862 | H44: 1.444387993 | J44: =Hydraulics_gravity!$B$41*1.03^('Sulfiddannelse i trykledning'!$C$11-20)*F43 -> 3.652138308 | K44: =(0.349+0.671)*H43^0.1*G43*1.07^('Sulfiddannelse i trykledning'!$C$11-20) -> 1.538910353 | L44: =2.4/24*E43^0.5*H43^0.5*1.03^('Sulfiddannelse i trykledning'!$C$11-20)*Hydraulics_gravity!$T$51 -> 7.744922364 | M44: =Hydraulics_gravity!$B$40*1.03^('Sulfiddannelse i trykledning'!$C$11-20)*(10-H43) -> 30.94862983 | N44: 0.0936685075 | O44: =IF(11.4*(N44/'Korrosion nedstrøms'!$C$17)*k_corr>0,11.4*(N44/'Korrosion nedstrøms'!$C$17)*k_corr,0.00001) -> 1.601731478 | P44: 20.29054211
C45: =D45/Hydraulics_gravity!$R$51+$C$15 -> 63.13666755 | D45: 30 | E45: 3.097069216 | F45: =E45*'Trykledning beregning'!$G$14 -> 1.198142045 | G45: 1.898927171 | H45: 1.459098614 | J45: =Hydraulics_gravity!$B$41*1.03^('Sulfiddannelse i trykledning'!$C$11-20)*F44 -> 3.643263971 | K45: =(0.349+0.671)*H44^0.1*G44*1.07^('Sulfiddannelse i trykledning'!$C$11-20) -> 1.536747434 | L45: =2.4/24*E44^0.5*H44^0.5*1.03^('Sulfiddannelse i trykledning'!$C$11-20)*Hydraulics_gravity!$T$51 -> 7.775306912 | M45: =Hydraulics_gravity!$B$40*1.03^('Sulfiddannelse i trykledning'!$C$11-20)*(10-H44) -> 30.89536894 | N45: 0.09344009635 | O45: =IF(11.4*(N45/'Korrosion nedstrøms'!$C$17)*k_corr>0,11.4*(N45/'Korrosion nedstrøms'!$C$17)*k_corr,0.00001) -> 1.597825648 | P45: 20.34014165
C46: =D46/Hydraulics_gravity!$R$51+$C$15 -> 65.24122313 | D46: 31 | E46: 3.089484519 | F46: =E46*'Trykledning beregning'!$G$14 -> 1.195207805 | G46: 1.894276714 | H46: 1.473770962 | J46: =Hydraulics_gravity!$B$41*1.03^('Sulfiddannelse i trykledning'!$C$11-20)*F45 -> 3.634376362 | K46: =(0.349+0.671)*H45^0.1*G45*1.07^('Sulfiddannelse i trykledning'!$C$11-20) -> 1.534552793 | L46: =2.4/24*E45^0.5*H45^0.5*1.03^('Sulfiddannelse i trykledning'!$C$11-20)*Hydraulics_gravity!$T$51 -> 7.805263309 | M46: =Hydraulics_gravity!$B$40*1.03^('Sulfiddannelse i trykledning'!$C$11-20)*(10-H45) -> 30.84224708 | N46: 0.09321135155 | O46: =IF(11.4*(N46/'Korrosion nedstrøms'!$C$17)*k_corr>0,11.4*(N46/'Korrosion nedstrøms'!$C$17)*k_corr,0.00001) -> 1.593914111 | P46: 20.39005726
C47: =D47/Hydraulics_gravity!$R$51+$C$15 -> 67.34577871 | D47: 32 | E47: 3.08188906 | F47: =E47*'Trykledning beregning'!$G$14 -> 1.192269402 | G47: 1.889619658 | H47: 1.488405266 | J47: =Hydraulics_gravity!$B$41*1.03^('Sulfiddannelse i trykledning'!$C$11-20)*F46 -> 3.625475804 | K47: =(0.349+0.671)*H46^0.1*G46*1.07^('Sulfiddannelse i trykledning'!$C$11-20) -> 1.532327095 | L47: =2.4/24*E46^0.5*H46^0.5*1.03^('Sulfiddannelse i trykledning'!$C$11-20)*Hydraulics_gravity!$T$51 -> 7.834797747 | M47: =Hydraulics_gravity!$B$40*1.03^('Sulfiddannelse i trykledning'!$C$11-20)*(10-H46) -> 30.78926342 | N47: 0.09298228133 | O47: =IF(11.4*(N47/'Korrosion nedstrøms'!$C$17)*k_corr>0,11.4*(N47/'Korrosion nedstrøms'!$C$17)*k_corr,0.00001) -> 1.589997011 | P47: 20.44029
C48: =D48/Hydraulics_gravity!$R$51+$C$15 -> 69.4503343 | D48: 33 | E48: 3.074283109 | F48: =E48*'Trykledning beregning'!$G$14 -> 1.189326939 | G48: 1.88495617 | H48: 1.503001746 | J48: =Hydraulics_gravity!$B$41*1.03^('Sulfiddannelse i trykledning'!$C$11-20)*F47 -> 3.616562618 | K48: =(0.349+0.671)*H47^0.1*G47*1.07^('Sulfiddannelse i trykledning'!$C$11-20) -> 1.530070984 | L48: =2.4/24*E47^0.5*H47^0.5*1.03^('Sulfiddannelse i trykledning'!$C$11-20)*Hydraulics_gravity!$T$51 -> 7.863916254 | M48: =Hydraulics_gravity!$B$40*1.03^('Sulfiddannelse i trykledning'!$C$11-20)*(10-H47) -> 30.73641714 | N48: =(($E$1*J48)+(1-$E$1)*J49)*$G$3/$G$5 -> 0.0927528938 | O48: =IF(11.4*(N48/'Korrosion nedstrøms'!$C$17)*k_corr>0,11.4*(N48/'Korrosion nedstrøms'!$C$17)*k_corr,0.00001) -> 1.586074484 | P48: 20.49084096
C49: =D49/Hydraulics_gravity!$R$51+$C$15 -> 71.55488988 | D49: 34 | E49: 3.066666928 | F49: =E49*'Trykledning beregning'!$G$14 -> 1.186380519 | G49: 1.880286409 | H49: 1.517560625 | J49: =Hydraulics_gravity!$B$41*1.03^('Sulfiddannelse i trykledning'!$C$11-20)*F48 -> 3.607637118 | K49: =(0.349+0.671)*H48^0.1*G48*1.07^('Sulfiddannelse i trykledning'!$C$11-20) -> 1.527785084 | L49: =2.4/24*E48^0.5*H48^0.5*1.03^('Sulfiddannelse i trykledning'!$C$11-20)*Hydraulics_gravity!$T$51 -> 7.892624703 | M49: =Hydraulics_gravity!$B$40*1.03^('Sulfiddannelse i trykledning'!$C$11-20)*(10-H48) -> 30.68370745 | N49: 0.09252319694 | O49: =IF(11.4*(N49/'Korrosion nedstrøms'!$C$17)*k_corr>0,11.4*(N49/'Korrosion nedstrøms'!$C$17)*k_corr,0.00001) -> 1.582146668 | P49: 20.54171125
C50: =D50/Hydraulics_gravity!$R$51+$C$15 -> 73.65944547 | D50: 35 | E50: 3.05904078 | F50: =E50*'Trykledning beregning'!$G$14 -> 1.183430243 | G50: 1.875610537 | H50: 1.53208212 | J50: =Hydraulics_gravity!$B$41*1.03^('Sulfiddannelse i trykledning'!$C$11-20)*F49 -> 3.598699615 | K50: =(0.349+0.671)*H49^0.1*G49*1.07^('Sulfiddannelse i trykledning'!$C$11-20) -> 1.525470006 | L50: =2.4/24*E49^0.5*H49^0.5*1.03^('Sulfiddannelse i trykledning'!$C$11-20)*Hydraulics_gravity!$T$51 -> 7.920928811 | M50: =Hydraulics_gravity!$B$40*1.03^('Sulfiddannelse i trykledning'!$C$11-20)*(10-H49) -> 30.63113355 | N50: 0.09229319862 | O50: =IF(11.4*(N50/'Korrosion nedstrøms'!$C$17)*k_corr>0,11.4*(N50/'Korrosion nedstrøms'!$C$17)*k_corr,0.00001) -> 1.578213696 | P50: 20.59290201
C51: =D51/Hydraulics_gravity!$R$51+$C$15 -> 75.76400105 | D51: 36 | E51: 3.05140492 | F51: =E51*'Trykledning beregning'!$G$14 -> 1.18047621 | G51: 1.870928709 | H51: 1.546566447 | J51: =Hydraulics_gravity!$B$41*1.03^('Sulfiddannelse i trykledning'!$C$11-20)*F50 -> 3.589750414 | K51: =(0.349+0.671)*H50^0.1*G50*1.07^('Sulfiddannelse i trykledning'!$C$11-20) -> 1.523126342 | L51: =2.4/24*E50^0.5*H50^0.5*1.03^('Sulfiddannelse i trykledning'!$C$11-20)*Hydraulics_gravity!$T$51 -> 7.948834153 | M51: =Hydraulics_gravity!$B$40*1.03^('Sulfiddannelse i trykledning'!$C$11-20)*(10-H50) -> 30.57869464 | N51: 0.09206290659 | O51: =IF(11.4*(N51/'Korrosion nedstrøms'!$C$17)*k_corr>0,11.4*(N51/'Korrosion nedstrøms'!$C$17)*k_corr,0.00001) -> 1.574275703 | P51: 20.64441441
C52: =D52/Hydraulics_gravity!$R$51+$C$15 -> 77.86855664 | D52: 37 | E52: 3.043759601 | F52: =E52*'Trykledning beregning'!$G$14 -> 1.177518518 | G52: 1.866241083 | H52: 1.561013818 | J52: =Hydraulics_gravity!$B$41*1.03^('Sulfiddannelse i trykledning'!$C$11-20)*F51 -> 3.580789817 | K52: =(0.349+0.671)*H51^0.1*G51*1.07^('Sulfiddannelse i trykledning'!$C$11-20) -> 1.52075467 | L52: =2.4/24*E51^0.5*H51^0.5*1.03^('Sulfiddannelse i trykledning'!$C$11-20)*Hydraulics_gravity!$T$51 -> 7.97634616 | M52: =Hydraulics_gravity!$B$40*1.03^('Sulfiddannelse i trykledning'!$C$11-20)*(10-H51) -> 30.52638995 | N52: 0.0918323285 | O52: =IF(11.4*(N52/'Korrosion nedstrøms'!$C$17)*k_corr>0,11.4*(N52/'Korrosion nedstrøms'!$C$17)*k_corr,0.00001) -> 1.570332817 | P52: 20.69624964
C53: =D53/Hydraulics_gravity!$R$51+$C$15 -> 79.97311222 | D53: 38 | E53: 3.036105073 | F53: =E53*'Trykledning beregning'!$G$14 -> 1.174557263 | G53: 1.86154781 | H53: 1.575424445 | J53: =Hydraulics_gravity!$B$41*1.03^('Sulfiddannelse i trykledning'!$C$11-20)*F52 -> 3.57181812 | K53: =(0.349+0.671)*H52^0.1*G52*1.07^('Sulfiddannelse i trykledning'!$C$11-20) -> 1.518355551 | L53: =2.4/24*E52^0.5*H52^0.5*1.03^('Sulfiddannelse i trykledning'!$C$11-20)*Hydraulics_gravity!$T$51 -> 8.003470129 | M53: =Hydraulics_gravity!$B$40*1.03^('Sulfiddannelse i trykledning'!$C$11-20)*(10-H52) -> 30.47421872 | N53: 0.09160147187 | O53: =IF(11.4*(N53/'Korrosion nedstrøms'!$C$17)*k_corr>0,11.4*(N53/'Korrosion nedstrøms'!$C$17)*k_corr,0.00001) -> 1.566385169 | P53: 20.74840891
C54: =D54/Hydraulics_gravity!$R$51+$C$15 -> 82.07766781 | D54: 39 | E54: 3.028441581 | F54: =E54*'Trykledning beregning'!$G$14 -> 1.17159254 | G54: 1.856849041 | H54: 1.589798536 | J54: =Hydraulics_gravity!$B$41*1.03^('Sulfiddannelse i trykledning'!$C$11-20)*F53 -> 3.562835616 | K54: =(0.349+0.671)*H53^0.1*G53*1.07^('Sulfiddannelse i trykledning'!$C$11-20) -> 1.515929532 | L54: =2.4/24*E53^0.5*H53^0.5*1.03^('Sulfiddannelse i trykledning'!$C$11-20)*Hydraulics_gravity!$T$51 -> 8.030211226 | M54: =Hydraulics_gravity!$B$40*1.03^('Sulfiddannelse i trykledning'!$C$11-20)*(10-H53) -> 30.42218017 | N54: 0.09137034414 | O54: =IF(11.4*(N54/'Korrosion nedstrøms'!$C$17)*k_corr>0,11.4*(N54/'Korrosion nedstrøms'!$C$17)*k_corr,0.00001) -> 1.562432885 | P54: 20.80089348
C55: =D55/Hydraulics_gravity!$R$51+$C$15 -> 84.18222339 | D55: 40 | E55: 3.020769369 | F55: =E55*'Trykledning beregning'!$G$14 -> 1.168624444 | G55: 1.852144925 | H55: 1.604136297 | J55: =Hydraulics_gravity!$B$41*1.03^('Sulfiddannelse i trykledning'!$C$11-20)*F54 -> 3.553842594 | K55: =(0.349+0.671)*H54^0.1*G54*1.07^('Sulfiddannelse i trykledning'!$C$11-20) -> 1.513477148 | L55: =2.4/24*E54^0.5*H54^0.5*1.03^('Sulfiddannelse i trykledning'!$C$11-20)*Hydraulics_gravity!$T$51 -> 8.056574493 | M55: =Hydraulics_gravity!$B$40*1.03^('Sulfiddannelse i trykledning'!$C$11-20)*(10-H54) -> 30.37027355 | N55: 0.09113895262 | O55: =IF(11.4*(N55/'Korrosion nedstrøms'!$C$17)*k_corr>0,11.4*(N55/'Korrosion nedstrøms'!$C$17)*k_corr,0.00001) -> 1.55847609 | P55: 20.8537046
C56: =D56/Hydraulics_gravity!$R$51+$C$15 -> 86.28677898 | D56: 41 | E56: 3.013088674 | F56: =E56*'Trykledning beregning'!$G$14 -> 1.165653066 | G56: 1.847435609 | H56: 1.618437931 | J56: =Hydraulics_gravity!$B$41*1.03^('Sulfiddannelse i trykledning'!$C$11-20)*F55 -> 3.544839338 | K56: =(0.349+0.671)*H55^0.1*G55*1.07^('Sulfiddannelse i trykledning'!$C$11-20) -> 1.510998919 | L56: =2.4/24*E55^0.5*H55^0.5*1.03^('Sulfiddannelse i trykledning'!$C$11-20)*Hydraulics_gravity!$T$51 -> 8.082564846 | M56: =Hydraulics_gravity!$B$40*1.03^('Sulfiddannelse i trykledning'!$C$11-20)*(10-H55) -> 30.31849813 | N56: 0.09090730455 | O56: =IF(11.4*(N56/'Korrosion nedstrøms'!$C$17)*k_corr>0,11.4*(N56/'Korrosion nedstrøms'!$C$17)*k_corr,0.00001) -> 1.554514908 | P56: 20.90684357
C57: =D57/Hydraulics_gravity!$R$51+$C$15 -> 88.39133456 | D57: 42 | E57: 3.005399734 | F57: =E57*'Trykledning beregning'!$G$14 -> 1.162678498 | G57: 1.842721236 | H57: 1.632703641 | J57: =Hydraulics_gravity!$B$41*1.03^('Sulfiddannelse i trykledning'!$C$11-20)*F56 -> 3.535826128 | K57: =(0.349+0.671)*H56^0.1*G56*1.07^('Sulfiddannelse i trykledning'!$C$11-20) -> 1.508495351 | L57: =2.4/24*E56^0.5*H56^0.5*1.03^('Sulfiddannelse i trykledning'!$C$11-20)*Hydraulics_gravity!$T$51 -> 8.108187089 | M57: =Hydraulics_gravity!$B$40*1.03^('Sulfiddannelse i trykledning'!$C$11-20)*(10-H56) -> 30.26685317 | N57: 0.09067540704 | O57: =IF(11.4*(N57/'Korrosion nedstrøms'!$C$17)*k_corr>0,11.4*(N57/'Korrosion nedstrøms'!$C$17)*k_corr,0.00001) -> 1.55054946 | P57: 20.9603117
C58: =D58/Hydraulics_gravity!$R$51+$C$15 -> 90.49589015 | D58: 43 | E58: 2.99770278 | F58: =E58*'Trykledning beregning'!$G$14 -> 1.15970083 | G58: 1.83800195 | H58: 1.646933625 | J58: =Hydraulics_gravity!$B$41*1.03^('Sulfiddannelse i trykledning'!$C$11-20)*F57 -> 3.526803242 | K58: =(0.349+0.671)*H57^0.1*G57*1.07^('Sulfiddannelse i trykledning'!$C$11-20) -> 1.50596694 | L58: =2.4/24*E57^0.5*H57^0.5*1.03^('Sulfiddannelse i trykledning'!$C$11-20)*Hydraulics_gravity!$T$51 -> 8.13344591 | M58: =Hydraulics_gravity!$B$40*1.03^('Sulfiddannelse i trykledning'!$C$11-20)*(10-H57) -> 30.21533794 | N58: 0.09044326711 | O58: =IF(11.4*(N58/'Korrosion nedstrøms'!$C$17)*k_corr>0,11.4*(N58/'Korrosion nedstrøms'!$C$17)*k_corr,0.00001) -> 1.546579868 | P58: 21.01411035
C59: =D59/Hydraulics_gravity!$R$51+$C$15 -> 92.60044573 | D59: 44 | E59: 2.989998043 | F59: =E59*'Trykledning beregning'!$G$14 -> 1.156720151 | G59: 1.833277892 | H59: 1.661128082 | J59: =Hydraulics_gravity!$B$41*1.03^('Sulfiddannelse i trykledning'!$C$11-20)*F58 -> 3.517770952 | K59: =(0.349+0.671)*H58^0.1*G58*1.07^('Sulfiddannelse i trykledning'!$C$11-20) -> 1.503414168 | L59: =2.4/24*E58^0.5*H58^0.5*1.03^('Sulfiddannelse i trykledning'!$C$11-20)*Hydraulics_gravity!$T$51 -> 8.158345887 | M59: =Hydraulics_gravity!$B$40*1.03^('Sulfiddannelse i trykledning'!$C$11-20)*(10-H58) -> 30.16395171 | N59: 0.09021089171 | O59: =IF(11.4*(N59/'Korrosion nedstrøms'!$C$17)*k_corr>0,11.4*(N59/'Korrosion nedstrøms'!$C$17)*k_corr,0.00001) -> 1.542606248 | P59: 21.06824087
C60: =D60/Hydraulics_gravity!$R$51+$C$15 -> 94.70500132 | D60: 45 | E60: 2.982285748 | F60: =E60*'Trykledning beregning'!$G$14 -> 1.153736548 | G60: 1.8285492 | H60: 1.675287206 | J60: =Hydraulics_gravity!$B$41*1.03^('Sulfiddannelse i trykledning'!$C$11-20)*F59 -> 3.508729528 | K60: =(0.349+0.671)*H59^0.1*G59*1.07^('Sulfiddannelse i trykledning'!$C$11-20) -> 1.500837506 | L60: =2.4/24*E59^0.5*H59^0.5*1.03^('Sulfiddannelse i trykledning'!$C$11-20)*Hydraulics_gravity!$T$51 -> 8.182891495 | M60: =Hydraulics_gravity!$B$40*1.03^('Sulfiddannelse i trykledning'!$C$11-20)*(10-H59) -> 30.11269378 | N60: 0.08997828767 | O60: =IF(11.4*(N60/'Korrosion nedstrøms'!$C$17)*k_corr>0,11.4*(N60/'Korrosion nedstrøms'!$C$17)*k_corr,0.00001) -> 1.538628719 | P60: 21.12270465
C61: =D61/Hydraulics_gravity!$R$51+$C$15 -> 96.8095569 | D61: 46 | E61: 2.974566119 | F61: =E61*'Trykledning beregning'!$G$14 -> 1.150750107 | G61: 1.823816011 | H61: 1.689411192 | J61: =Hydraulics_gravity!$B$41*1.03^('Sulfiddannelse i trykledning'!$C$11-20)*F60 -> 3.499679235 | K61: =(0.349+0.671)*H60^0.1*G60*1.07^('Sulfiddannelse i trykledning'!$C$11-20) -> 1.498237415 | L61: =2.4/24*E60^0.5*H60^0.5*1.03^('Sulfiddannelse i trykledning'!$C$11-20)*Hydraulics_gravity!$T$51 -> 8.207087107 | M61: =Hydraulics_gravity!$B$40*1.03^('Sulfiddannelse i trykledning'!$C$11-20)*(10-H60) -> 30.06156343 | N61: 0.08974546174 | O61: =IF(11.4*(N61/'Korrosion nedstrøms'!$C$17)*k_corr>0,11.4*(N61/'Korrosion nedstrøms'!$C$17)*k_corr,0.00001) -> 1.534647396 | P61: 21.17750311
C62: =D62/Hydraulics_gravity!$R$51+$C$15 -> 98.91411249 | D62: 47 | E62: 2.966839376 | F62: =E62*'Trykledning beregning'!$G$14 -> 1.147760915 | G62: 1.819078461 | H62: 1.703500229 | J62: =Hydraulics_gravity!$B$41*1.03^('Sulfiddannelse i trykledning'!$C$11-20)*F61 -> 3.490620336 | K62: =(0.349+0.671)*H61^0.1*G61*1.07^('Sulfiddannelse i trykledning'!$C$11-20) -> 1.495614344 | L62: =2.4/24*E61^0.5*H61^0.5*1.03^('Sulfiddannelse i trykledning'!$C$11-20)*Hydraulics_gravity!$T$51 -> 8.230936994 | M62: =Hydraulics_gravity!$B$40*1.03^('Sulfiddannelse i trykledning'!$C$11-20)*(10-H61) -> 30.01055998 | N62: 0.08951242059 | O62: =IF(11.4*(N62/'Korrosion nedstrøms'!$C$17)*k_corr>0,11.4*(N62/'Korrosion nedstrøms'!$C$17)*k_corr,0.00001) -> 1.530662392 | P62: 21.23263769
C63: =D63/Hydraulics_gravity!$R$51+$C$15 -> 101.0186681 | D63: 48 | E63: 2.959105738 | F63: =E63*'Trykledning beregning'!$G$14 -> 1.144769055 | G63: 1.814336683 | H63: 1.717554508 | J63: =Hydraulics_gravity!$B$41*1.03^('Sulfiddannelse i trykledning'!$C$11-20)*F62 -> 3.48155309 | K63: =(0.349+0.671)*H62^0.1*G62*1.07^('Sulfiddannelse i trykledning'!$C$11-20) -> 1.492968732 | L63: =2.4/24*E62^0.5*H62^0.5*1.03^('Sulfiddannelse i trykledning'!$C$11-20)*Hydraulics_gravity!$T$51 -> 8.254445335 | M63: =Hydraulics_gravity!$B$40*1.03^('Sulfiddannelse i trykledning'!$C$11-20)*(10-H62) -> 29.95968273 | N63: 0.08927917078 | O63: =IF(11.4*(N63/'Korrosion nedstrøms'!$C$17)*k_corr>0,11.4*(N63/'Korrosion nedstrøms'!$C$17)*k_corr,0.00001) -> 1.52667382 | P63: 21.28810985
C64: =D64/Hydraulics_gravity!$R$51+$C$15 -> 103.1232237 | D64: 49 | E64: 2.95136542 | F64: =E64*'Trykledning beregning'!$G$14 -> 1.141774611 | G64: 1.809590808 | H64: 1.731574217 | J64: =Hydraulics_gravity!$B$41*1.03^('Sulfiddannelse i trykledning'!$C$11-20)*F63 -> 3.472477752 | K64: =(0.349+0.671)*H63^0.1*G63*1.07^('Sulfiddannelse i trykledning'!$C$11-20) -> 1.490301008 | L64: =2.4/24*E63^0.5*H63^0.5*1.03^('Sulfiddannelse i trykledning'!$C$11-20)*Hydraulics_gravity!$T$51 -> 8.277616216 | M64: =Hydraulics_gravity!$B$40*1.03^('Sulfiddannelse i trykledning'!$C$11-20)*(10-H63) -> 29.908931 | N64: 0.08904571882 | O64: =IF(11.4*(N64/'Korrosion nedstrøms'!$C$17)*k_corr>0,11.4*(N64/'Korrosion nedstrøms'!$C$17)*k_corr,0.00001) -> 1.522681792 | P64: 21.34392108
C65: =D65/Hydraulics_gravity!$R$51+$C$15 -> 105.2277792 | D65: 50 | E65: 2.943618632 | F65: =E65*'Trykledning beregning'!$G$14 -> 1.138777664 | G65: 1.804840968 | H65: 1.74555954 | J65: =Hydraulics_gravity!$B$41*1.03^('Sulfiddannelse i trykledning'!$C$11-20)*F64 -> 3.463394574 | K65: =(0.349+0.671)*H64^0.1*G64*1.07^('Sulfiddannelse i trykledning'!$C$11-20) -> 1.487611592 | L65: =2.4/24*E64^0.5*H64^0.5*1.03^('Sulfiddannelse i trykledning'!$C$11-20)*Hydraulics_gravity!$T$51 -> 8.300453633 | M65: =Hydraulics_gravity!$B$40*1.03^('Sulfiddannelse i trykledning'!$C$11-20)*(10-H64) -> 29.85830411 | N65: 0.08881207111 | O65: =IF(11.4*(N65/'Korrosion nedstrøms'!$C$17)*k_corr>0,11.4*(N65/'Korrosion nedstrøms'!$C$17)*k_corr,0.00001) -> 1.518686416 | P65: 21.40007289
C66: =D66/Hydraulics_gravity!$R$51+$C$15 -> 107.3323348 | D66: 51 | E66: 2.935865586 | F66: =E66*'Trykledning beregning'!$G$14 -> 1.135778296 | G66: 1.80008729 | H66: 1.759510662 | J66: =Hydraulics_gravity!$B$41*1.03^('Sulfiddannelse i trykledning'!$C$11-20)*F65 -> 3.454303805 | K66: =(0.349+0.671)*H65^0.1*G65*1.07^('Sulfiddannelse i trykledning'!$C$11-20) -> 1.484900892 | L66: =2.4/24*E65^0.5*H65^0.5*1.03^('Sulfiddannelse i trykledning'!$C$11-20)*Hydraulics_gravity!$T$51 -> 8.322961496 | M66: =Hydraulics_gravity!$B$40*1.03^('Sulfiddannelse i trykledning'!$C$11-20)*(10-H65) -> 29.80780138 | N66: 0.08857823397 | O66: =IF(11.4*(N66/'Korrosion nedstrøms'!$C$17)*k_corr>0,11.4*(N66/'Korrosion nedstrøms'!$C$17)*k_corr,0.00001) -> 1.514687801 | P66: 21.45656681
C67: =D67/Hydraulics_gravity!$R$51+$C$15 -> 109.4368904 | D67: 52 | E67: 2.928106488 | F67: =E67*'Trykledning beregning'!$G$14 -> 1.132776587 | G67: 1.795329901 | H67: 1.773427765 | J67: =Hydraulics_gravity!$B$41*1.03^('Sulfiddannelse i trykledning'!$C$11-20)*F66 -> 3.445205691 | K67: =(0.349+0.671)*H66^0.1*G66*1.07^('Sulfiddannelse i trykledning'!$C$11-20) -> 1.482169311 | L67: =2.4/24*E66^0.5*H66^0.5*1.03^('Sulfiddannelse i trykledning'!$C$11-20)*Hydraulics_gravity!$T$51 -> 8.345143633 | M67: =Hydraulics_gravity!$B$40*1.03^('Sulfiddannelse i trykledning'!$C$11-20)*(10-H66) -> 29.75742216 | N67: 0.08834421367 | O67: =IF(11.4*(N67/'Korrosion nedstrøms'!$C$17)*k_corr>0,11.4*(N67/'Korrosion nedstrøms'!$C$17)*k_corr,0.00001) -> 1.510686054 | P67: 21.5134044
C68: =D68/Hydraulics_gravity!$R$51+$C$15 -> 111.541446 | D68: 53 | E68: 2.920341542 | F68: =E68*'Trykledning beregning'!$G$14 -> 1.129772615 | G68: 1.790568927 | H68: 1.787311029 | J68: =Hydraulics_gravity!$B$41*1.03^('Sulfiddannelse i trykledning'!$C$11-20)*F67 -> 3.436100476 | K68: =(0.349+0.671)*H67^0.1*G67*1.07^('Sulfiddannelse i trykledning'!$C$11-20) -> 1.479417241 | L68: =2.4/24*E67^0.5*H67^0.5*1.03^('Sulfiddannelse i trykledning'!$C$11-20)*Hydraulics_gravity!$T$51 -> 8.367003789 | M68: =Hydraulics_gravity!$B$40*1.03^('Sulfiddannelse i trykledning'!$C$11-20)*(10-H67) -> 29.70716579 | N68: 0.08811001636 | O68: =IF(11.4*(N68/'Korrosion nedstrøms'!$C$17)*k_corr>0,11.4*(N68/'Korrosion nedstrøms'!$C$17)*k_corr,0.00001) -> 1.50668128 | P68: 21.57058725
C69: =D69/Hydraulics_gravity!$R$51+$C$15 -> 113.6460016 | D69: 54 | E69: 2.912570951 | F69: =E69*'Trykledning beregning'!$G$14 -> 1.12676646 | G69: 1.785804491 | H69: 1.801160633 | J69: =Hydraulics_gravity!$B$41*1.03^('Sulfiddannelse i trykledning'!$C$11-20)*F68 -> 3.426988398 | K69: =(0.349+0.671)*H68^0.1*G68*1.07^('Sulfiddannelse i trykledning'!$C$11-20) -> 1.476645065 | L69: =2.4/24*E68^0.5*H68^0.5*1.03^('Sulfiddannelse i trykledning'!$C$11-20)*Hydraulics_gravity!$T$51 -> 8.388545631 | M69: =Hydraulics_gravity!$B$40*1.03^('Sulfiddannelse i trykledning'!$C$11-20)*(10-H68) -> 29.65703161 | N69: 0.08787564815 | O69: =IF(11.4*(N69/'Korrosion nedstrøms'!$C$17)*k_corr>0,11.4*(N69/'Korrosion nedstrøms'!$C$17)*k_corr,0.00001) -> 1.502673583 | P69: 21.62811695
C70: =D70/Hydraulics_gravity!$R$51+$C$15 -> 115.7505572 | D70: 55 | E70: 2.904794913 | F70: =E70*'Trykledning beregning'!$G$14 -> 1.123758197 | G70: 1.781036716 | H70: 1.814976753 | J70: =Hydraulics_gravity!$B$41*1.03^('Sulfiddannelse i trykledning'!$C$11-20)*F69 -> 3.417869695 | K70: =(0.349+0.671)*H69^0.1*G69*1.07^('Sulfiddannelse i trykledning'!$C$11-20) -> 1.473853159 | L70: =2.4/24*E69^0.5*H69^0.5*1.03^('Sulfiddannelse i trykledning'!$C$11-20)*Hydraulics_gravity!$T$51 -> 8.409772749 | M70: =Hydraulics_gravity!$B$40*1.03^('Sulfiddannelse i trykledning'!$C$11-20)*(10-H69) -> 29.60701898 | N70: 0.08764111506 | O70: =IF(11.4*(N70/'Korrosion nedstrøms'!$C$17)*k_corr>0,11.4*(N70/'Korrosion nedstrøms'!$C$17)*k_corr,0.00001) -> 1.498663067 | P70: 21.68599514
C71: =D71/Hydraulics_gravity!$R$51+$C$15 -> 117.8551128 | D71: 56 | E71: 2.897013625 | F71: =E71*'Trykledning beregning'!$G$14 -> 1.120747903 | G71: 1.776265722 | H71: 1.828759565 | J71: =Hydraulics_gravity!$B$41*1.03^('Sulfiddannelse i trykledning'!$C$11-20)*F70 -> 3.408744601 | K71: =(0.349+0.671)*H70^0.1*G70*1.07^('Sulfiddannelse i trykledning'!$C$11-20) -> 1.471041891 | L71: =2.4/24*E70^0.5*H70^0.5*1.03^('Sulfiddannelse i trykledning'!$C$11-20)*Hydraulics_gravity!$T$51 -> 8.430688662 | M71: =Hydraulics_gravity!$B$40*1.03^('Sulfiddannelse i trykledning'!$C$11-20)*(10-H70) -> 29.55712727 | N71: 0.08740642303 | O71: =IF(11.4*(N71/'Korrosion nedstrøms'!$C$17)*k_corr>0,11.4*(N71/'Korrosion nedstrøms'!$C$17)*k_corr,0.00001) -> 1.494649834 | P71: 21.74422347
C72: =D72/Hydraulics_gravity!$R$51+$C$15 -> 119.9596683 | D72: 57 | E72: 2.889227283 | F72: =E72*'Trykledning beregning'!$G$14 -> 1.117735654 | G72: 1.771491629 | H72: 1.842509243 | J72: =Hydraulics_gravity!$B$41*1.03^('Sulfiddannelse i trykledning'!$C$11-20)*F71 -> 3.399613346 | K72: =(0.349+0.671)*H71^0.1*G71*1.07^('Sulfiddannelse i trykledning'!$C$11-20) -> 1.468211621 | L72: =2.4/24*E71^0.5*H71^0.5*1.03^('Sulfiddannelse i trykledning'!$C$11-20)*Hydraulics_gravity!$T$51 -> 8.451296814 | M72: =Hydraulics_gravity!$B$40*1.03^('Sulfiddannelse i trykledning'!$C$11-20)*(10-H71) -> 29.50735584 | N72: 0.08717157795 | O72: =IF(11.4*(N72/'Korrosion nedstrøms'!$C$17)*k_corr>0,11.4*(N72/'Korrosion nedstrøms'!$C$17)*k_corr,0.00001) -> 1.490633983 | P72: 21.80280362
C73: =D73/Hydraulics_gravity!$R$51+$C$15 -> 122.0642239 | D73: 58 | E73: 2.881436078 | F73: =E73*'Trykledning beregning'!$G$14 -> 1.114721524 | G73: 1.766714555 | H73: 1.856225958 | J73: =Hydraulics_gravity!$B$41*1.03^('Sulfiddannelse i trykledning'!$C$11-20)*F72 -> 3.39047616 | K73: =(0.349+0.671)*H72^0.1*G72*1.07^('Sulfiddannelse i trykledning'!$C$11-20) -> 1.465362701 | L73: =2.4/24*E72^0.5*H72^0.5*1.03^('Sulfiddannelse i trykledning'!$C$11-20)*Hydraulics_gravity!$T$51 -> 8.471600584 | M73: =Hydraulics_gravity!$B$40*1.03^('Sulfiddannelse i trykledning'!$C$11-20)*(10-H72) -> 29.45770406 | N73: 0.08693658562 | O73: =IF(11.4*(N73/'Korrosion nedstrøms'!$C$17)*k_corr>0,11.4*(N73/'Korrosion nedstrøms'!$C$17)*k_corr,0.00001) -> 1.486615614 | P73: 21.86173729
C74: =D74/Hydraulics_gravity!$R$51+$C$15 -> 124.1687795 | D74: 59 | E74: 2.873640201 | F74: =E74*'Trykledning beregning'!$G$14 -> 1.111705586 | G74: 1.761934615 | H74: 1.869909881 | J74: =Hydraulics_gravity!$B$41*1.03^('Sulfiddannelse i trykledning'!$C$11-20)*F73 -> 3.381333268 | K74: =(0.349+0.671)*H73^0.1*G73*1.07^('Sulfiddannelse i trykledning'!$C$11-20) -> 1.462495478 | L74: =2.4/24*E73^0.5*H73^0.5*1.03^('Sulfiddannelse i trykledning'!$C$11-20)*Hydraulics_gravity!$T$51 -> 8.491603278 | M74: =Hydraulics_gravity!$B$40*1.03^('Sulfiddannelse i trykledning'!$C$11-20)*(10-H73) -> 29.40817131 | N74: 0.08670145178 | O74: =IF(11.4*(N74/'Korrosion nedstrøms'!$C$17)*k_corr>0,11.4*(N74/'Korrosion nedstrøms'!$C$17)*k_corr,0.00001) -> 1.482594825 | P74: 21.92102619
C75: =D75/Hydraulics_gravity!$R$51+$C$15 -> 126.2733351 | D75: 60 | E75: 2.865839839 | F75: =E75*'Trykledning beregning'!$G$14 -> 1.108687913 | G75: 1.757151926 | H75: 1.88356118 | J75: =Hydraulics_gravity!$B$41*1.03^('Sulfiddannelse i trykledning'!$C$11-20)*F74 -> 3.372184892 | K75: =(0.349+0.671)*H74^0.1*G74*1.07^('Sulfiddannelse i trykledning'!$C$11-20) -> 1.45961029 | L75: =2.4/24*E74^0.5*H74^0.5*1.03^('Sulfiddannelse i trykledning'!$C$11-20)*Hydraulics_gravity!$T$51 -> 8.511308142 | M75: =Hydraulics_gravity!$B$40*1.03^('Sulfiddannelse i trykledning'!$C$11-20)*(10-H74) -> 29.35875698 | N75: 0.0864661821 | O75: =IF(11.4*(N75/'Korrosion nedstrøms'!$C$17)*k_corr>0,11.4*(N75/'Korrosion nedstrøms'!$C$17)*k_corr,0.00001) -> 1.478571714 | P75: 21.98067209
C76: =D76/Hydraulics_gravity!$R$51+$C$15 -> 128.3778907 | D76: 61 | E76: 2.858035179 | F76: =E76*'Trykledning beregning'!$G$14 -> 1.105668577 | G76: 1.752366601 | H76: 1.897180024 | J76: =Hydraulics_gravity!$B$41*1.03^('Sulfiddannelse i trykledning'!$C$11-20)*F75 -> 3.363031254 | K76: =(0.349+0.671)*H75^0.1*G75*1.07^('Sulfiddannelse i trykledning'!$C$11-20) -> 1.456707469 | L76: =2.4/24*E75^0.5*H75^0.5*1.03^('Sulfiddannelse i trykledning'!$C$11-20)*Hydraulics_gravity!$T$51 -> 8.530718355 | M76: =Hydraulics_gravity!$B$40*1.03^('Sulfiddannelse i trykledning'!$C$11-20)*(10-H75) -> 29.30946046 | N76: 0.0862307822 | O76: =IF(11.4*(N76/'Korrosion nedstrøms'!$C$17)*k_corr>0,11.4*(N76/'Korrosion nedstrøms'!$C$17)*k_corr,0.00001) -> 1.474546376 | P76: 22.04067674
C77: =D77/Hydraulics_gravity!$R$51+$C$15 -> 130.4824463 | D77: 62 | E77: 2.850226402 | F77: =E77*'Trykledning beregning'!$G$14 -> 1.102647649 | G77: 1.747578753 | H77: 1.910766577 | J77: =Hydraulics_gravity!$B$41*1.03^('Sulfiddannelse i trykledning'!$C$11-20)*F76 -> 3.353872571 | K77: =(0.349+0.671)*H76^0.1*G76*1.07^('Sulfiddannelse i trykledning'!$C$11-20) -> 1.45378734 | L77: =2.4/24*E76^0.5*H76^0.5*1.03^('Sulfiddannelse i trykledning'!$C$11-20)*Hydraulics_gravity!$T$51 -> 8.549837036 | M77: =Hydraulics_gravity!$B$40*1.03^('Sulfiddannelse i trykledning'!$C$11-20)*(10-H76) -> 29.26028114 | N77: 0.0859952576 | O77: =IF(11.4*(N77/'Korrosion nedstrøms'!$C$17)*k_corr>0,11.4*(N77/'Korrosion nedstrøms'!$C$17)*k_corr,0.00001) -> 1.470518905 | P77: 22.10104195
C78: =D78/Hydraulics_gravity!$R$51+$C$15 -> 132.5870018 | D78: 63 | E78: 2.842413692 | F78: =E78*'Trykledning beregning'!$G$14 -> 1.099625199 | G78: 1.742788493 | H78: 1.924321005 | J78: =Hydraulics_gravity!$B$41*1.03^('Sulfiddannelse i trykledning'!$C$11-20)*F77 -> 3.344709059 | K78: =(0.349+0.671)*H77^0.1*G77*1.07^('Sulfiddannelse i trykledning'!$C$11-20) -> 1.450850222 | L78: =2.4/24*E77^0.5*H77^0.5*1.03^('Sulfiddannelse i trykledning'!$C$11-20)*Hydraulics_gravity!$T$51 -> 8.568667245 | M78: =Hydraulics_gravity!$B$40*1.03^('Sulfiddannelse i trykledning'!$C$11-20)*(10-H77) -> 29.21121842 | N78: 0.08575961379 | O78: =IF(11.4*(N78/'Korrosion nedstrøms'!$C$17)*k_corr>0,11.4*(N78/'Korrosion nedstrøms'!$C$17)*k_corr,0.00001) -> 1.466489396 | P78: 22.16176952
C79: =D79/Hydraulics_gravity!$R$51+$C$15 -> 134.6915574 | D79: 64 | E79: 2.834597227 | F79: =E79*'Trykledning beregning'!$G$14 -> 1.096601297 | G79: 1.73799593 | H79: 1.937843471 | J79: =Hydraulics_gravity!$B$41*1.03^('Sulfiddannelse i trykledning'!$C$11-20)*F78 -> 3.33554093 | K79: =(0.349+0.671)*H78^0.1*G78*1.07^('Sulfiddannelse i trykledning'!$C$11-20) -> 1.447896428 | L79: =2.4/24*E78^0.5*H78^0.5*1.03^('Sulfiddannelse i trykledning'!$C$11-20)*Hydraulics_gravity!$T$51 -> 8.587211981 | M79: =Hydraulics_gravity!$B$40*1.03^('Sulfiddannelse i trykledning'!$C$11-20)*(10-H78) -> 29.16227171 | N79: 0.08552385618 | O79: =IF(11.4*(N79/'Korrosion nedstrøms'!$C$17)*k_corr>0,11.4*(N79/'Korrosion nedstrøms'!$C$17)*k_corr,0.00001) -> 1.462457941 | P79: 22.22286132
C80: =D80/Hydraulics_gravity!$R$51+$C$15 -> 136.796113 | D80: 65 | E80: 2.826777184 | F80: =E80*'Trykledning beregning'!$G$14 -> 1.09357601 | G80: =E80-F80 -> 1.733201174 | H80: =H79+(M80-K80*1.2-L80*0.5)*(C80-C79)/3600 -> 1.951334135 | J80: =Hydraulics_gravity!$B$41*1.03^('Sulfiddannelse i trykledning'!$C$11-20)*F79 -> 3.326368395 | K80: =(0.349+0.671)*H79^0.1*G79*1.07^('Sulfiddannelse i trykledning'!$C$11-20) -> 1.444926265 | L80: =2.4/24*E79^0.5*H79^0.5*1.03^('Sulfiddannelse i trykledning'!$C$11-20)*Hydraulics_gravity!$T$51 -> 8.605474188 | M80: =Hydraulics_gravity!$B$40*1.03^('Sulfiddannelse i trykledning'!$C$11-20)*(10-H79) -> 29.11344042 | N80: =(($E$1*J80)+(1-$E$1)*J81)*$G$3/$G$5 -> 0.08528799014 | O80: =IF(11.4*(N80/'Korrosion nedstrøms'!$C$17)*k_corr>0,11.4*(N80/'Korrosion nedstrøms'!$C$17)*k_corr,0.00001) -> 1.458424631 | P80: =IF($P$10/O80<100,$P$10/O80,100) -> 22.28431919
C81: =D81/Hydraulics_gravity!$R$51+$C$15 -> 138.9006686 | D81: 66 | E81: =IF(E80-(J81+K81+L81)*(C81-C80)/3600>0,E80-(J81+K81+L81)*(C81-C80)/3600,0) -> 2.818953739 | F81: =E81*'Trykledning beregning'!$G$14 -> 1.090549407 | G81: 1.728404332 | H81: 1.964793158 | J81: =Hydraulics_gravity!$B$41*1.03^('Sulfiddannelse i trykledning'!$C$11-20)*F80 -> 3.317191661 | K81: =(0.349+0.671)*H80^0.1*G80*1.07^('Sulfiddannelse i trykledning'!$C$11-20) -> 1.441940034 | L81: =2.4/24*E80^0.5*H80^0.5*1.03^('Sulfiddannelse i trykledning'!$C$11-20)*Hydraulics_gravity!$T$51 -> 8.623456757 | M81: =Hydraulics_gravity!$B$40*1.03^('Sulfiddannelse i trykledning'!$C$11-20)*(10-H80) -> 29.06472397 | N81: 0.08505202094 | O81: =IF(11.4*(N81/'Korrosion nedstrøms'!$C$17)*k_corr>0,11.4*(N81/'Korrosion nedstrøms'!$C$17)*k_corr,0.00001) -> 1.454389558 | P81: 22.34614503
C82: =D82/Hydraulics_gravity!$R$51+$C$15 -> 141.0052242 | D82: 67 | E82: 2.811127066 | F82: =E82*'Trykledning beregning'!$G$14 -> 1.087521556 | G82: 1.72360551 | H82: 1.978220699 | J82: =Hydraulics_gravity!$B$41*1.03^('Sulfiddannelse i trykledning'!$C$11-20)*F81 -> 3.308010936 | K82: =(0.349+0.671)*H81^0.1*G81*1.07^('Sulfiddannelse i trykledning'!$C$11-20) -> 1.43893803 | L82: =2.4/24*E81^0.5*H81^0.5*1.03^('Sulfiddannelse i trykledning'!$C$11-20)*Hydraulics_gravity!$T$51 -> 8.641162522 | M82: =Hydraulics_gravity!$B$40*1.03^('Sulfiddannelse i trykledning'!$C$11-20)*(10-H81) -> 29.01612178 | N82: 0.08481595383 | O82: =IF(11.4*(N82/'Korrosion nedstrøms'!$C$17)*k_corr>0,11.4*(N82/'Korrosion nedstrøms'!$C$17)*k_corr,0.00001) -> 1.450352811 | P82: 22.40834076
C83: =D83/Hydraulics_gravity!$R$51+$C$15 -> 143.1097798 | D83: 68 | E83: 2.803297335 | F83: =E83*'Trykledning beregning'!$G$14 -> 1.084492521 | G83: 1.718804814 | H83: 1.991616915 | J83: =Hydraulics_gravity!$B$41*1.03^('Sulfiddannelse i trykledning'!$C$11-20)*F82 -> 3.298826421 | K83: =(0.349+0.671)*H82^0.1*G82*1.07^('Sulfiddannelse i trykledning'!$C$11-20) -> 1.435920544 | L83: =2.4/24*E82^0.5*H82^0.5*1.03^('Sulfiddannelse i trykledning'!$C$11-20)*Hydraulics_gravity!$T$51 -> 8.658594267 | M83: =Hydraulics_gravity!$B$40*1.03^('Sulfiddannelse i trykledning'!$C$11-20)*(10-H82) -> 28.96763327 | N83: 0.08457979399 | O83: =IF(11.4*(N83/'Korrosion nedstrøms'!$C$17)*k_corr>0,11.4*(N83/'Korrosion nedstrøms'!$C$17)*k_corr,0.00001) -> 1.446314477 | P83: 22.47090831
C84: =D84/Hydraulics_gravity!$R$51+$C$15 -> 145.2143354 | D84: 69 | E84: 2.795464716 | F84: =E84*'Trykledning beregning'!$G$14 -> 1.081462369 | G84: 1.714002347 | H84: 2.004981963 | J84: =Hydraulics_gravity!$B$41*1.03^('Sulfiddannelse i trykledning'!$C$11-20)*F83 -> 3.289638319 | K84: =(0.349+0.671)*H83^0.1*G83*1.07^('Sulfiddannelse i trykledning'!$C$11-20) -> 1.432887859 | L84: =2.4/24*E83^0.5*H83^0.5*1.03^('Sulfiddannelse i trykledning'!$C$11-20)*Hydraulics_gravity!$T$51 -> 8.675754727 | M84: =Hydraulics_gravity!$B$40*1.03^('Sulfiddannelse i trykledning'!$C$11-20)*(10-H83) -> 28.91925789 | N84: 0.08434354653 | O84: =IF(11.4*(N84/'Korrosion nedstrøms'!$C$17)*k_corr>0,11.4*(N84/'Korrosion nedstrøms'!$C$17)*k_corr,0.00001) -> 1.442274646 | P84: 22.53384964
C85: =D85/Hydraulics_gravity!$R$51+$C$15 -> 147.3188909 | D85: 70 | E85: 2.787629377 | F85: =E85*'Trykledning beregning'!$G$14 -> 1.078431165 | G85: 1.709198212 | H85: 2.018315996 | J85: =Hydraulics_gravity!$B$41*1.03^('Sulfiddannelse i trykledning'!$C$11-20)*F84 -> 3.280446828 | K85: =(0.349+0.671)*H84^0.1*G84*1.07^('Sulfiddannelse i trykledning'!$C$11-20) -> 1.429840256 | L85: =2.4/24*E84^0.5*H84^0.5*1.03^('Sulfiddannelse i trykledning'!$C$11-20)*Hydraulics_gravity!$T$51 -> 8.692646583 | M85: =Hydraulics_gravity!$B$40*1.03^('Sulfiddannelse i trykledning'!$C$11-20)*(10-H84) -> 28.87099505 | N85: 0.08410721653 | O85: =IF(11.4*(N85/'Korrosion nedstrøms'!$C$17)*k_corr>0,11.4*(N85/'Korrosion nedstrøms'!$C$17)*k_corr,0.00001) -> 1.438233403 | P85: 22.59716673
C86: =D86/Hydraulics_gravity!$R$51+$C$15 -> 149.4234465 | D86: 71 | E86: 2.779791485 | F86: =E86*'Trykledning beregning'!$G$14 -> 1.075398973 | G86: 1.704392512 | H86: 2.031619169 | J86: =Hydraulics_gravity!$B$41*1.03^('Sulfiddannelse i trykledning'!$C$11-20)*F85 -> 3.271252145 | K86: =(0.349+0.671)*H85^0.1*G85*1.07^('Sulfiddannelse i trykledning'!$C$11-20) -> 1.42677801 | L86: =2.4/24*E85^0.5*H85^0.5*1.03^('Sulfiddannelse i trykledning'!$C$11-20)*Hydraulics_gravity!$T$51 -> 8.709272473 | M86: =Hydraulics_gravity!$B$40*1.03^('Sulfiddannelse i trykledning'!$C$11-20)*(10-H85) -> 28.82284422 | N86: 0.08387080898 | O86: =IF(11.4*(N86/'Korrosion nedstrøms'!$C$17)*k_corr>0,11.4*(N86/'Korrosion nedstrøms'!$C$17)*k_corr,0.00001) -> 1.434190834 | P86: 22.66086161
C87: =D87/Hydraulics_gravity!$R$51+$C$15 -> 151.5280021 | D87: 72 | E87: 2.771951202 | F87: =E87*'Trykledning beregning'!$G$14 -> 1.072365856 | G87: 1.699585346 | H87: 2.044891634 | J87: =Hydraulics_gravity!$B$41*1.03^('Sulfiddannelse i trykledning'!$C$11-20)*F86 -> 3.262054465 | K87: =(0.349+0.671)*H86^0.1*G86*1.07^('Sulfiddannelse i trykledning'!$C$11-20) -> 1.423701389 | L87: =2.4/24*E86^0.5*H86^0.5*1.03^('Sulfiddannelse i trykledning'!$C$11-20)*Hydraulics_gravity!$T$51 -> 8.725634987 | M87: =Hydraulics_gravity!$B$40*1.03^('Sulfiddannelse i trykledning'!$C$11-20)*(10-H86) -> 28.77480482 | N87: 0.08363432885 | O87: =IF(11.4*(N87/'Korrosion nedstrøms'!$C$17)*k_corr>0,11.4*(N87/'Korrosion nedstrøms'!$C$17)*k_corr,0.00001) -> 1.430147023 | P87: 22.7249363
C88: =D88/Hydraulics_gravity!$R$51+$C$15 -> 153.6325577 | D88: 73 | E88: 2.764108692 | F88: =E88*'Trykledning beregning'!$G$14 -> 1.069331878 | G88: 1.694776814 | H88: 2.058133542 | J88: =Hydraulics_gravity!$B$41*1.03^('Sulfiddannelse i trykledning'!$C$11-20)*F87 -> 3.25285398 | K88: =(0.349+0.671)*H87^0.1*G87*1.07^('Sulfiddannelse i trykledning'!$C$11-20) -> 1.420610658 | L88: =2.4/24*E87^0.5*H87^0.5*1.03^('Sulfiddannelse i trykledning'!$C$11-20)*Hydraulics_gravity!$T$51 -> 8.741736667 | M88: =Hydraulics_gravity!$B$40*1.03^('Sulfiddannelse i trykledning'!$C$11-20)*(10-H87) -> 28.72687631 | N88: 0.08339778104 | O88: =IF(11.4*(N88/'Korrosion nedstrøms'!$C$17)*k_corr>0,11.4*(N88/'Korrosion nedstrøms'!$C$17)*k_corr,0.00001) -> 1.426102056 | P88: 22.78939285
C89: =D89/Hydraulics_gravity!$R$51+$C$15 -> 155.7371133 | D89: 74 | E89: 2.756264115 | F89: =E89*'Trykledning beregning'!$G$14 -> 1.0662971 | G89: 1.689967015 | H89: 2.071345042 | J89: =Hydraulics_gravity!$B$41*1.03^('Sulfiddannelse i trykledning'!$C$11-20)*F88 -> 3.243650881 | K89: =(0.349+0.671)*H88^0.1*G88*1.07^('Sulfiddannelse i trykledning'!$C$11-20) -> 1.417506079 | L89: =2.4/24*E88^0.5*H88^0.5*1.03^('Sulfiddannelse i trykledning'!$C$11-20)*Hydraulics_gravity!$T$51 -> 8.757580014 | M89: =Hydraulics_gravity!$B$40*1.03^('Sulfiddannelse i trykledning'!$C$11-20)*(10-H88) -> 28.67905815 | N89: 0.0831611704 | O89: =IF(11.4*(N89/'Korrosion nedstrøms'!$C$17)*k_corr>0,11.4*(N89/'Korrosion nedstrøms'!$C$17)*k_corr,0.00001) -> 1.422056014 | P89: 22.85423337
C90: =D90/Hydraulics_gravity!$R$51+$C$15 -> 157.8416689 | D90: 75 | E90: 2.74841763 | F90: =E90*'Trykledning beregning'!$G$14 -> 1.063261584 | G90: 1.685156046 | H90: 2.084526283 | J90: =Hydraulics_gravity!$B$41*1.03^('Sulfiddannelse i trykledning'!$C$11-20)*F89 -> 3.234445357 | K90: =(0.349+0.671)*H89^0.1*G89*1.07^('Sulfiddannelse i trykledning'!$C$11-20) -> 1.414387905 | L90: =2.4/24*E89^0.5*H89^0.5*1.03^('Sulfiddannelse i trykledning'!$C$11-20)*Hydraulics_gravity!$T$51 -> 8.773167485 | M90: =Hydraulics_gravity!$B$40*1.03^('Sulfiddannelse i trykledning'!$C$11-20)*(10-H89) -> 28.6313498 | N90: 0.08292450173 | O90: =IF(11.4*(N90/'Korrosion nedstrøms'!$C$17)*k_corr>0,11.4*(N90/'Korrosion nedstrøms'!$C$17)*k_corr,0.00001) -> 1.41800898 | P90: 22.91945994
C91: =D91/Hydraulics_gravity!$R$51+$C$15 -> 159.9462244 | D91: 76 | E91: 2.740569394 | F91: =E91*'Trykledning beregning'!$G$14 -> 1.06022539 | G91: 1.680344003 | H91: 2.097677413 | J91: =Hydraulics_gravity!$B$41*1.03^('Sulfiddannelse i trykledning'!$C$11-20)*F90 -> 3.225237594 | K91: =(0.349+0.671)*H90^0.1*G90*1.07^('Sulfiddannelse i trykledning'!$C$11-20) -> 1.41125639 | L91: =2.4/24*E90^0.5*H90^0.5*1.03^('Sulfiddannelse i trykledning'!$C$11-20)*Hydraulics_gravity!$T$51 -> 8.788501495 | M91: =Hydraulics_gravity!$B$40*1.03^('Sulfiddannelse i trykledning'!$C$11-20)*(10-H90) -> 28.58375071 | N91: 0.08268777977 | O91: =IF(11.4*(N91/'Korrosion nedstrøms'!$C$17)*k_corr>0,11.4*(N91/'Korrosion nedstrøms'!$C$17)*k_corr,0.00001) -> 1.413961034 | P91: 22.98507471
C92: =D92/Hydraulics_gravity!$R$51+$C$15 -> 162.05078 | D92: 77 | E92: 2.732719563 | F92: =E92*'Trykledning beregning'!$G$14 -> 1.05718858 | G92: 1.675530983 | H92: 2.110798577 | J92: =Hydraulics_gravity!$B$41*1.03^('Sulfiddannelse i trykledning'!$C$11-20)*F91 -> 3.216027776 | K92: =(0.349+0.671)*H91^0.1*G91*1.07^('Sulfiddannelse i trykledning'!$C$11-20) -> 1.40811178 | L92: =2.4/24*E91^0.5*H91^0.5*1.03^('Sulfiddannelse i trykledning'!$C$11-20)*Hydraulics_gravity!$T$51 -> 8.803584416 | M92: =Hydraulics_gravity!$B$40*1.03^('Sulfiddannelse i trykledning'!$C$11-20)*(10-H91) -> 28.53626036 | N92: 0.08245100924 | O92: =IF(11.4*(N92/'Korrosion nedstrøms'!$C$17)*k_corr>0,11.4*(N92/'Korrosion nedstrøms'!$C$17)*k_corr,0.00001) -> 1.409912258 | P92: 23.05107982
C93: =D93/Hydraulics_gravity!$R$51+$C$15 -> 164.1553356 | D93: 78 | E93: 2.724868291 | F93: =E93*'Trykledning beregning'!$G$14 -> 1.054151212 | G93: 1.670717079 | H93: 2.12388992 | J93: =Hydraulics_gravity!$B$41*1.03^('Sulfiddannelse i trykledning'!$C$11-20)*F92 -> 3.206816087 | K93: =(0.349+0.671)*H92^0.1*G92*1.07^('Sulfiddannelse i trykledning'!$C$11-20) -> 1.404954318 | L93: =2.4/24*E92^0.5*H92^0.5*1.03^('Sulfiddannelse i trykledning'!$C$11-20)*Hydraulics_gravity!$T$51 -> 8.818418584 | M93: =Hydraulics_gravity!$B$40*1.03^('Sulfiddannelse i trykledning'!$C$11-20)*(10-H92) -> 28.48887822 | N93: 0.08221419477 | O93: =IF(11.4*(N93/'Korrosion nedstrøms'!$C$17)*k_corr>0,11.4*(N93/'Korrosion nedstrøms'!$C$17)*k_corr,0.00001) -> 1.405862731 | P93: 23.11747747
C94: =D94/Hydraulics_gravity!$R$51+$C$15 -> 166.2598912 | D94: 79 | E94: 2.71701573 | F94: =E94*'Trykledning beregning'!$G$14 -> 1.051113345 | G94: 1.665902385 | H94: 2.136951587 | J94: =Hydraulics_gravity!$B$41*1.03^('Sulfiddannelse i trykledning'!$C$11-20)*F93 -> 3.197602706 | K94: =(0.349+0.671)*H93^0.1*G93*1.07^('Sulfiddannelse i trykledning'!$C$11-20) -> 1.401784242 | L94: =2.4/24*E93^0.5*H93^0.5*1.03^('Sulfiddannelse i trykledning'!$C$11-20)*Hydraulics_gravity!$T$51 -> 8.833006293 | M94: =Hydraulics_gravity!$B$40*1.03^('Sulfiddannelse i trykledning'!$C$11-20)*(10-H93) -> 28.44160377 | N94: 0.08197734098 | O94: =IF(11.4*(N94/'Korrosion nedstrøms'!$C$17)*k_corr>0,11.4*(N94/'Korrosion nedstrøms'!$C$17)*k_corr,0.00001) -> 1.401812531 | P94: 23.18426986
C95: =D95/Hydraulics_gravity!$R$51+$C$15 -> 168.3644468 | D95: 80 | E95: 2.709162032 | F95: =E95*'Trykledning beregning'!$G$14 -> 1.048075038 | G95: 1.661086993 | H95: 2.14998372 | J95: =Hydraulics_gravity!$B$41*1.03^('Sulfiddannelse i trykledning'!$C$11-20)*F94 -> 3.188387813 | K95: =(0.349+0.671)*H94^0.1*G94*1.07^('Sulfiddannelse i trykledning'!$C$11-20) -> 1.398601789 | L95: =2.4/24*E94^0.5*H94^0.5*1.03^('Sulfiddannelse i trykledning'!$C$11-20)*Hydraulics_gravity!$T$51 -> 8.8473498 | M95: =Hydraulics_gravity!$B$40*1.03^('Sulfiddannelse i trykledning'!$C$11-20)*(10-H94) -> 28.39443648 | N95: 0.08174045241 | O95: =IF(11.4*(N95/'Korrosion nedstrøms'!$C$17)*k_corr>0,11.4*(N95/'Korrosion nedstrøms'!$C$17)*k_corr,0.00001) -> 1.397761736 | P95: 23.25145921
C96: =D96/Hydraulics_gravity!$R$51+$C$15 -> 170.4690024 | D96: 81 | E96: 2.701307345 | F96: =E96*'Trykledning beregning'!$G$14 -> 1.045036349 | G96: 1.656270996 | H96: 2.16298646 | J96: =Hydraulics_gravity!$B$41*1.03^('Sulfiddannelse i trykledning'!$C$11-20)*F95 -> 3.179171585 | K96: =(0.349+0.671)*H95^0.1*G95*1.07^('Sulfiddannelse i trykledning'!$C$11-20) -> 1.395407188 | L96: =2.4/24*E95^0.5*H95^0.5*1.03^('Sulfiddannelse i trykledning'!$C$11-20)*Hydraulics_gravity!$T$51 -> 8.861451325 | M96: =Hydraulics_gravity!$B$40*1.03^('Sulfiddannelse i trykledning'!$C$11-20)*(10-H95) -> 28.34737585 | N96: 0.08150353358 | O96: =IF(11.4*(N96/'Korrosion nedstrøms'!$C$17)*k_corr>0,11.4*(N96/'Korrosion nedstrøms'!$C$17)*k_corr,0.00001) -> 1.393710424 | P96: 23.3190478
C97: =D97/Hydraulics_gravity!$R$51+$C$15 -> 172.573558 | D97: 82 | E97: 2.693451818 | F97: =E97*'Trykledning beregning'!$G$14 -> 1.041997335 | G97: 1.651454483 | H97: 2.175959949 | J97: =Hydraulics_gravity!$B$41*1.03^('Sulfiddannelse i trykledning'!$C$11-20)*F96 -> 3.169954198 | K97: =(0.349+0.671)*H96^0.1*G96*1.07^('Sulfiddannelse i trykledning'!$C$11-20) -> 1.392200668 | L97: =2.4/24*E96^0.5*H96^0.5*1.03^('Sulfiddannelse i trykledning'!$C$11-20)*Hydraulics_gravity!$T$51 -> 8.875313053 | M97: =Hydraulics_gravity!$B$40*1.03^('Sulfiddannelse i trykledning'!$C$11-20)*(10-H96) -> 28.30042135 | N97: 0.08126658895 | O97: =IF(11.4*(N97/'Korrosion nedstrøms'!$C$17)*k_corr>0,11.4*(N97/'Korrosion nedstrøms'!$C$17)*k_corr,0.00001) -> 1.389658671 | P97: 23.38703789
C98: =D98/Hydraulics_gravity!$R$51+$C$15 -> 174.6781135 | D98: 83 | E98: 2.685595596 | F98: =E98*'Trykledning beregning'!$G$14 -> 1.038958052 | G98: 1.646637544 | H98: 2.188904325 | J98: =Hydraulics_gravity!$B$41*1.03^('Sulfiddannelse i trykledning'!$C$11-20)*F97 -> 3.160735824 | K98: =(0.349+0.671)*H97^0.1*G97*1.07^('Sulfiddannelse i trykledning'!$C$11-20) -> 1.388982452 | L98: =2.4/24*E97^0.5*H97^0.5*1.03^('Sulfiddannelse i trykledning'!$C$11-20)*Hydraulics_gravity!$T$51 -> 8.888937131 | M98: =Hydraulics_gravity!$B$40*1.03^('Sulfiddannelse i trykledning'!$C$11-20)*(10-H97) -> 28.25357248 | N98: 0.08102962294 | O98: =IF(11.4*(N98/'Korrosion nedstrøms'!$C$17)*k_corr>0,11.4*(N98/'Korrosion nedstrøms'!$C$17)*k_corr,0.00001) -> 1.385606552 | P98: 23.45543181
C99: =D99/Hydraulics_gravity!$R$51+$C$15 -> 176.7826691 | D99: 84 | E99: 2.677738826 | F99: =E99*'Trykledning beregning'!$G$14 -> 1.035918557 | G99: 1.641820269 | H99: 2.201819727 | J99: =Hydraulics_gravity!$B$41*1.03^('Sulfiddannelse i trykledning'!$C$11-20)*F98 -> 3.151516635 | K99: =(0.349+0.671)*H98^0.1*G98*1.07^('Sulfiddannelse i trykledning'!$C$11-20) -> 1.38575276 | L99: =2.4/24*E98^0.5*H98^0.5*1.03^('Sulfiddannelse i trykledning'!$C$11-20)*Hydraulics_gravity!$T$51 -> 8.902325675 | M99: =Hydraulics_gravity!$B$40*1.03^('Sulfiddannelse i trykledning'!$C$11-20)*(10-H98) -> 28.20682875 | N99: 0.08079263993 | O99: =IF(11.4*(N99/'Korrosion nedstrøms'!$C$17)*k_corr>0,11.4*(N99/'Korrosion nedstrøms'!$C$17)*k_corr,0.00001) -> 1.381554143 | P99: 23.52423187
C100: =D100/Hydraulics_gravity!$R$51+$C$15 -> 178.8872247 | D100: 85 | E100: 2.669881649 | F100: =E100*'Trykledning beregning'!$G$14 -> 1.032878904 | G100: 1.637002744 | H100: 2.214706292 | J100: =Hydraulics_gravity!$B$41*1.03^('Sulfiddannelse i trykledning'!$C$11-20)*F99 -> 3.142296801 | K100: =(0.349+0.671)*H99^0.1*G99*1.07^('Sulfiddannelse i trykledning'!$C$11-20) -> 1.382511809 | L100: =2.4/24*E99^0.5*H99^0.5*1.03^('Sulfiddannelse i trykledning'!$C$11-20)*Hydraulics_gravity!$T$51 -> 8.915480765 | M100: =Hydraulics_gravity!$B$40*1.03^('Sulfiddannelse i trykledning'!$C$11-20)*(10-H99) -> 28.16018964 | N100: 0.08055564423 | O100: =IF(11.4*(N100/'Korrosion nedstrøms'!$C$17)*k_corr>0,11.4*(N100/'Korrosion nedstrøms'!$C$17)*k_corr,0.00001) -> 1.377501516 | P100: 23.59344045
C101: =D101/Hydraulics_gravity!$R$51+$C$15 -> 180.9917803 | D101: 86 | E101: 2.662024208 | F101: =E101*'Trykledning beregning'!$G$14 -> 1.02983915 | G101: 1.632185058 | H101: 2.227564156 | J101: =Hydraulics_gravity!$B$41*1.03^('Sulfiddannelse i trykledning'!$C$11-20)*F100 -> 3.133076492 | K101: =(0.349+0.671)*H100^0.1*G100*1.07^('Sulfiddannelse i trykledning'!$C$11-20) -> 1.379259813 | L101: =2.4/24*E100^0.5*H100^0.5*1.03^('Sulfiddannelse i trykledning'!$C$11-20)*Hydraulics_gravity!$T$51 -> 8.92840445 | M101: =Hydraulics_gravity!$B$40*1.03^('Sulfiddannelse i trykledning'!$C$11-20)*(10-H100) -> 28.11365467 | N101: 0.08031864016 | O101: =IF(11.4*(N101/'Korrosion nedstrøms'!$C$17)*k_corr>0,11.4*(N101/'Korrosion nedstrøms'!$C$17)*k_corr,0.00001) -> 1.373448747 | P101: 23.66305993
C102: =D102/Hydraulics_gravity!$R$51+$C$15 -> 183.0963359 | D102: 87 | E102: 2.654166644 | F102: =E102*'Trykledning beregning'!$G$14 -> 1.026799348 | G102: 1.627367297 | H102: 2.240393456 | J102: =Hydraulics_gravity!$B$41*1.03^('Sulfiddannelse i trykledning'!$C$11-20)*F101 -> 3.123855872 | K102: =(0.349+0.671)*H101^0.1*G101*1.07^('Sulfiddannelse i trykledning'!$C$11-20) -> 1.375996981 | L102: =2.4/24*E101^0.5*H101^0.5*1.03^('Sulfiddannelse i trykledning'!$C$11-20)*Hydraulics_gravity!$T$51 -> 8.941098745 | M102: =Hydraulics_gravity!$B$40*1.03^('Sulfiddannelse i trykledning'!$C$11-20)*(10-H101) -> 28.06722333 | N102: 0.08008163193 | O102: =IF(11.4*(N102/'Korrosion nedstrøms'!$C$17)*k_corr>0,11.4*(N102/'Korrosion nedstrøms'!$C$17)*k_corr,0.00001) -> 1.369395906 | P102: 23.73309271
C103: =D103/Hydraulics_gravity!$R$51+$C$15 -> 185.2008915 | D103: 88 | E103: 2.646309097 | F103: =E103*'Trykledning beregning'!$G$14 -> 1.023759552 | G103: 1.622549545 | H103: 2.253194324 | J103: =Hydraulics_gravity!$B$41*1.03^('Sulfiddannelse i trykledning'!$C$11-20)*F102 -> 3.114635108 | K103: =(0.349+0.671)*H102^0.1*G102*1.07^('Sulfiddannelse i trykledning'!$C$11-20) -> 1.37272352 | L103: =2.4/24*E102^0.5*H102^0.5*1.03^('Sulfiddannelse i trykledning'!$C$11-20)*Hydraulics_gravity!$T$51 -> 8.953565635 | M103: =Hydraulics_gravity!$B$40*1.03^('Sulfiddannelse i trykledning'!$C$11-20)*(10-H102) -> 28.02089515 | N103: 0.07984462377 | O103: =IF(11.4*(N103/'Korrosion nedstrøms'!$C$17)*k_corr>0,11.4*(N103/'Korrosion nedstrøms'!$C$17)*k_corr,0.00001) -> 1.365343067 | P103: 23.80354125
C104: =D104/Hydraulics_gravity!$R$51+$C$15 -> 187.3054471 | D104: 89 | E104: 2.638451703 | F104: =E104*'Trykledning beregning'!$G$14 -> 1.020719816 | G104: 1.617731887 | H104: 2.265966894 | J104: =Hydraulics_gravity!$B$41*1.03^('Sulfiddannelse i trykledning'!$C$11-20)*F103 -> 3.105414363 | K104: =(0.349+0.671)*H103^0.1*G103*1.07^('Sulfiddannelse i trykledning'!$C$11-20) -> 1.369439633 | L104: =2.4/24*E103^0.5*H103^0.5*1.03^('Sulfiddannelse i trykledning'!$C$11-20)*Hydraulics_gravity!$T$51 -> 8.965807074 | M104: =Hydraulics_gravity!$B$40*1.03^('Sulfiddannelse i trykledning'!$C$11-20)*(10-H103) -> 27.97466964 | N104: 0.07960761984 | O104: =IF(11.4*(N104/'Korrosion nedstrøms'!$C$17)*k_corr>0,11.4*(N104/'Korrosion nedstrøms'!$C$17)*k_corr,0.00001) -> 1.361290299 | P104: 23.87440799
C105: =D105/Hydraulics_gravity!$R$51+$C$15 -> 189.4100026 | D105: 90 | E105: 2.630594599 | F105: =E105*'Trykledning beregning'!$G$14 -> 1.017680191 | G105: 1.612914408 | H105: 2.278711299 | J105: =Hydraulics_gravity!$B$41*1.03^('Sulfiddannelse i trykledning'!$C$11-20)*F104 -> 3.096193799 | K105: =(0.349+0.671)*H104^0.1*G104*1.07^('Sulfiddannelse i trykledning'!$C$11-20) -> 1.366145522 | L105: =2.4/24*E104^0.5*H104^0.5*1.03^('Sulfiddannelse i trykledning'!$C$11-20)*Hydraulics_gravity!$T$51 -> 8.977824987 | M105: =Hydraulics_gravity!$B$40*1.03^('Sulfiddannelse i trykledning'!$C$11-20)*(10-H104) -> 27.92854631 | N105: 0.07937062425 | O105: =IF(11.4*(N105/'Korrosion nedstrøms'!$C$17)*k_corr>0,11.4*(N105/'Korrosion nedstrøms'!$C$17)*k_corr,0.00001) -> 1.357237675 | P105: 23.94569544
C106: =D106/Hydraulics_gravity!$R$51+$C$15 -> 191.5145582 | D106: 91 | E106: 2.622737921 | F106: =E106*'Trykledning beregning'!$G$14 -> 1.014640732 | G106: 1.608097189 | H106: 2.29142767 | J106: =Hydraulics_gravity!$B$41*1.03^('Sulfiddannelse i trykledning'!$C$11-20)*F105 -> 3.086973575 | K106: =(0.349+0.671)*H105^0.1*G105*1.07^('Sulfiddannelse i trykledning'!$C$11-20) -> 1.362841384 | L106: =2.4/24*E105^0.5*H105^0.5*1.03^('Sulfiddannelse i trykledning'!$C$11-20)*Hydraulics_gravity!$T$51 -> 8.989621268 | M106: =Hydraulics_gravity!$B$40*1.03^('Sulfiddannelse i trykledning'!$C$11-20)*(10-H105) -> 27.8825247 | N106: 0.0791336411 | O106: =IF(11.4*(N106/'Korrosion nedstrøms'!$C$17)*k_corr>0,11.4*(N106/'Korrosion nedstrøms'!$C$17)*k_corr,0.00001) -> 1.353185263 | P106: 24.01740611
C107: =D107/Hydraulics_gravity!$R$51+$C$15 -> 193.6191138 | D107: 92 | E107: 2.614881803 | F107: =E107*'Trykledning beregning'!$G$14 -> 1.011601489 | G107: 1.603280314 | H107: 2.304116136 | J107: =Hydraulics_gravity!$B$41*1.03^('Sulfiddannelse i trykledning'!$C$11-20)*F106 -> 3.07775385 | K107: =(0.349+0.671)*H106^0.1*G106*1.07^('Sulfiddannelse i trykledning'!$C$11-20) -> 1.359527413 | L107: =2.4/24*E106^0.5*H106^0.5*1.03^('Sulfiddannelse i trykledning'!$C$11-20)*Hydraulics_gravity!$T$51 -> 9.001197786 | M107: =Hydraulics_gravity!$B$40*1.03^('Sulfiddannelse i trykledning'!$C$11-20)*(10-H106) -> 27.83660432 | N107: 0.07889667442 | O107: =IF(11.4*(N107/'Korrosion nedstrøms'!$C$17)*k_corr>0,11.4*(N107/'Korrosion nedstrøms'!$C$17)*k_corr,0.00001) -> 1.349133133 | P107: 24.08954255
C108: =D108/Hydraulics_gravity!$R$51+$C$15 -> 195.7236694 | D108: 93 | E108: 2.607026377 | F108: =E108*'Trykledning beregning'!$G$14 -> 1.008562514 | G108: 1.598463863 | H108: 2.316776828 | J108: =Hydraulics_gravity!$B$41*1.03^('Sulfiddannelse i trykledning'!$C$11-20)*F107 -> 3.068534783 | K108: =(0.349+0.671)*H107^0.1*G107*1.07^('Sulfiddannelse i trykledning'!$C$11-20) -> 1.356203802 | L108: =2.4/24*E107^0.5*H107^0.5*1.03^('Sulfiddannelse i trykledning'!$C$11-20)*Hydraulics_gravity!$T$51 -> 9.012556378 | M108: =Hydraulics_gravity!$B$40*1.03^('Sulfiddannelse i trykledning'!$C$11-20)*(10-H107) -> 27.7907847 | N108: 0.07865972821 | O108: =IF(11.4*(N108/'Korrosion nedstrøms'!$C$17)*k_corr>0,11.4*(N108/'Korrosion nedstrøms'!$C$17)*k_corr,0.00001) -> 1.345081352 | P108: 24.16210733
C109: =D109/Hydraulics_gravity!$R$51+$C$15 -> 197.828225 | D109: 94 | E109: 2.599171774 | F109: =E109*'Trykledning beregning'!$G$14 -> 1.005523857 | G109: 1.593647917 | H109: 2.329409874 | J109: =Hydraulics_gravity!$B$41*1.03^('Sulfiddannelse i trykledning'!$C$11-20)*F108 -> 3.059316527 | K109: =(0.349+0.671)*H108^0.1*G108*1.07^('Sulfiddannelse i trykledning'!$C$11-20) -> 1.352870739 | L109: =2.4/24*E108^0.5*H108^0.5*1.03^('Sulfiddannelse i trykledning'!$C$11-20)*Hydraulics_gravity!$T$51 -> 9.023698856 | M109: =Hydraulics_gravity!$B$40*1.03^('Sulfiddannelse i trykledning'!$C$11-20)*(10-H108) -> 27.74506539 | N109: 0.07842280646 | O109: =IF(11.4*(N109/'Korrosion nedstrøms'!$C$17)*k_corr>0,11.4*(N109/'Korrosion nedstrøms'!$C$17)*k_corr,0.00001) -> 1.34102999 | P109: 24.23510304
C110: =D110/Hydraulics_gravity!$R$51+$C$15 -> 199.9327806 | D110: 95 | E110: 2.591318125 | F110: =E110*'Trykledning beregning'!$G$14 -> 1.00248557 | G110: 1.588832555 | H110: 2.342015401 | J110: =Hydraulics_gravity!$B$41*1.03^('Sulfiddannelse i trykledning'!$C$11-20)*F109 -> 3.050099238 | K110: =(0.349+0.671)*H109^0.1*G109*1.07^('Sulfiddannelse i trykledning'!$C$11-20) -> 1.34952841 | L110: =2.4/24*E109^0.5*H109^0.5*1.03^('Sulfiddannelse i trykledning'!$C$11-20)*Hydraulics_gravity!$T$51 -> 9.034627005 | M110: =Hydraulics_gravity!$B$40*1.03^('Sulfiddannelse i trykledning'!$C$11-20)*(10-H109) -> 27.6994459 | N110: 0.07818591308 | O110: =IF(11.4*(N110/'Korrosion nedstrøms'!$C$17)*k_corr>0,11.4*(N110/'Korrosion nedstrøms'!$C$17)*k_corr,0.00001) -> 1.336979114 | P110: 24.30853232
C111: =D111/Hydraulics_gravity!$R$51+$C$15 -> 202.0373361 | D111: 96 | E111: 2.583465559 | F111: =E111*'Trykledning beregning'!$G$14 -> 0.9994477012 | G111: 1.584017858 | H111: 2.354593535 | J111: =Hydraulics_gravity!$B$41*1.03^('Sulfiddannelse i trykledning'!$C$11-20)*F110 -> 3.040883069 | K111: =(0.349+0.671)*H110^0.1*G110*1.07^('Sulfiddannelse i trykledning'!$C$11-20) -> 1.346176998 | L111: =2.4/24*E110^0.5*H110^0.5*1.03^('Sulfiddannelse i trykledning'!$C$11-20)*Hydraulics_gravity!$T$51 -> 9.045342585 | M111: =Hydraulics_gravity!$B$40*1.03^('Sulfiddannelse i trykledning'!$C$11-20)*(10-H110) -> 27.65392579 | N111: 0.07794905196 | O111: =IF(11.4*(N111/'Korrosion nedstrøms'!$C$17)*k_corr>0,11.4*(N111/'Korrosion nedstrøms'!$C$17)*k_corr,0.00001) -> 1.332928789 | P111: 24.38239783
C112: =D112/Hydraulics_gravity!$R$51+$C$15 -> 204.1418917 | D112: 97 | E112: 2.575614203 | F112: =E112*'Trykledning beregning'!$G$14 -> 0.9964103008 | G112: 1.579203903 | H112: 2.367144404 | J112: =Hydraulics_gravity!$B$41*1.03^('Sulfiddannelse i trykledning'!$C$11-20)*F111 -> 3.031668169 | K112: =(0.349+0.671)*H111^0.1*G111*1.07^('Sulfiddannelse i trykledning'!$C$11-20) -> 1.342816686 | L112: =2.4/24*E111^0.5*H111^0.5*1.03^('Sulfiddannelse i trykledning'!$C$11-20)*Hydraulics_gravity!$T$51 -> 9.055847328 | M112: =Hydraulics_gravity!$B$40*1.03^('Sulfiddannelse i trykledning'!$C$11-20)*(10-H111) -> 27.6085046 | N112: 0.07771222697 | O112: =IF(11.4*(N112/'Korrosion nedstrøms'!$C$17)*k_corr>0,11.4*(N112/'Korrosion nedstrøms'!$C$17)*k_corr,0.00001) -> 1.328879081 | P112: 24.45670224
C113: =D113/Hydraulics_gravity!$R$51+$C$15 -> 206.2464473 | D113: 98 | E113: 2.567764185 | F113: =E113*'Trykledning beregning'!$G$14 -> 0.9933734176 | G113: 1.574390767 | H113: 2.379668131 | J113: =Hydraulics_gravity!$B$41*1.03^('Sulfiddannelse i trykledning'!$C$11-20)*F112 -> 3.022454691 | K113: =(0.349+0.671)*H112^0.1*G112*1.07^('Sulfiddannelse i trykledning'!$C$11-20) -> 1.339447651 | L113: =2.4/24*E112^0.5*H112^0.5*1.03^('Sulfiddannelse i trykledning'!$C$11-20)*Hydraulics_gravity!$T$51 -> 9.066142943 | M113: =Hydraulics_gravity!$B$40*1.03^('Sulfiddannelse i trykledning'!$C$11-20)*(10-H112) -> 27.56318186 | N113: 0.07747544193 | O113: =IF(11.4*(N113/'Korrosion nedstrøms'!$C$17)*k_corr>0,11.4*(N113/'Korrosion nedstrøms'!$C$17)*k_corr,0.00001) -> 1.324830057 | P113: 24.53144826
C114: =D114/Hydraulics_gravity!$R$51+$C$15 -> 208.3510029 | D114: 99 | E114: 2.559915628 | F114: =E114*'Trykledning beregning'!$G$14 -> 0.9903371 | G114: 1.569578528 | H114: 2.39216484 | J114: =Hydraulics_gravity!$B$41*1.03^('Sulfiddannelse i trykledning'!$C$11-20)*F113 -> 3.013242781 | K114: =(0.349+0.671)*H113^0.1*G113*1.07^('Sulfiddannelse i trykledning'!$C$11-20) -> 1.336070068 | L114: =2.4/24*E113^0.5*H113^0.5*1.03^('Sulfiddannelse i trykledning'!$C$11-20)*Hydraulics_gravity!$T$51 -> 9.076231115 | M114: =Hydraulics_gravity!$B$40*1.03^('Sulfiddannelse i trykledning'!$C$11-20)*(10-H113) -> 27.51795714 | N114: 0.07723870061 | O114: =IF(11.4*(N114/'Korrosion nedstrøms'!$C$17)*k_corr>0,11.4*(N114/'Korrosion nedstrøms'!$C$17)*k_corr,0.00001) -> 1.32078178 | P114: 24.60663864
C115: =D115/Hydraulics_gravity!$R$51+$C$15 -> 210.4555585 | D115: 100 | E115: 2.552068658 | F115: =E115*'Trykledning beregning'!$G$14 -> 0.9873013962 | G115: 1.564767262 | H115: 2.404634655 | J115: =Hydraulics_gravity!$B$41*1.03^('Sulfiddannelse i trykledning'!$C$11-20)*F114 -> 3.004032587 | K115: =(0.349+0.671)*H114^0.1*G114*1.07^('Sulfiddannelse i trykledning'!$C$11-20) -> 1.332684112 | L115: =2.4/24*E114^0.5*H114^0.5*1.03^('Sulfiddannelse i trykledning'!$C$11-20)*Hydraulics_gravity!$T$51 -> 9.086113503 | M115: =Hydraulics_gravity!$B$40*1.03^('Sulfiddannelse i trykledning'!$C$11-20)*(10-H114) -> 27.47282999 | N115: 0.07700200678 | O115: =IF(11.4*(N115/'Korrosion nedstrøms'!$C$17)*k_corr>0,11.4*(N115/'Korrosion nedstrøms'!$C$17)*k_corr,0.00001) -> 1.316734316 | P115: 24.68227615
C116: =D116/Hydraulics_gravity!$R$51+$C$15 -> 212.5601141 | D116: 101 | E116: 2.544223397 | F116: =E116*'Trykledning beregning'!$G$14 -> 0.9842663538 | G116: 1.559957044 | H116: 2.417077697 | J116: =Hydraulics_gravity!$B$41*1.03^('Sulfiddannelse i trykledning'!$C$11-20)*F115 -> 2.994824254 | K116: =(0.349+0.671)*H115^0.1*G115*1.07^('Sulfiddannelse i trykledning'!$C$11-20) -> 1.329289953 | L116: =2.4/24*E115^0.5*H115^0.5*1.03^('Sulfiddannelse i trykledning'!$C$11-20)*Hydraulics_gravity!$T$51 -> 9.095791744 | M116: =Hydraulics_gravity!$B$40*1.03^('Sulfiddannelse i trykledning'!$C$11-20)*(10-H115) -> 27.42779995 | N116: 0.07676536413 | O116: =IF(11.4*(N116/'Korrosion nedstrøms'!$C$17)*k_corr>0,11.4*(N116/'Korrosion nedstrøms'!$C$17)*k_corr,0.00001) -> 1.312687727 | P116: 24.75836358
C117: =D117/Hydraulics_gravity!$R$51+$C$15 -> 214.6646697 | D117: 102 | E117: 2.536379968 | F117: =E117*'Trykledning beregning'!$G$14 -> 0.9812320198 | G117: 1.555147948 | H117: 2.429494089 | J117: =Hydraulics_gravity!$B$41*1.03^('Sulfiddannelse i trykledning'!$C$11-20)*F116 -> 2.985617928 | K117: =(0.349+0.671)*H116^0.1*G116*1.07^('Sulfiddannelse i trykledning'!$C$11-20) -> 1.32588776 | L117: =2.4/24*E116^0.5*H116^0.5*1.03^('Sulfiddannelse i trykledning'!$C$11-20)*Hydraulics_gravity!$T$51 -> 9.105267453 | M117: =Hydraulics_gravity!$B$40*1.03^('Sulfiddannelse i trykledning'!$C$11-20)*(10-H116) -> 27.38286659 | N117: 0.07652877636 | O117: =IF(11.4*(N117/'Korrosion nedstrøms'!$C$17)*k_corr>0,11.4*(N117/'Korrosion nedstrøms'!$C$17)*k_corr,0.00001) -> 1.308642076 | P117: 24.83490375
C118: =D118/Hydraulics_gravity!$R$51+$C$15 -> 216.7692252 | D118: 103 | E118: 2.528538491 | F118: =E118*'Trykledning beregning'!$G$14 -> 0.9781984412 | G118: 1.55034005 | H118: 2.441883949 | J118: =Hydraulics_gravity!$B$41*1.03^('Sulfiddannelse i trykledning'!$C$11-20)*F117 -> 2.976413751 | K118: =(0.349+0.671)*H117^0.1*G117*1.07^('Sulfiddannelse i trykledning'!$C$11-20) -> 1.3224777 | L118: =2.4/24*E117^0.5*H117^0.5*1.03^('Sulfiddannelse i trykledning'!$C$11-20)*Hydraulics_gravity!$T$51 -> 9.11454222 | M118: =Hydraulics_gravity!$B$40*1.03^('Sulfiddannelse i trykledning'!$C$11-20)*(10-H117) -> 27.33802947 | N118: 0.07629224711 | O118: =IF(11.4*(N118/'Korrosion nedstrøms'!$C$17)*k_corr>0,11.4*(N118/'Korrosion nedstrøms'!$C$17)*k_corr,0.00001) -> 1.304597426 | P118: 24.91189954
C119: =D119/Hydraulics_gravity!$R$51+$C$15 -> 218.8737808 | D119: 104 | E119: 2.520699087 | F119: =E119*'Trykledning beregning'!$G$14 -> 0.9751656641 | G119: 1.545533422 | H119: 2.454247399 | J119: =Hydraulics_gravity!$B$41*1.03^('Sulfiddannelse i trykledning'!$C$11-20)*F118 -> 2.967211865 | K119: =(0.349+0.671)*H118^0.1*G118*1.07^('Sulfiddannelse i trykledning'!$C$11-20) -> 1.319059935 | L119: =2.4/24*E118^0.5*H118^0.5*1.03^('Sulfiddannelse i trykledning'!$C$11-20)*Hydraulics_gravity!$T$51 -> 9.123617616 | M119: =Hydraulics_gravity!$B$40*1.03^('Sulfiddannelse i trykledning'!$C$11-20)*(10-H118) -> 27.29328816 | N119: 0.07605578 | O119: =IF(11.4*(N119/'Korrosion nedstrøms'!$C$17)*k_corr>0,11.4*(N119/'Korrosion nedstrøms'!$C$17)*k_corr,0.00001) -> 1.300553838 | P119: 24.98935381
C120: =D120/Hydraulics_gravity!$R$51+$C$15 -> 220.9783364 | D120: 105 | E120: 2.512861872 | F120: =E120*'Trykledning beregning'!$G$14 -> 0.9721337344 | G120: 1.540728138 | H120: 2.466584557 | J120: =Hydraulics_gravity!$B$41*1.03^('Sulfiddannelse i trykledning'!$C$11-20)*F119 -> 2.95801241 | K120: =(0.349+0.671)*H119^0.1*G119*1.07^('Sulfiddannelse i trykledning'!$C$11-20) -> 1.315634629 | L120: =2.4/24*E119^0.5*H119^0.5*1.03^('Sulfiddannelse i trykledning'!$C$11-20)*Hydraulics_gravity!$T$51 -> 9.132495189 | M120: =Hydraulics_gravity!$B$40*1.03^('Sulfiddannelse i trykledning'!$C$11-20)*(10-H119) -> 27.24864222 | N120: 0.0758193786 | O120: =IF(11.4*(N120/'Korrosion nedstrøms'!$C$17)*k_corr>0,11.4*(N120/'Korrosion nedstrøms'!$C$17)*k_corr,0.00001) -> 1.296511374 | P120: 25.06726948
C121: =D121/Hydraulics_gravity!$R$51+$C$15 -> 223.082892 | D121: 106 | E121: 2.505026966 | F121: =E121*'Trykledning beregning'!$G$14 -> 0.9691026977 | G121: 1.535924268 | H121: 2.478895541 | J121: =Hydraulics_gravity!$B$41*1.03^('Sulfiddannelse i trykledning'!$C$11-20)*F120 -> 2.948815526 | K121: =(0.349+0.671)*H120^0.1*G120*1.07^('Sulfiddannelse i trykledning'!$C$11-20) -> 1.312201941 | L121: =2.4/24*E120^0.5*H120^0.5*1.03^('Sulfiddannelse i trykledning'!$C$11-20)*Hydraulics_gravity!$T$51 -> 9.141176466 | M121: =Hydraulics_gravity!$B$40*1.03^('Sulfiddannelse i trykledning'!$C$11-20)*(10-H120) -> 27.20409122 | N121: 0.07558304647 | O121: =IF(11.4*(N121/'Korrosion nedstrøms'!$C$17)*k_corr>0,11.4*(N121/'Korrosion nedstrøms'!$C$17)*k_corr,0.00001) -> 1.292470095 | P121: 25.14564951
C122: =D122/Hydraulics_gravity!$R$51+$C$15 -> 225.1874476 | D122: 107 | E122: 2.497194485 | F122: =E122*'Trykledning beregning'!$G$14 -> 0.966072599 | G122: 1.531121886 | H122: 2.491180469 | J122: =Hydraulics_gravity!$B$41*1.03^('Sulfiddannelse i trykledning'!$C$11-20)*F121 -> 2.939621351 | K122: =(0.349+0.671)*H121^0.1*G121*1.07^('Sulfiddannelse i trykledning'!$C$11-20) -> 1.308762028 | L122: =2.4/24*E121^0.5*H121^0.5*1.03^('Sulfiddannelse i trykledning'!$C$11-20)*Hydraulics_gravity!$T$51 -> 9.149662953 | M122: =Hydraulics_gravity!$B$40*1.03^('Sulfiddannelse i trykledning'!$C$11-20)*(10-H121) -> 27.15963474 | N122: 0.07534678713 | O122: =IF(11.4*(N122/'Korrosion nedstrøms'!$C$17)*k_corr>0,11.4*(N122/'Korrosion nedstrøms'!$C$17)*k_corr,0.00001) -> 1.28843006 | P122: 25.22449686
C123: =D123/Hydraulics_gravity!$R$51+$C$15 -> 227.2920032 | D123: 108 | E123: 2.489364543 | F123: =E123*'Trykledning beregning'!$G$14 -> 0.963043483 | G123: 1.52632106 | H123: 2.503439456 | J123: =Hydraulics_gravity!$B$41*1.03^('Sulfiddannelse i trykledning'!$C$11-20)*F122 -> 2.930430021 | K123: =(0.349+0.671)*H122^0.1*G122*1.07^('Sulfiddannelse i trykledning'!$C$11-20) -> 1.305315047 | L123: =2.4/24*E122^0.5*H122^0.5*1.03^('Sulfiddannelse i trykledning'!$C$11-20)*Hydraulics_gravity!$T$51 -> 9.157956137 | M123: =Hydraulics_gravity!$B$40*1.03^('Sulfiddannelse i trykledning'!$C$11-20)*(10-H122) -> 27.11527235 | N123: 0.07511060405 | O123: =IF(11.4*(N123/'Korrosion nedstrøms'!$C$17)*k_corr>0,11.4*(N123/'Korrosion nedstrøms'!$C$17)*k_corr,0.00001) -> 1.284391329 | P123: 25.30381455
C124: =D124/Hydraulics_gravity!$R$51+$C$15 -> 229.3965587 | D124: 109 | E124: 2.481537257 | F124: =E124*'Trykledning beregning'!$G$14 -> 0.960015394 | G124: 1.521521863 | H124: 2.515672619 | J124: =Hydraulics_gravity!$B$41*1.03^('Sulfiddannelse i trykledning'!$C$11-20)*F123 -> 2.921241671 | K124: =(0.349+0.671)*H123^0.1*G123*1.07^('Sulfiddannelse i trykledning'!$C$11-20) -> 1.30186115 | L124: =2.4/24*E123^0.5*H123^0.5*1.03^('Sulfiddannelse i trykledning'!$C$11-20)*Hydraulics_gravity!$T$51 -> 9.166057483 | M124: =Hydraulics_gravity!$B$40*1.03^('Sulfiddannelse i trykledning'!$C$11-20)*(10-H123) -> 27.07100364 | N124: 0.0748745007 | O124: =IF(11.4*(N124/'Korrosion nedstrøms'!$C$17)*k_corr>0,11.4*(N124/'Korrosion nedstrøms'!$C$17)*k_corr,0.00001) -> 1.280353962 | P124: 25.3836056
C125: =D125/Hydraulics_gravity!$R$51+$C$15 -> 231.5011143 | D125: 110 | E125: 2.473712738 | F125: =E125*'Trykledning beregning'!$G$14 -> 0.9569883759 | G125: 1.516724362 | H125: 2.527880072 | J125: =Hydraulics_gravity!$B$41*1.03^('Sulfiddannelse i trykledning'!$C$11-20)*F124 -> 2.912056437 | K125: =(0.349+0.671)*H124^0.1*G124*1.07^('Sulfiddannelse i trykledning'!$C$11-20) -> 1.298400489 | L125: =2.4/24*E124^0.5*H124^0.5*1.03^('Sulfiddannelse i trykledning'!$C$11-20)*Hydraulics_gravity!$T$51 -> 9.17396844 | M125: =Hydraulics_gravity!$B$40*1.03^('Sulfiddannelse i trykledning'!$C$11-20)*(10-H124) -> 27.02682818 | N125: 0.07463848051 | O125: =IF(11.4*(N125/'Korrosion nedstrøms'!$C$17)*k_corr>0,11.4*(N125/'Korrosion nedstrøms'!$C$17)*k_corr,0.00001) -> 1.276318017 | P125: 25.46387309
C126: =D126/Hydraulics_gravity!$R$51+$C$15 -> 233.6056699 | D126: 111 | E126: 2.4658911 | F126: =E126*'Trykledning beregning'!$G$14 -> 0.953962472 | G126: 1.511928628 | H126: 2.54006193 | J126: =Hydraulics_gravity!$B$41*1.03^('Sulfiddannelse i trykledning'!$C$11-20)*F125 -> 2.902874451 | K126: =(0.349+0.671)*H125^0.1*G125*1.07^('Sulfiddannelse i trykledning'!$C$11-20) -> 1.294933214 | L126: =2.4/24*E125^0.5*H125^0.5*1.03^('Sulfiddannelse i trykledning'!$C$11-20)*Hydraulics_gravity!$T$51 -> 9.181690435 | M126: =Hydraulics_gravity!$B$40*1.03^('Sulfiddannelse i trykledning'!$C$11-20)*(10-H125) -> 26.98274556 | N126: 0.07440254685 | O126: =IF(11.4*(N126/'Korrosion nedstrøms'!$C$17)*k_corr>0,11.4*(N126/'Korrosion nedstrøms'!$C$17)*k_corr,0.00001) -> 1.272283551 | P126: 25.54462012
C127: =D127/Hydraulics_gravity!$R$51+$C$15 -> 235.7102255 | D127: 112 | E127: 2.458072454 | F127: =E127*'Trykledning beregning'!$G$14 -> 0.9509377257 | G127: 1.507134728 | H127: 2.552218306 | J127: =Hydraulics_gravity!$B$41*1.03^('Sulfiddannelse i trykledning'!$C$11-20)*F126 -> 2.893695846 | K127: =(0.349+0.671)*H126^0.1*G126*1.07^('Sulfiddannelse i trykledning'!$C$11-20) -> 1.291459472 | L127: =2.4/24*E126^0.5*H126^0.5*1.03^('Sulfiddannelse i trykledning'!$C$11-20)*Hydraulics_gravity!$T$51 -> 9.189224877 | M127: =Hydraulics_gravity!$B$40*1.03^('Sulfiddannelse i trykledning'!$C$11-20)*(10-H126) -> 26.93875537 | N127: 0.07416670311 | O127: =IF(11.4*(N127/'Korrosion nedstrøms'!$C$17)*k_corr>0,11.4*(N127/'Korrosion nedstrøms'!$C$17)*k_corr,0.00001) -> 1.268250623 | P127: 25.62584982
C128: =D128/Hydraulics_gravity!$R$51+$C$15 -> 237.8147811 | D128: 113 | E128: 2.45025691 | F128: =E128*'Trykledning beregning'!$G$14 -> 0.9479141795 | G128: 1.50234273 | H128: 2.564349312 | J128: =Hydraulics_gravity!$B$41*1.03^('Sulfiddannelse i trykledning'!$C$11-20)*F127 -> 2.884520751 | K128: =(0.349+0.671)*H127^0.1*G127*1.07^('Sulfiddannelse i trykledning'!$C$11-20) -> 1.287979409 | L128: =2.4/24*E127^0.5*H127^0.5*1.03^('Sulfiddannelse i trykledning'!$C$11-20)*Hydraulics_gravity!$T$51 -> 9.196573159 | M128: =Hydraulics_gravity!$B$40*1.03^('Sulfiddannelse i trykledning'!$C$11-20)*(10-H127) -> 26.8948572 | N128: 0.07393095261 | O128: =IF(11.4*(N128/'Korrosion nedstrøms'!$C$17)*k_corr>0,11.4*(N128/'Korrosion nedstrøms'!$C$17)*k_corr,0.00001) -> 1.26421929 | P128: 25.70756534
C129: =D129/Hydraulics_gravity!$R$51+$C$15 -> 239.9193367 | D129: 114 | E129: 2.442444578 | F129: =E129*'Trykledning beregning'!$G$14 -> 0.9448918759 | G129: 1.497552702 | H129: 2.576455061 | J129: =Hydraulics_gravity!$B$41*1.03^('Sulfiddannelse i trykledning'!$C$11-20)*F128 -> 2.875349297 | K129: =(0.349+0.671)*H128^0.1*G128*1.07^('Sulfiddannelse i trykledning'!$C$11-20) -> 1.28449317 | L129: =2.4/24*E128^0.5*H128^0.5*1.03^('Sulfiddannelse i trykledning'!$C$11-20)*Hydraulics_gravity!$T$51 -> 9.203736652 | M129: =Hydraulics_gravity!$B$40*1.03^('Sulfiddannelse i trykledning'!$C$11-20)*(10-H128) -> 26.85105064 | N129: 0.07369529867 | O129: =IF(11.4*(N129/'Korrosion nedstrøms'!$C$17)*k_corr>0,11.4*(N129/'Korrosion nedstrøms'!$C$17)*k_corr,0.00001) -> 1.260189607 | P129: 25.7897699
C130: =D130/Hydraulics_gravity!$R$51+$C$15 -> 242.0238923 | D130: 115 | E130: 2.434635566 | F130: =E130*'Trykledning beregning'!$G$14 -> 0.9418708569 | G130: 1.492764709 | H130: 2.588535664 | J130: =Hydraulics_gravity!$B$41*1.03^('Sulfiddannelse i trykledning'!$C$11-20)*F129 -> 2.866181612 | K130: =(0.349+0.671)*H129^0.1*G129*1.07^('Sulfiddannelse i trykledning'!$C$11-20) -> 1.281000895 | L130: =2.4/24*E129^0.5*H129^0.5*1.03^('Sulfiddannelse i trykledning'!$C$11-20)*Hydraulics_gravity!$T$51 -> 9.210716712 | M130: =Hydraulics_gravity!$B$40*1.03^('Sulfiddannelse i trykledning'!$C$11-20)*(10-H129) -> 26.80733529 | N130: 0.07345974455 | O130: =IF(11.4*(N130/'Korrosion nedstrøms'!$C$17)*k_corr>0,11.4*(N130/'Korrosion nedstrøms'!$C$17)*k_corr,0.00001) -> 1.256161632 | P130: 25.87246671
C131: =D131/Hydraulics_gravity!$R$51+$C$15 -> 244.1284478 | D131: 116 | E131: 2.426829983 | F131: =E131*'Trykledning beregning'!$G$14 -> 0.9388511641 | G131: 1.487978819 | H131: 2.600591231 | J131: =Hydraulics_gravity!$B$41*1.03^('Sulfiddannelse i trykledning'!$C$11-20)*F130 -> 2.857017824 | K131: =(0.349+0.671)*H130^0.1*G130*1.07^('Sulfiddannelse i trykledning'!$C$11-20) -> 1.277502726 | L131: =2.4/24*E130^0.5*H130^0.5*1.03^('Sulfiddannelse i trykledning'!$C$11-20)*Hydraulics_gravity!$T$51 -> 9.217514679 | M131: =Hydraulics_gravity!$B$40*1.03^('Sulfiddannelse i trykledning'!$C$11-20)*(10-H130) -> 26.76371075 | N131: 0.0732242935 | O131: =IF(11.4*(N131/'Korrosion nedstrøms'!$C$17)*k_corr>0,11.4*(N131/'Korrosion nedstrøms'!$C$17)*k_corr,0.00001) -> 1.252135419 | P131: 25.95565904
C132: =D132/Hydraulics_gravity!$R$51+$C$15 -> 246.2330034 | D132: 117 | E132: 2.419027934 | F132: =E132*'Trykledning beregning'!$G$14 -> 0.9358328388 | G132: 1.483195095 | H132: 2.612621871 | J132: =Hydraulics_gravity!$B$41*1.03^('Sulfiddannelse i trykledning'!$C$11-20)*F131 -> 2.847858058 | K132: =(0.349+0.671)*H131^0.1*G131*1.07^('Sulfiddannelse i trykledning'!$C$11-20) -> 1.273998802 | L132: =2.4/24*E131^0.5*H131^0.5*1.03^('Sulfiddannelse i trykledning'!$C$11-20)*Hydraulics_gravity!$T$51 -> 9.224131872 | M132: =Hydraulics_gravity!$B$40*1.03^('Sulfiddannelse i trykledning'!$C$11-20)*(10-H131) -> 26.72017661 | N132: 0.07298894876 | O132: =IF(11.4*(N132/'Korrosion nedstrøms'!$C$17)*k_corr>0,11.4*(N132/'Korrosion nedstrøms'!$C$17)*k_corr,0.00001) -> 1.248111024 | P132: 26.03935017
C133: =D133/Hydraulics_gravity!$R$51+$C$15 -> 248.337559 | D133: 118 | E133: 2.411229526 | F133: =E133*'Trykledning beregning'!$G$14 -> 0.9328159218 | G133: 1.478413604 | H133: 2.624627695 | J133: =Hydraulics_gravity!$B$41*1.03^('Sulfiddannelse i trykledning'!$C$11-20)*F132 -> 2.838702441 | K133: =(0.349+0.671)*H132^0.1*G132*1.07^('Sulfiddannelse i trykledning'!$C$11-20) -> 1.270489258 | L133: =2.4/24*E132^0.5*H132^0.5*1.03^('Sulfiddannelse i trykledning'!$C$11-20)*Hydraulics_gravity!$T$51 -> 9.230569598 | M133: =Hydraulics_gravity!$B$40*1.03^('Sulfiddannelse i trykledning'!$C$11-20)*(10-H132) -> 26.67673249 | N133: 0.07275371351 | O133: =IF(11.4*(N133/'Korrosion nedstrøms'!$C$17)*k_corr>0,11.4*(N133/'Korrosion nedstrøms'!$C$17)*k_corr,0.00001) -> 1.244088501 | P133: 26.12354344
C134: =D134/Hydraulics_gravity!$R$51+$C$15 -> 250.4421146 | D134: 119 | E134: 2.403434863 | F134: =E134*'Trykledning beregning'!$G$14 -> 0.9298004538 | G134: 1.47363441 | H134: 2.63660881 | J134: =Hydraulics_gravity!$B$41*1.03^('Sulfiddannelse i trykledning'!$C$11-20)*F133 -> 2.829551096 | K134: =(0.349+0.671)*H133^0.1*G133*1.07^('Sulfiddannelse i trykledning'!$C$11-20) -> 1.266974231 | L134: =2.4/24*E133^0.5*H133^0.5*1.03^('Sulfiddannelse i trykledning'!$C$11-20)*Hydraulics_gravity!$T$51 -> 9.236829145 | M134: =Hydraulics_gravity!$B$40*1.03^('Sulfiddannelse i trykledning'!$C$11-20)*(10-H133) -> 26.63337798 | N134: 0.07251859091 | O134: =IF(11.4*(N134/'Korrosion nedstrøms'!$C$17)*k_corr>0,11.4*(N134/'Korrosion nedstrøms'!$C$17)*k_corr,0.00001) -> 1.240067905 | P134: 26.20824221
C135: =D135/Hydraulics_gravity!$R$51+$C$15 -> 252.5466702 | D135: 120 | E135: 2.39564405 | F135: =E135*'Trykledning beregning'!$G$14 -> 0.926786475 | G135: 1.468857575 | H135: 2.648565323 | J135: =Hydraulics_gravity!$B$41*1.03^('Sulfiddannelse i trykledning'!$C$11-20)*F134 -> 2.820404145 | K135: =(0.349+0.671)*H134^0.1*G134*1.07^('Sulfiddannelse i trykledning'!$C$11-20) -> 1.263453855 | L135: =2.4/24*E134^0.5*H134^0.5*1.03^('Sulfiddannelse i trykledning'!$C$11-20)*Hydraulics_gravity!$T$51 -> 9.242911785 | M135: =Hydraulics_gravity!$B$40*1.03^('Sulfiddannelse i trykledning'!$C$11-20)*(10-H134) -> 26.5901127 | N135: 0.07228358411 | O135: =IF(11.4*(N135/'Korrosion nedstrøms'!$C$17)*k_corr>0,11.4*(N135/'Korrosion nedstrøms'!$C$17)*k_corr,0.00001) -> 1.236049288 | P135: 26.29344987
C136: =D136/Hydraulics_gravity!$R$51+$C$15 -> 254.6512258 | D136: 121 | E136: 2.387857189 | F136: =E136*'Trykledning beregning'!$G$14 -> 0.9237740253 | G136: 1.464083164 | H136: 2.660497342 | J136: =Hydraulics_gravity!$B$41*1.03^('Sulfiddannelse i trykledning'!$C$11-20)*F135 -> 2.811261712 | K136: =(0.349+0.671)*H135^0.1*G135*1.07^('Sulfiddannelse i trykledning'!$C$11-20) -> 1.25992826 | L136: =2.4/24*E135^0.5*H135^0.5*1.03^('Sulfiddannelse i trykledning'!$C$11-20)*Hydraulics_gravity!$T$51 -> 9.248818774 | M136: =Hydraulics_gravity!$B$40*1.03^('Sulfiddannelse i trykledning'!$C$11-20)*(10-H135) -> 26.54693626 | N136: 0.07204869622 | O136: =IF(11.4*(N136/'Korrosion nedstrøms'!$C$17)*k_corr>0,11.4*(N136/'Korrosion nedstrøms'!$C$17)*k_corr,0.00001) -> 1.232032705 | P136: 26.37916985
C137: =D137/Hydraulics_gravity!$R$51+$C$15 -> 256.7557814 | D137: 122 | E137: 2.380074383 | F137: =E137*'Trykledning beregning'!$G$14 -> 0.9207631442 | G137: 1.459311239 | H137: 2.672404974 | J137: =Hydraulics_gravity!$B$41*1.03^('Sulfiddannelse i trykledning'!$C$11-20)*F136 -> 2.802123918 | K137: =(0.349+0.671)*H136^0.1*G136*1.07^('Sulfiddannelse i trykledning'!$C$11-20) -> 1.256397578 | L137: =2.4/24*E136^0.5*H136^0.5*1.03^('Sulfiddannelse i trykledning'!$C$11-20)*Hydraulics_gravity!$T$51 -> 9.254551356 | M137: =Hydraulics_gravity!$B$40*1.03^('Sulfiddannelse i trykledning'!$C$11-20)*(10-H136) -> 26.50384826 | N137: 0.07181393032 | O137: =IF(11.4*(N137/'Korrosion nedstrøms'!$C$17)*k_corr>0,11.4*(N137/'Korrosion nedstrøms'!$C$17)*k_corr,0.00001) -> 1.228018208 | P137: 26.46540562
C138: =D138/Hydraulics_gravity!$R$51+$C$15 -> 258.8603369 | D138: 123 | E138: 2.372295733 | F138: =E138*'Trykledning beregning'!$G$14 -> 0.9177538709 | G138: 1.454541862 | H138: 2.684288323 | J138: =Hydraulics_gravity!$B$41*1.03^('Sulfiddannelse i trykledning'!$C$11-20)*F137 -> 2.792990881 | K138: =(0.349+0.671)*H137^0.1*G137*1.07^('Sulfiddannelse i trykledning'!$C$11-20) -> 1.252861938 | L138: =2.4/24*E137^0.5*H137^0.5*1.03^('Sulfiddannelse i trykledning'!$C$11-20)*Hydraulics_gravity!$T$51 -> 9.260110756 | M138: =Hydraulics_gravity!$B$40*1.03^('Sulfiddannelse i trykledning'!$C$11-20)*(10-H137) -> 26.46084834 | N138: 0.07157928948 | O138: =IF(11.4*(N138/'Korrosion nedstrøms'!$C$17)*k_corr>0,11.4*(N138/'Korrosion nedstrøms'!$C$17)*k_corr,0.00001) -> 1.22400585 | P138: 26.55216068
C139: =D139/Hydraulics_gravity!$R$51+$C$15 -> 260.9648925 | D139: 124 | E139: 2.36452134 | F139: =E139*'Trykledning beregning'!$G$14 -> 0.9147462444 | G139: 1.449775096 | H139: 2.696147494 | J139: =Hydraulics_gravity!$B$41*1.03^('Sulfiddannelse i trykledning'!$C$11-20)*F138 -> 2.783862722 | K139: =(0.349+0.671)*H138^0.1*G138*1.07^('Sulfiddannelse i trykledning'!$C$11-20) -> 1.249321466 | L139: =2.4/24*E138^0.5*H138^0.5*1.03^('Sulfiddannelse i trykledning'!$C$11-20)*Hydraulics_gravity!$T$51 -> 9.265498185 | M139: =Hydraulics_gravity!$B$40*1.03^('Sulfiddannelse i trykledning'!$C$11-20)*(10-H138) -> 26.4179361 | N139: 0.07134477673 | O139: =IF(11.4*(N139/'Korrosion nedstrøms'!$C$17)*k_corr>0,11.4*(N139/'Korrosion nedstrøms'!$C$17)*k_corr,0.00001) -> 1.219995682 | P139: 26.63943855
C140: =D140/Hydraulics_gravity!$R$51+$C$15 -> 263.0694481 | D140: 125 | E140: 2.356751303 | F140: =E140*'Trykledning beregning'!$G$14 -> 0.9117403031 | G140: 1.445011 | H140: 2.707982592 | J140: =Hydraulics_gravity!$B$41*1.03^('Sulfiddannelse i trykledning'!$C$11-20)*F139 -> 2.774739557 | K140: =(0.349+0.671)*H139^0.1*G139*1.07^('Sulfiddannelse i trykledning'!$C$11-20) -> 1.245776289 | L140: =2.4/24*E139^0.5*H139^0.5*1.03^('Sulfiddannelse i trykledning'!$C$11-20)*Hydraulics_gravity!$T$51 -> 9.27071484 | M140: =Hydraulics_gravity!$B$40*1.03^('Sulfiddannelse i trykledning'!$C$11-20)*(10-H139) -> 26.37511117 | N140: 0.07111039507 | O140: =IF(11.4*(N140/'Korrosion nedstrøms'!$C$17)*k_corr>0,11.4*(N140/'Korrosion nedstrøms'!$C$17)*k_corr,0.00001) -> 1.215987756 | P140: 26.72724281
C141: =D141/Hydraulics_gravity!$R$51+$C$15 -> 265.1740037 | D141: 126 | E141: 2.348985721 | F141: =E141*'Trykledning beregning'!$G$14 -> 0.9087360853 | G141: 1.440249635 | H141: 2.719793721 | J141: =Hydraulics_gravity!$B$41*1.03^('Sulfiddannelse i trykledning'!$C$11-20)*F140 -> 2.765621505 | K141: =(0.349+0.671)*H140^0.1*G140*1.07^('Sulfiddannelse i trykledning'!$C$11-20) -> 1.242226532 | L141: =2.4/24*E140^0.5*H140^0.5*1.03^('Sulfiddannelse i trykledning'!$C$11-20)*Hydraulics_gravity!$T$51 -> 9.275761905 | M141: =Hydraulics_gravity!$B$40*1.03^('Sulfiddannelse i trykledning'!$C$11-20)*(10-H140) -> 26.33237318 | N141: 0.07087614749 | O141: =IF(11.4*(N141/'Korrosion nedstrøms'!$C$17)*k_corr>0,11.4*(N141/'Korrosion nedstrøms'!$C$17)*k_corr,0.00001) -> 1.211982122 | P141: 26.81557707
C142: =D142/Hydraulics_gravity!$R$51+$C$15 -> 267.2785593 | D142: 127 | E142: 2.341224692 | F142: =E142*'Trykledning beregning'!$G$14 -> 0.905733629 | G142: 1.435491063 | H142: 2.731580983 | J142: =Hydraulics_gravity!$B$41*1.03^('Sulfiddannelse i trykledning'!$C$11-20)*F141 -> 2.75650868 | K142: =(0.349+0.671)*H141^0.1*G141*1.07^('Sulfiddannelse i trykledning'!$C$11-20) -> 1.238672317 | L142: =2.4/24*E141^0.5*H141^0.5*1.03^('Sulfiddannelse i trykledning'!$C$11-20)*Hydraulics_gravity!$T$51 -> 9.280640548 | M142: =Hydraulics_gravity!$B$40*1.03^('Sulfiddannelse i trykledning'!$C$11-20)*(10-H141) -> 26.28972174 | N142: 0.07064203696 | O142: =IF(11.4*(N142/'Korrosion nedstrøms'!$C$17)*k_corr>0,11.4*(N142/'Korrosion nedstrøms'!$C$17)*k_corr,0.00001) -> 1.207978832 | P142: 26.90444496
C143: =D143/Hydraulics_gravity!$R$51+$C$15 -> 269.3831149 | D143: 128 | E143: 2.333468313 | F143: =E143*'Trykledning beregning'!$G$14 -> 0.9027329716 | G143: 1.430735341 | H143: 2.74334448 | J143: =Hydraulics_gravity!$B$41*1.03^('Sulfiddannelse i trykledning'!$C$11-20)*F142 -> 2.747401199 | K143: =(0.349+0.671)*H142^0.1*G142*1.07^('Sulfiddannelse i trykledning'!$C$11-20) -> 1.235113766 | L143: =2.4/24*E142^0.5*H142^0.5*1.03^('Sulfiddannelse i trykledning'!$C$11-20)*Hydraulics_gravity!$T$51 -> 9.285351923 | M143: =Hydraulics_gravity!$B$40*1.03^('Sulfiddannelse i trykledning'!$C$11-20)*(10-H142) -> 26.24715648 | N143: 0.0704080664 | O143: =IF(11.4*(N143/'Korrosion nedstrøms'!$C$17)*k_corr>0,11.4*(N143/'Korrosion nedstrøms'!$C$17)*k_corr,0.00001) -> 1.203977935 | P143: 26.99385017
C144: =D144/Hydraulics_gravity!$R$51+$C$15 -> 271.4876704 | D144: 129 | E144: 2.325716681 | F144: =E144*'Trykledning beregning'!$G$14 -> 0.8997341506 | G144: =E144-F144 -> 1.42598253 | H144: =H143+(M144-K144*1.2-L144*0.5)*(C144-C143)/3600 -> 2.755084315 | J144: =Hydraulics_gravity!$B$41*1.03^('Sulfiddannelse i trykledning'!$C$11-20)*F143 -> 2.738299175 | K144: =(0.349+0.671)*H143^0.1*G143*1.07^('Sulfiddannelse i trykledning'!$C$11-20) -> 1.231550998 | L144: =2.4/24*E143^0.5*H143^0.5*1.03^('Sulfiddannelse i trykledning'!$C$11-20)*Hydraulics_gravity!$T$51 -> 9.289897172 | M144: =Hydraulics_gravity!$B$40*1.03^('Sulfiddannelse i trykledning'!$C$11-20)*(10-H143) -> 26.20467704 | N144: =(($E$1*J144)+(1-$E$1)*J145)*$G$3/$G$5 -> 0.07017423872 | O144: =IF(11.4*(N144/'Korrosion nedstrøms'!$C$17)*k_corr>0,11.4*(N144/'Korrosion nedstrøms'!$C$17)*k_corr,0.00001) -> 1.199979482 | P144: =IF($P$10/O144<100,$P$10/O144,100) -> 27.08379642
C145: =D145/Hydraulics_gravity!$R$51+$C$15 -> 273.592226 | D145: 130 | E145: =IF(E144-(J145+K145+L145)*(C145-C144)/3600>0,E144-(J145+K145+L145)*(C145-C144)/3600,0) -> 2.317969891 | F145: =E145*'Trykledning beregning'!$G$14 -> 0.8967372029 | G145: 1.421232688 | H145: 2.766800589 | J145: =Hydraulics_gravity!$B$41*1.03^('Sulfiddannelse i trykledning'!$C$11-20)*F144 -> 2.729202721 | K145: =(0.349+0.671)*H144^0.1*G144*1.07^('Sulfiddannelse i trykledning'!$C$11-20) -> 1.227984134 | L145: =2.4/24*E144^0.5*H144^0.5*1.03^('Sulfiddannelse i trykledning'!$C$11-20)*Hydraulics_gravity!$T$51 -> 9.294277422 | M145: =Hydraulics_gravity!$B$40*1.03^('Sulfiddannelse i trykledning'!$C$11-20)*(10-H144) -> 26.16228305 | N145: 0.06994055681 | O145: =IF(11.4*(N145/'Korrosion nedstrøms'!$C$17)*k_corr>0,11.4*(N145/'Korrosion nedstrøms'!$C$17)*k_corr,0.00001) -> 1.195983521 | P145: 27.17428745
C146: =D146/Hydraulics_gravity!$R$51+$C$15 -> 275.6967816 | D146: 131 | E146: 2.310228038 | F146: =E146*'Trykledning beregning'!$G$14 -> 0.8937421651 | G146: 1.416485873 | H146: 2.778493401 | J146: =Hydraulics_gravity!$B$41*1.03^('Sulfiddannelse i trykledning'!$C$11-20)*F145 -> 2.720111949 | K146: =(0.349+0.671)*H145^0.1*G145*1.07^('Sulfiddannelse i trykledning'!$C$11-20) -> 1.224413289 | L146: =2.4/24*E145^0.5*H145^0.5*1.03^('Sulfiddannelse i trykledning'!$C$11-20)*Hydraulics_gravity!$T$51 -> 9.298493789 | M146: =Hydraulics_gravity!$B$40*1.03^('Sulfiddannelse i trykledning'!$C$11-20)*(10-H145) -> 26.11997415 | N146: 0.06970702353 | O146: =IF(11.4*(N146/'Korrosion nedstrøms'!$C$17)*k_corr>0,11.4*(N146/'Korrosion nedstrøms'!$C$17)*k_corr,0.00001) -> 1.191990102 | P146: 27.26532706
C147: =D147/Hydraulics_gravity!$R$51+$C$15 -> 277.8013372 | D147: 132 | E147: 2.302491217 | F147: =E147*'Trykledning beregning'!$G$14 -> 0.8907490737 | G147: 1.411742143 | H147: 2.790162852 | J147: =Hydraulics_gravity!$B$41*1.03^('Sulfiddannelse i trykledning'!$C$11-20)*F146 -> 2.71102697 | K147: =(0.349+0.671)*H146^0.1*G146*1.07^('Sulfiddannelse i trykledning'!$C$11-20) -> 1.220838582 | L147: =2.4/24*E146^0.5*H146^0.5*1.03^('Sulfiddannelse i trykledning'!$C$11-20)*Hydraulics_gravity!$T$51 -> 9.302547375 | M147: =Hydraulics_gravity!$B$40*1.03^('Sulfiddannelse i trykledning'!$C$11-20)*(10-H146) -> 26.07774996 | N147: 0.06947364173 | O147: =IF(11.4*(N147/'Korrosion nedstrøms'!$C$17)*k_corr>0,11.4*(N147/'Korrosion nedstrøms'!$C$17)*k_corr,0.00001) -> 1.187999274 | P147: 27.35691909
C148: =D148/Hydraulics_gravity!$R$51+$C$15 -> 279.9058928 | D148: 133 | E148: 2.29475952 | F148: =E148*'Trykledning beregning'!$G$14 -> 0.8877579648 | G148: 1.407001555 | H148: 2.801809041 | J148: =Hydraulics_gravity!$B$41*1.03^('Sulfiddannelse i trykledning'!$C$11-20)*F147 -> 2.701947896 | K148: =(0.349+0.671)*H147^0.1*G147*1.07^('Sulfiddannelse i trykledning'!$C$11-20) -> 1.217260125 | L148: =2.4/24*E147^0.5*H147^0.5*1.03^('Sulfiddannelse i trykledning'!$C$11-20)*Hydraulics_gravity!$T$51 -> 9.306439269 | M148: =Hydraulics_gravity!$B$40*1.03^('Sulfiddannelse i trykledning'!$C$11-20)*(10-H147) -> 26.03561014 | N148: 0.06924041421 | O148: =IF(11.4*(N148/'Korrosion nedstrøms'!$C$17)*k_corr>0,11.4*(N148/'Korrosion nedstrøms'!$C$17)*k_corr,0.00001) -> 1.184011083 | P148: 27.44906739
C149: =D149/Hydraulics_gravity!$R$51+$C$15 -> 282.0104484 | D149: 134 | E149: 2.287033039 | F149: =E149*'Trykledning beregning'!$G$14 -> 0.8847688741 | G149: 1.402264165 | H149: 2.813432066 | J149: =Hydraulics_gravity!$B$41*1.03^('Sulfiddannelse i trykledning'!$C$11-20)*F148 -> 2.692874835 | K149: =(0.349+0.671)*H148^0.1*G148*1.07^('Sulfiddannelse i trykledning'!$C$11-20) -> 1.213678033 | L149: =2.4/24*E148^0.5*H148^0.5*1.03^('Sulfiddannelse i trykledning'!$C$11-20)*Hydraulics_gravity!$T$51 -> 9.310170547 | M149: =Hydraulics_gravity!$B$40*1.03^('Sulfiddannelse i trykledning'!$C$11-20)*(10-H148) -> 25.99355431 | N149: 0.06900734376 | O149: =IF(11.4*(N149/'Korrosion nedstrøms'!$C$17)*k_corr>0,11.4*(N149/'Korrosion nedstrøms'!$C$17)*k_corr,0.00001) -> 1.180025578 | P149: 27.54177587
C150: =D150/Hydraulics_gravity!$R$51+$C$15 -> 284.115004 | D150: 135 | E150: 2.279311868 | F150: =E150*'Trykledning beregning'!$G$14 -> 0.881781837 | G150: 1.397530031 | H150: 2.825032026 | J150: =Hydraulics_gravity!$B$41*1.03^('Sulfiddannelse i trykledning'!$C$11-20)*F149 -> 2.683807896 | K150: =(0.349+0.671)*H149^0.1*G149*1.07^('Sulfiddannelse i trykledning'!$C$11-20) -> 1.210092419 | L150: =2.4/24*E149^0.5*H149^0.5*1.03^('Sulfiddannelse i trykledning'!$C$11-20)*Hydraulics_gravity!$T$51 -> 9.313742275 | M150: =Hydraulics_gravity!$B$40*1.03^('Sulfiddannelse i trykledning'!$C$11-20)*(10-H149) -> 25.95158214 | N150: 0.06877443317 | O150: =IF(11.4*(N150/'Korrosion nedstrøms'!$C$17)*k_corr>0,11.4*(N150/'Korrosion nedstrøms'!$C$17)*k_corr,0.00001) -> 1.176042807 | P150: 27.63504849
C151: =D151/Hydraulics_gravity!$R$51+$C$15 -> 286.2195595 | D151: 136 | E151: 2.271596096 | F151: =E151*'Trykledning beregning'!$G$14 -> 0.8787968889 | G151: 1.392799207 | H151: 2.836609017 | J151: =Hydraulics_gravity!$B$41*1.03^('Sulfiddannelse i trykledning'!$C$11-20)*F150 -> 2.674747187 | K151: =(0.349+0.671)*H150^0.1*G150*1.07^('Sulfiddannelse i trykledning'!$C$11-20) -> 1.206503393 | L151: =2.4/24*E150^0.5*H150^0.5*1.03^('Sulfiddannelse i trykledning'!$C$11-20)*Hydraulics_gravity!$T$51 -> 9.317155505 | M151: =Hydraulics_gravity!$B$40*1.03^('Sulfiddannelse i trykledning'!$C$11-20)*(10-H150) -> 25.90969325 | N151: 0.06854168517 | O151: =IF(11.4*(N151/'Korrosion nedstrøms'!$C$17)*k_corr>0,11.4*(N151/'Korrosion nedstrøms'!$C$17)*k_corr,0.00001) -> 1.172062816 | P151: 27.72888922
C152: =D152/Hydraulics_gravity!$R$51+$C$15 -> 288.3241151 | D152: 137 | E152: 2.263885814 | F152: =E152*'Trykledning beregning'!$G$14 -> 0.8758140647 | G152: 1.388071749 | H152: 2.848163137 | J152: =Hydraulics_gravity!$B$41*1.03^('Sulfiddannelse i trykledning'!$C$11-20)*F151 -> 2.665692814 | K152: =(0.349+0.671)*H151^0.1*G151*1.07^('Sulfiddannelse i trykledning'!$C$11-20) -> 1.202911065 | L152: =2.4/24*E151^0.5*H151^0.5*1.03^('Sulfiddannelse i trykledning'!$C$11-20)*Hydraulics_gravity!$T$51 -> 9.320411278 | M152: =Hydraulics_gravity!$B$40*1.03^('Sulfiddannelse i trykledning'!$C$11-20)*(10-H151) -> 25.86788731 | N152: 0.0683091025 | O152: =IF(11.4*(N152/'Korrosion nedstrøms'!$C$17)*k_corr>0,11.4*(N152/'Korrosion nedstrøms'!$C$17)*k_corr,0.00001) -> 1.168085653 | P152: 27.82330211
C153: =D153/Hydraulics_gravity!$R$51+$C$15 -> 290.4286707 | D153: 138 | E153: 2.256181111 | F153: =E153*'Trykledning beregning'!$G$14 -> 0.8728333989 | G153: 1.383347712 | H153: 2.859694483 | J153: =Hydraulics_gravity!$B$41*1.03^('Sulfiddannelse i trykledning'!$C$11-20)*F152 -> 2.656644884 | K153: =(0.349+0.671)*H152^0.1*G152*1.07^('Sulfiddannelse i trykledning'!$C$11-20) -> 1.199315544 | L153: =2.4/24*E152^0.5*H152^0.5*1.03^('Sulfiddannelse i trykledning'!$C$11-20)*Hydraulics_gravity!$T$51 -> 9.323510624 | M153: =Hydraulics_gravity!$B$40*1.03^('Sulfiddannelse i trykledning'!$C$11-20)*(10-H152) -> 25.82616396 | N153: 0.06807668784 | O153: =IF(11.4*(N153/'Korrosion nedstrøms'!$C$17)*k_corr>0,11.4*(N153/'Korrosion nedstrøms'!$C$17)*k_corr,0.00001) -> 1.164111362 | P153: 27.9182912
C154: =D154/Hydraulics_gravity!$R$51+$C$15 -> 292.5332263 | D154: 139 | E154: 2.248482077 | F154: =E154*'Trykledning beregning'!$G$14 -> 0.869854926 | G154: 1.378627151 | H154: 2.871203149 | J154: =Hydraulics_gravity!$B$41*1.03^('Sulfiddannelse i trykledning'!$C$11-20)*F153 -> 2.647603501 | K154: =(0.349+0.671)*H153^0.1*G153*1.07^('Sulfiddannelse i trykledning'!$C$11-20) -> 1.195716937 | L154: =2.4/24*E153^0.5*H153^0.5*1.03^('Sulfiddannelse i trykledning'!$C$11-20)*Hydraulics_gravity!$T$51 -> 9.32645456 | M154: =Hydraulics_gravity!$B$40*1.03^('Sulfiddannelse i trykledning'!$C$11-20)*(10-H153) -> 25.78452285 | N154: 0.0678444439 | O154: =IF(11.4*(N154/'Korrosion nedstrøms'!$C$17)*k_corr>0,11.4*(N154/'Korrosion nedstrøms'!$C$17)*k_corr,0.00001) -> 1.160139991 | P154: 28.01386062
C155: =D155/Hydraulics_gravity!$R$51+$C$15 -> 294.6377819 | D155: 140 | E155: 2.240788799 | F155: =E155*'Trykledning beregning'!$G$14 -> 0.8668786801 | G155: 1.373910119 | H155: 2.88268923 | J155: =Hydraulics_gravity!$B$41*1.03^('Sulfiddannelse i trykledning'!$C$11-20)*F154 -> 2.638568769 | K155: =(0.349+0.671)*H154^0.1*G154*1.07^('Sulfiddannelse i trykledning'!$C$11-20) -> 1.192115351 | L155: =2.4/24*E154^0.5*H154^0.5*1.03^('Sulfiddannelse i trykledning'!$C$11-20)*Hydraulics_gravity!$T$51 -> 9.329244092 | M155: =Hydraulics_gravity!$B$40*1.03^('Sulfiddannelse i trykledning'!$C$11-20)*(10-H154) -> 25.74296364 | N155: 0.06761237331 | O155: =IF(11.4*(N155/'Korrosion nedstrøms'!$C$17)*k_corr>0,11.4*(N155/'Korrosion nedstrøms'!$C$17)*k_corr,0.00001) -> 1.156171584 | P155: 28.11001452
C156: =D156/Hydraulics_gravity!$R$51+$C$15 -> 296.7423375 | D156: 141 | E156: 2.233101365 | F156: =E156*'Trykledning beregning'!$G$14 -> 0.8639046949 | G156: 1.36919667 | H156: 2.894152822 | J156: =Hydraulics_gravity!$B$41*1.03^('Sulfiddannelse i trykledning'!$C$11-20)*F155 -> 2.629540793 | K156: =(0.349+0.671)*H155^0.1*G155*1.07^('Sulfiddannelse i trykledning'!$C$11-20) -> 1.188510891 | L156: =2.4/24*E155^0.5*H155^0.5*1.03^('Sulfiddannelse i trykledning'!$C$11-20)*Hydraulics_gravity!$T$51 -> 9.331880217 | M156: =Hydraulics_gravity!$B$40*1.03^('Sulfiddannelse i trykledning'!$C$11-20)*(10-H155) -> 25.70148598 | N156: 0.06738047874 | O156: =IF(11.4*(N156/'Korrosion nedstrøms'!$C$17)*k_corr>0,11.4*(N156/'Korrosion nedstrøms'!$C$17)*k_corr,0.00001) -> 1.152206186 | P156: 28.20675707
C157: =D157/Hydraulics_gravity!$R$51+$C$15 -> 298.846893 | D157: 142 | E157: 2.225419861 | F157: =E157*'Trykledning beregning'!$G$14 -> 0.860933004 | G157: 1.364486857 | H157: 2.905594018 | J157: =Hydraulics_gravity!$B$41*1.03^('Sulfiddannelse i trykledning'!$C$11-20)*F156 -> 2.620519675 | K157: =(0.349+0.671)*H156^0.1*G156*1.07^('Sulfiddannelse i trykledning'!$C$11-20) -> 1.184903661 | L157: =2.4/24*E156^0.5*H156^0.5*1.03^('Sulfiddannelse i trykledning'!$C$11-20)*Hydraulics_gravity!$T$51 -> 9.33436392 | M157: =Hydraulics_gravity!$B$40*1.03^('Sulfiddannelse i trykledning'!$C$11-20)*(10-H156) -> 25.66008954 | N157: 0.06714876278 | O157: =IF(11.4*(N157/'Korrosion nedstrøms'!$C$17)*k_corr>0,11.4*(N157/'Korrosion nedstrøms'!$C$17)*k_corr,0.00001) -> 1.148243844 | P157: 28.30409253
C158: =D158/Hydraulics_gravity!$R$51+$C$15 -> 300.9514486 | D158: 143 | E158: 2.217744374 | F158: =E158*'Trykledning beregning'!$G$14 -> 0.8579636407 | G158: 1.359780734 | H158: 2.917012912 | J158: =Hydraulics_gravity!$B$41*1.03^('Sulfiddannelse i trykledning'!$C$11-20)*F157 -> 2.611505516 | K158: =(0.349+0.671)*H157^0.1*G157*1.07^('Sulfiddannelse i trykledning'!$C$11-20) -> 1.181293764 | L158: =2.4/24*E157^0.5*H157^0.5*1.03^('Sulfiddannelse i trykledning'!$C$11-20)*Hydraulics_gravity!$T$51 -> 9.336696173 | M158: =Hydraulics_gravity!$B$40*1.03^('Sulfiddannelse i trykledning'!$C$11-20)*(10-H157) -> 25.61877397 | N158: 0.06691722805 | O158: =IF(11.4*(N158/'Korrosion nedstrøms'!$C$17)*k_corr>0,11.4*(N158/'Korrosion nedstrøms'!$C$17)*k_corr,0.00001) -> 1.1442846 | P158: 28.40202517
C159: =D159/Hydraulics_gravity!$R$51+$C$15 -> 303.0560042 | D159: 144 | E159: 2.210074989 | F159: =E159*'Trykledning beregning'!$G$14 -> 0.8549966381 | G159: 1.355078351 | H159: 2.928409596 | J159: =Hydraulics_gravity!$B$41*1.03^('Sulfiddannelse i trykledning'!$C$11-20)*F158 -> 2.602498417 | K159: =(0.349+0.671)*H158^0.1*G158*1.07^('Sulfiddannelse i trykledning'!$C$11-20) -> 1.177681301 | L159: =2.4/24*E158^0.5*H158^0.5*1.03^('Sulfiddannelse i trykledning'!$C$11-20)*Hydraulics_gravity!$T$51 -> 9.338877942 | M159: =Hydraulics_gravity!$B$40*1.03^('Sulfiddannelse i trykledning'!$C$11-20)*(10-H158) -> 25.57753894 | N159: 0.06668587711 | O159: =IF(11.4*(N159/'Korrosion nedstrøms'!$C$17)*k_corr>0,11.4*(N159/'Korrosion nedstrøms'!$C$17)*k_corr,0.00001) -> 1.140328499 | P159: 28.50055931
C160: =D160/Hydraulics_gravity!$R$51+$C$15 -> 305.1605598 | D160: 145 | E160: 2.202411791 | F160: =E160*'Trykledning beregning'!$G$14 -> 0.8520320288 | G160: 1.350379762 | H160: 2.939784164 | J160: =Hydraulics_gravity!$B$41*1.03^('Sulfiddannelse i trykledning'!$C$11-20)*F159 -> 2.593498479 | K160: =(0.349+0.671)*H159^0.1*G159*1.07^('Sulfiddannelse i trykledning'!$C$11-20) -> 1.174066375 | L160: =2.4/24*E159^0.5*H159^0.5*1.03^('Sulfiddannelse i trykledning'!$C$11-20)*Hydraulics_gravity!$T$51 -> 9.340910179 | M160: =Hydraulics_gravity!$B$40*1.03^('Sulfiddannelse i trykledning'!$C$11-20)*(10-H159) -> 25.53638411 | N160: 0.06645471252 | O160: =IF(11.4*(N160/'Korrosion nedstrøms'!$C$17)*k_corr>0,11.4*(N160/'Korrosion nedstrøms'!$C$17)*k_corr,0.00001) -> 1.136375584 | P160: 28.5996993
C161: =D161/Hydraulics_gravity!$R$51+$C$15 -> 307.2651154 | D161: 146 | E161: 2.194754863 | F161: =E161*'Trykledning beregning'!$G$14 -> 0.8490698453 | G161: 1.345685018 | H161: 2.951136705 | J161: =Hydraulics_gravity!$B$41*1.03^('Sulfiddannelse i trykledning'!$C$11-20)*F160 -> 2.5845058 | K161: =(0.349+0.671)*H160^0.1*G160*1.07^('Sulfiddannelse i trykledning'!$C$11-20) -> 1.170449085 | L161: =2.4/24*E160^0.5*H160^0.5*1.03^('Sulfiddannelse i trykledning'!$C$11-20)*Hydraulics_gravity!$T$51 -> 9.342793827 | M161: =Hydraulics_gravity!$B$40*1.03^('Sulfiddannelse i trykledning'!$C$11-20)*(10-H160) -> 25.49530915 | N161: 0.06622373682 | O161: =IF(11.4*(N161/'Korrosion nedstrøms'!$C$17)*k_corr>0,11.4*(N161/'Korrosion nedstrøms'!$C$17)*k_corr,0.00001) -> 1.1324259 | P161: 28.69944957
C162: =D162/Hydraulics_gravity!$R$51+$C$15 -> 309.369671 | D162: 147 | E162: 2.187104289 | F162: =E162*'Trykledning beregning'!$G$14 -> 0.84611012 | G162: 1.340994169 | H162: 2.962467313 | J162: =Hydraulics_gravity!$B$41*1.03^('Sulfiddannelse i trykledning'!$C$11-20)*F161 -> 2.57552048 | K162: =(0.349+0.671)*H161^0.1*G161*1.07^('Sulfiddannelse i trykledning'!$C$11-20) -> 1.166829528 | L162: =2.4/24*E161^0.5*H161^0.5*1.03^('Sulfiddannelse i trykledning'!$C$11-20)*Hydraulics_gravity!$T$51 -> 9.34452982 | M162: =Hydraulics_gravity!$B$40*1.03^('Sulfiddannelse i trykledning'!$C$11-20)*(10-H161) -> 25.45431372 | N162: 0.06599295252 | O162: =IF(11.4*(N162/'Korrosion nedstrøms'!$C$17)*k_corr>0,11.4*(N162/'Korrosion nedstrøms'!$C$17)*k_corr,0.00001) -> 1.128479488 | P162: 28.79981457
C163: =D163/Hydraulics_gravity!$R$51+$C$15 -> 311.4742266 | D163: 148 | E163: 2.179460152 | F163: =E163*'Trykledning beregning'!$G$14 -> 0.8431528847 | G163: 1.336307267 | H163: 2.973776077 | J163: =Hydraulics_gravity!$B$41*1.03^('Sulfiddannelse i trykledning'!$C$11-20)*F162 -> 2.566542617 | K163: =(0.349+0.671)*H162^0.1*G162*1.07^('Sulfiddannelse i trykledning'!$C$11-20) -> 1.163207804 | L163: =2.4/24*E162^0.5*H162^0.5*1.03^('Sulfiddannelse i trykledning'!$C$11-20)*Hydraulics_gravity!$T$51 -> 9.34611908 | M163: =Hydraulics_gravity!$B$40*1.03^('Sulfiddannelse i trykledning'!$C$11-20)*(10-H162) -> 25.4133975 | N163: 0.06576236212 | O163: =IF(11.4*(N163/'Korrosion nedstrøms'!$C$17)*k_corr>0,11.4*(N163/'Korrosion nedstrøms'!$C$17)*k_corr,0.00001) -> 1.124536392 | P163: 28.90079879
C164: =D164/Hydraulics_gravity!$R$51+$C$15 -> 313.5787821 | D164: 149 | E164: 2.171822533 | F164: =E164*'Trykledning beregning'!$G$14 -> 0.8401981713 | G164: 1.331624362 | H164: 2.985063089 | J164: =Hydraulics_gravity!$B$41*1.03^('Sulfiddannelse i trykledning'!$C$11-20)*F163 -> 2.557572306 | K164: =(0.349+0.671)*H163^0.1*G163*1.07^('Sulfiddannelse i trykledning'!$C$11-20) -> 1.159584009 | L164: =2.4/24*E163^0.5*H163^0.5*1.03^('Sulfiddannelse i trykledning'!$C$11-20)*Hydraulics_gravity!$T$51 -> 9.347562521 | M164: =Hydraulics_gravity!$B$40*1.03^('Sulfiddannelse i trykledning'!$C$11-20)*(10-H163) -> 25.37256016 | N164: 0.0655319681 | O164: =IF(11.4*(N164/'Korrosion nedstrøms'!$C$17)*k_corr>0,11.4*(N164/'Korrosion nedstrøms'!$C$17)*k_corr,0.00001) -> 1.120596654 | P164: 29.00240677
C165: =D165/Hydraulics_gravity!$R$51+$C$15 -> 315.6833377 | D165: 150 | E165: 2.164191515 | F165: =E165*'Trykledning beregning'!$G$14 -> 0.8372460112 | G165: 1.326945504 | H165: 2.996328436 | J165: =Hydraulics_gravity!$B$41*1.03^('Sulfiddannelse i trykledning'!$C$11-20)*F164 -> 2.548609646 | K165: =(0.349+0.671)*H164^0.1*G164*1.07^('Sulfiddannelse i trykledning'!$C$11-20) -> 1.155958238 | L165: =2.4/24*E164^0.5*H164^0.5*1.03^('Sulfiddannelse i trykledning'!$C$11-20)*Hydraulics_gravity!$T$51 -> 9.348861047 | M165: =Hydraulics_gravity!$B$40*1.03^('Sulfiddannelse i trykledning'!$C$11-20)*(10-H164) -> 25.33180137 | N165: 0.06530177291 | O165: =IF(11.4*(N165/'Korrosion nedstrøms'!$C$17)*k_corr>0,11.4*(N165/'Korrosion nedstrøms'!$C$17)*k_corr,0.00001) -> 1.116660317 | P165: 29.10464312
C166: =D166/Hydraulics_gravity!$R$51+$C$15 -> 317.7878933 | D166: 151 | E166: 2.156567177 | F166: =E166*'Trykledning beregning'!$G$14 -> 0.8342964357 | G166: 1.322270741 | H166: 3.007572209 | J166: =Hydraulics_gravity!$B$41*1.03^('Sulfiddannelse i trykledning'!$C$11-20)*F165 -> 2.53965473 | K166: =(0.349+0.671)*H165^0.1*G165*1.07^('Sulfiddannelse i trykledning'!$C$11-20) -> 1.152330587 | L166: =2.4/24*E165^0.5*H165^0.5*1.03^('Sulfiddannelse i trykledning'!$C$11-20)*Hydraulics_gravity!$T$51 -> 9.350015553 | M166: =Hydraulics_gravity!$B$40*1.03^('Sulfiddannelse i trykledning'!$C$11-20)*(10-H165) -> 25.29112081 | N166: 0.06507177899 | O166: =IF(11.4*(N166/'Korrosion nedstrøms'!$C$17)*k_corr>0,11.4*(N166/'Korrosion nedstrøms'!$C$17)*k_corr,0.00001) -> 1.112727421 | P166: 29.20751246
C167: =D167/Hydraulics_gravity!$R$51+$C$15 -> 319.8924489 | D167: 152 | E167: 2.1489496 | F167: =E167*'Trykledning beregning'!$G$14 -> 0.8313494757 | G167: 1.317600125 | H167: 3.018794497 | J167: =Hydraulics_gravity!$B$41*1.03^('Sulfiddannelse i trykledning'!$C$11-20)*F166 -> 2.530707654 | K167: =(0.349+0.671)*H166^0.1*G166*1.07^('Sulfiddannelse i trykledning'!$C$11-20) -> 1.148701149 | L167: =2.4/24*E166^0.5*H166^0.5*1.03^('Sulfiddannelse i trykledning'!$C$11-20)*Hydraulics_gravity!$T$51 -> 9.351026924 | M167: =Hydraulics_gravity!$B$40*1.03^('Sulfiddannelse i trykledning'!$C$11-20)*(10-H166) -> 25.25051816 | N167: 0.06484198876 | O167: =IF(11.4*(N167/'Korrosion nedstrøms'!$C$17)*k_corr>0,11.4*(N167/'Korrosion nedstrøms'!$C$17)*k_corr,0.00001) -> 1.108798008 | P167: 29.31101947
C168: =D168/Hydraulics_gravity!$R$51+$C$15 -> 321.9970045 | D168: 153 | E168: 2.141338864 | F168: =E168*'Trykledning beregning'!$G$14 -> 0.8284051621 | G168: 1.312933702 | H168: 3.029995386 | J168: =Hydraulics_gravity!$B$41*1.03^('Sulfiddannelse i trykledning'!$C$11-20)*F167 -> 2.521768513 | K168: =(0.349+0.671)*H167^0.1*G167*1.07^('Sulfiddannelse i trykledning'!$C$11-20) -> 1.145070017 | L168: =2.4/24*E167^0.5*H167^0.5*1.03^('Sulfiddannelse i trykledning'!$C$11-20)*Hydraulics_gravity!$T$51 -> 9.351896036 | M168: =Hydraulics_gravity!$B$40*1.03^('Sulfiddannelse i trykledning'!$C$11-20)*(10-H167) -> 25.2099931 | N168: 0.06461240462 | O168: =IF(11.4*(N168/'Korrosion nedstrøms'!$C$17)*k_corr>0,11.4*(N168/'Korrosion nedstrøms'!$C$17)*k_corr,0.00001) -> 1.104872119 | P168: 29.41516891
C169: =D169/Hydraulics_gravity!$R$51+$C$15 -> 324.1015601 | D169: 154 | E169: 2.133735047 | F169: =E169*'Trykledning beregning'!$G$14 -> 0.8254635253 | G169: 1.308271522 | H169: 3.041174966 | J169: =Hydraulics_gravity!$B$41*1.03^('Sulfiddannelse i trykledning'!$C$11-20)*F168 -> 2.512837398 | K169: =(0.349+0.671)*H168^0.1*G168*1.07^('Sulfiddannelse i trykledning'!$C$11-20) -> 1.141437284 | L169: =2.4/24*E168^0.5*H168^0.5*1.03^('Sulfiddannelse i trykledning'!$C$11-20)*Hydraulics_gravity!$T$51 -> 9.352623757 | M169: =Hydraulics_gravity!$B$40*1.03^('Sulfiddannelse i trykledning'!$C$11-20)*(10-H168) -> 25.16954531 | N169: 0.06438302895 | O169: =IF(11.4*(N169/'Korrosion nedstrøms'!$C$17)*k_corr>0,11.4*(N169/'Korrosion nedstrøms'!$C$17)*k_corr,0.00001) -> 1.100949795 | P169: 29.51996553
C170: =D170/Hydraulics_gravity!$R$51+$C$15 -> 326.2061156 | D170: 155 | E170: 2.126138228 | F170: =E170*'Trykledning beregning'!$G$14 -> 0.8225245957 | G170: 1.303613632 | H170: 3.052333323 | J170: =Hydraulics_gravity!$B$41*1.03^('Sulfiddannelse i trykledning'!$C$11-20)*F169 -> 2.503914403 | K170: =(0.349+0.671)*H169^0.1*G169*1.07^('Sulfiddannelse i trykledning'!$C$11-20) -> 1.137803039 | L170: =2.4/24*E169^0.5*H169^0.5*1.03^('Sulfiddannelse i trykledning'!$C$11-20)*Hydraulics_gravity!$T$51 -> 9.353210944 | M170: =Hydraulics_gravity!$B$40*1.03^('Sulfiddannelse i trykledning'!$C$11-20)*(10-H169) -> 25.12917447 | N170: 0.06415386412 | O170: =IF(11.4*(N170/'Korrosion nedstrøms'!$C$17)*k_corr>0,11.4*(N170/'Korrosion nedstrøms'!$C$17)*k_corr,0.00001) -> 1.097031077 | P170: 29.62541417
C171: =D171/Hydraulics_gravity!$R$51+$C$15 -> 328.3106712 | D171: 156 | E171: 2.118548484 | F171: =E171*'Trykledning beregning'!$G$14 -> 0.8195884032 | G171: 1.298960081 | H171: 3.063470544 | J171: =Hydraulics_gravity!$B$41*1.03^('Sulfiddannelse i trykledning'!$C$11-20)*F170 -> 2.49499962 | K171: =(0.349+0.671)*H170^0.1*G170*1.07^('Sulfiddannelse i trykledning'!$C$11-20) -> 1.134167374 | L171: =2.4/24*E170^0.5*H170^0.5*1.03^('Sulfiddannelse i trykledning'!$C$11-20)*Hydraulics_gravity!$T$51 -> 9.353658448 | M171: =Hydraulics_gravity!$B$40*1.03^('Sulfiddannelse i trykledning'!$C$11-20)*(10-H170) -> 25.08888027 | N171: 0.06392491247 | O171: =IF(11.4*(N171/'Korrosion nedstrøms'!$C$17)*k_corr>0,11.4*(N171/'Korrosion nedstrøms'!$C$17)*k_corr,0.00001) -> 1.093116003 | P171: 29.73151971
C172: =D172/Hydraulics_gravity!$R$51+$C$15 -> 330.4152268 | D172: 157 | E172: 2.110965893 | F172: =E172*'Trykledning beregning'!$G$14 -> 0.8166549778 | G172: 1.294310915 | H172: 3.074586714 | J172: =Hydraulics_gravity!$B$41*1.03^('Sulfiddannelse i trykledning'!$C$11-20)*F171 -> 2.48609314 | K172: =(0.349+0.671)*H171^0.1*G171*1.07^('Sulfiddannelse i trykledning'!$C$11-20) -> 1.130530378 | L172: =2.4/24*E171^0.5*H171^0.5*1.03^('Sulfiddannelse i trykledning'!$C$11-20)*Hydraulics_gravity!$T$51 -> 9.35396711 | M172: =Hydraulics_gravity!$B$40*1.03^('Sulfiddannelse i trykledning'!$C$11-20)*(10-H171) -> 25.04866239 | N172: 0.06369617633 | O172: =IF(11.4*(N172/'Korrosion nedstrøms'!$C$17)*k_corr>0,11.4*(N172/'Korrosion nedstrøms'!$C$17)*k_corr,0.00001) -> 1.089204615 | P172: 29.83828708
C173: =D173/Hydraulics_gravity!$R$51+$C$15 -> 332.5197824 | D173: 158 | E173: 2.10339053 | F173: =E173*'Trykledning beregning'!$G$14 -> 0.813724349 | G173: 1.289666181 | H173: 3.08568192 | J173: =Hydraulics_gravity!$B$41*1.03^('Sulfiddannelse i trykledning'!$C$11-20)*F172 -> 2.477195053 | K173: =(0.349+0.671)*H172^0.1*G172*1.07^('Sulfiddannelse i trykledning'!$C$11-20) -> 1.126892139 | L173: =2.4/24*E172^0.5*H172^0.5*1.03^('Sulfiddannelse i trykledning'!$C$11-20)*Hydraulics_gravity!$T$51 -> 9.354137762 | M173: =Hydraulics_gravity!$B$40*1.03^('Sulfiddannelse i trykledning'!$C$11-20)*(10-H172) -> 25.00852053 | N173: 0.06346765801 | O173: =IF(11.4*(N173/'Korrosion nedstrøms'!$C$17)*k_corr>0,11.4*(N173/'Korrosion nedstrøms'!$C$17)*k_corr,0.00001) -> 1.085296952 | P173: 29.94572125
C174: =D174/Hydraulics_gravity!$R$51+$C$15 -> 334.624338 | D174: 159 | E174: 2.095822473 | F174: =E174*'Trykledning beregning'!$G$14 -> 0.8107965462 | G174: 1.285025927 | H174: 3.096756247 | J174: =Hydraulics_gravity!$B$41*1.03^('Sulfiddannelse i trykledning'!$C$11-20)*F173 -> 2.46830545 | K174: =(0.349+0.671)*H173^0.1*G173*1.07^('Sulfiddannelse i trykledning'!$C$11-20) -> 1.123252744 | L174: =2.4/24*E173^0.5*H173^0.5*1.03^('Sulfiddannelse i trykledning'!$C$11-20)*Hydraulics_gravity!$T$51 -> 9.35417123 | M174: =Hydraulics_gravity!$B$40*1.03^('Sulfiddannelse i trykledning'!$C$11-20)*(10-H173) -> 24.96845437 | N174: 0.06323935979 | O174: =IF(11.4*(N174/'Korrosion nedstrøms'!$C$17)*k_corr>0,11.4*(N174/'Korrosion nedstrøms'!$C$17)*k_corr,0.00001) -> 1.081393052 | P174: 30.05382726
C175: =D175/Hydraulics_gravity!$R$51+$C$15 -> 336.7288936 | D175: 160 | E175: 2.088261795 | F175: =E175*'Trykledning beregning'!$G$14 -> 0.8078715985 | G175: 1.280390197 | H175: 3.107809779 | J175: =Hydraulics_gravity!$B$41*1.03^('Sulfiddannelse i trykledning'!$C$11-20)*F174 -> 2.459424418 | K175: =(0.349+0.671)*H174^0.1*G174*1.07^('Sulfiddannelse i trykledning'!$C$11-20) -> 1.11961228 | L175: =2.4/24*E174^0.5*H174^0.5*1.03^('Sulfiddannelse i trykledning'!$C$11-20)*Hydraulics_gravity!$T$51 -> 9.354068328 | M175: =Hydraulics_gravity!$B$40*1.03^('Sulfiddannelse i trykledning'!$C$11-20)*(10-H174) -> 24.92846362 | N175: 0.06301128396 | O175: =IF(11.4*(N175/'Korrosion nedstrøms'!$C$17)*k_corr>0,11.4*(N175/'Korrosion nedstrøms'!$C$17)*k_corr,0.00001) -> 1.077492956 | P175: 30.16261019
C176: =D176/Hydraulics_gravity!$R$51+$C$15 -> 338.8334492 | D176: 161 | E176: 2.080708573 | F176: =E176*'Trykledning beregning'!$G$14 -> 0.8049495349 | G176: 1.275759038 | H176: 3.1188426 | J176: =Hydraulics_gravity!$B$41*1.03^('Sulfiddannelse i trykledning'!$C$11-20)*F175 -> 2.450552047 | K176: =(0.349+0.671)*H175^0.1*G175*1.07^('Sulfiddannelse i trykledning'!$C$11-20) -> 1.115970834 | L176: =2.4/24*E175^0.5*H175^0.5*1.03^('Sulfiddannelse i trykledning'!$C$11-20)*Hydraulics_gravity!$T$51 -> 9.353829866 | M176: =Hydraulics_gravity!$B$40*1.03^('Sulfiddannelse i trykledning'!$C$11-20)*(10-H175) -> 24.88854795 | N176: 0.06278343276 | O176: =IF(11.4*(N176/'Korrosion nedstrøms'!$C$17)*k_corr>0,11.4*(N176/'Korrosion nedstrøms'!$C$17)*k_corr,0.00001) -> 1.0735967 | P176: 30.27207516
C177: =D177/Hydraulics_gravity!$R$51+$C$15 -> 340.9380047 | D177: 162 | E177: 2.07316288 | F177: =E177*'Trykledning beregning'!$G$14 -> 0.802030384 | G177: 1.271132496 | H177: 3.129854795 | J177: =Hydraulics_gravity!$B$41*1.03^('Sulfiddannelse i trykledning'!$C$11-20)*F176 -> 2.441688424 | K177: =(0.349+0.671)*H176^0.1*G176*1.07^('Sulfiddannelse i trykledning'!$C$11-20) -> 1.112328489 | L177: =2.4/24*E176^0.5*H176^0.5*1.03^('Sulfiddannelse i trykledning'!$C$11-20)*Hydraulics_gravity!$T$51 -> 9.353456644 | M177: =Hydraulics_gravity!$B$40*1.03^('Sulfiddannelse i trykledning'!$C$11-20)*(10-H176) -> 24.84870707 | N177: 0.06255580845 | O177: =IF(11.4*(N177/'Korrosion nedstrøms'!$C$17)*k_corr>0,11.4*(N177/'Korrosion nedstrøms'!$C$17)*k_corr,0.00001) -> 1.069704324 | P177: 30.38222737
C178: =D178/Hydraulics_gravity!$R$51+$C$15 -> 343.0425603 | D178: 163 | E178: 2.065624789 | F178: =E178*'Trykledning beregning'!$G$14 -> 0.7991141744 | G178: 1.266510615 | H178: 3.140846447 | J178: =Hydraulics_gravity!$B$41*1.03^('Sulfiddannelse i trykledning'!$C$11-20)*F177 -> 2.432833637 | K178: =(0.349+0.671)*H177^0.1*G177*1.07^('Sulfiddannelse i trykledning'!$C$11-20) -> 1.108685331 | L178: =2.4/24*E177^0.5*H177^0.5*1.03^('Sulfiddannelse i trykledning'!$C$11-20)*Hydraulics_gravity!$T$51 -> 9.352949453 | M178: =Hydraulics_gravity!$B$40*1.03^('Sulfiddannelse i trykledning'!$C$11-20)*(10-H177) -> 24.80894068 | N178: 0.06232841324 | O178: =IF(11.4*(N178/'Korrosion nedstrøms'!$C$17)*k_corr>0,11.4*(N178/'Korrosion nedstrøms'!$C$17)*k_corr,0.00001) -> 1.065815866 | P178: 30.49307205
C179: =D179/Hydraulics_gravity!$R$51+$C$15 -> 345.1471159 | D179: 164 | E179: 2.058094375 | F179: =E179*'Trykledning beregning'!$G$14 -> 0.7962009343 | G179: 1.261893441 | H179: 3.151817638 | J179: =Hydraulics_gravity!$B$41*1.03^('Sulfiddannelse i trykledning'!$C$11-20)*F178 -> 2.423987772 | K179: =(0.349+0.671)*H178^0.1*G178*1.07^('Sulfiddannelse i trykledning'!$C$11-20) -> 1.105041442 | L179: =2.4/24*E178^0.5*H178^0.5*1.03^('Sulfiddannelse i trykledning'!$C$11-20)*Hydraulics_gravity!$T$51 -> 9.35230908 | M179: =Hydraulics_gravity!$B$40*1.03^('Sulfiddannelse i trykledning'!$C$11-20)*(10-H178) -> 24.76924847 | N179: 0.06210124933 | O179: =IF(11.4*(N179/'Korrosion nedstrøms'!$C$17)*k_corr>0,11.4*(N179/'Korrosion nedstrøms'!$C$17)*k_corr,0.00001) -> 1.061931364 | P179: 30.60461449
C180: =D180/Hydraulics_gravity!$R$51+$C$15 -> 347.2516715 | D180: 165 | E180: 2.050571709 | F180: =E180*'Trykledning beregning'!$G$14 -> 0.7932906917 | G180: 1.257281017 | H180: 3.162768451 | J180: =Hydraulics_gravity!$B$41*1.03^('Sulfiddannelse i trykledning'!$C$11-20)*F179 -> 2.415150914 | K180: =(0.349+0.671)*H179^0.1*G179*1.07^('Sulfiddannelse i trykledning'!$C$11-20) -> 1.101396906 | L180: =2.4/24*E179^0.5*H179^0.5*1.03^('Sulfiddannelse i trykledning'!$C$11-20)*Hydraulics_gravity!$T$51 -> 9.3515363 | M180: =Hydraulics_gravity!$B$40*1.03^('Sulfiddannelse i trykledning'!$C$11-20)*(10-H179) -> 24.72963015 | N180: 0.06187431892 | O180: =IF(11.4*(N180/'Korrosion nedstrøms'!$C$17)*k_corr>0,11.4*(N180/'Korrosion nedstrøms'!$C$17)*k_corr,0.00001) -> 1.058050854 | P180: 30.71686006
C181: =D181/Hydraulics_gravity!$R$51+$C$15 -> 349.3562271 | D181: 166 | E181: 2.043056863 | F181: =E181*'Trykledning beregning'!$G$14 -> 0.7903834746 | G181: 1.252673388 | H181: 3.173698967 | J181: =Hydraulics_gravity!$B$41*1.03^('Sulfiddannelse i trykledning'!$C$11-20)*F180 -> 2.406323148 | K181: =(0.349+0.671)*H180^0.1*G180*1.07^('Sulfiddannelse i trykledning'!$C$11-20) -> 1.097751803 | L181: =2.4/24*E180^0.5*H180^0.5*1.03^('Sulfiddannelse i trykledning'!$C$11-20)*Hydraulics_gravity!$T$51 -> 9.350631883 | M181: =Hydraulics_gravity!$B$40*1.03^('Sulfiddannelse i trykledning'!$C$11-20)*(10-H180) -> 24.69008542 | N181: 0.06164762418 | O181: =IF(11.4*(N181/'Korrosion nedstrøms'!$C$17)*k_corr>0,11.4*(N181/'Korrosion nedstrøms'!$C$17)*k_corr,0.00001) -> 1.054174373 | P181: 30.82981414
C182: =D182/Hydraulics_gravity!$R$51+$C$15 -> 351.4607827 | D182: 167 | E182: 2.035549909 | F182: =E182*'Trykledning beregning'!$G$14 -> 0.7874793104 | G182: 1.248070598 | H182: 3.184609269 | J182: =Hydraulics_gravity!$B$41*1.03^('Sulfiddannelse i trykledning'!$C$11-20)*F181 -> 2.39750456 | K182: =(0.349+0.671)*H181^0.1*G181*1.07^('Sulfiddannelse i trykledning'!$C$11-20) -> 1.094106216 | L182: =2.4/24*E181^0.5*H181^0.5*1.03^('Sulfiddannelse i trykledning'!$C$11-20)*Hydraulics_gravity!$T$51 -> 9.349596592 | M182: =Hydraulics_gravity!$B$40*1.03^('Sulfiddannelse i trykledning'!$C$11-20)*(10-H181) -> 24.65061397 | N182: 0.06142116726 | O182: =IF(11.4*(N182/'Korrosion nedstrøms'!$C$17)*k_corr>0,11.4*(N182/'Korrosion nedstrøms'!$C$17)*k_corr,0.00001) -> 1.05030196 | P182: 30.94348219
C183: =D183/Hydraulics_gravity!$R$51+$C$15 -> 353.5653383 | D183: 168 | E183: 2.028050917 | F183: =E183*'Trykledning beregning'!$G$14 -> 0.7845782268 | G183: 1.243472691 | H183: 3.195499436 | J183: =Hydraulics_gravity!$B$41*1.03^('Sulfiddannelse i trykledning'!$C$11-20)*F182 -> 2.388695233 | K183: =(0.349+0.671)*H182^0.1*G182*1.07^('Sulfiddannelse i trykledning'!$C$11-20) -> 1.090460224 | L183: =2.4/24*E182^0.5*H182^0.5*1.03^('Sulfiddannelse i trykledning'!$C$11-20)*Hydraulics_gravity!$T$51 -> 9.348431182 | M183: =Hydraulics_gravity!$B$40*1.03^('Sulfiddannelse i trykledning'!$C$11-20)*(10-H182) -> 24.61121553 | N183: 0.06119495031 | O183: =IF(11.4*(N183/'Korrosion nedstrøms'!$C$17)*k_corr>0,11.4*(N183/'Korrosion nedstrøms'!$C$17)*k_corr,0.00001) -> 1.04643365 | P183: 31.05786974
C184: =D184/Hydraulics_gravity!$R$51+$C$15 -> 355.6698938 | D184: 169 | E184: 2.020559959 | F184: =E184*'Trykledning beregning'!$G$14 -> 0.7816802508 | G184: 1.238879708 | H184: 3.206369551 | J184: =Hydraulics_gravity!$B$41*1.03^('Sulfiddannelse i trykledning'!$C$11-20)*F183 -> 2.37989525 | K184: =(0.349+0.671)*H183^0.1*G183*1.07^('Sulfiddannelse i trykledning'!$C$11-20) -> 1.086813907 | L184: =2.4/24*E183^0.5*H183^0.5*1.03^('Sulfiddannelse i trykledning'!$C$11-20)*Hydraulics_gravity!$T$51 -> 9.347136399 | M184: =Hydraulics_gravity!$B$40*1.03^('Sulfiddannelse i trykledning'!$C$11-20)*(10-H183) -> 24.57188979 | N184: 0.06096897545 | O184: =IF(11.4*(N184/'Korrosion nedstrøms'!$C$17)*k_corr>0,11.4*(N184/'Korrosion nedstrøms'!$C$17)*k_corr,0.00001) -> 1.04256948 | P184: 31.17298235
C185: =D185/Hydraulics_gravity!$R$51+$C$15 -> 357.7744494 | D185: 170 | E185: 2.013077103 | F185: =E185*'Trykledning beregning'!$G$14 -> 0.7787854095 | G185: 1.234291694 | H185: 3.217219692 | J185: =Hydraulics_gravity!$B$41*1.03^('Sulfiddannelse i trykledning'!$C$11-20)*F184 -> 2.371104693 | K185: =(0.349+0.671)*H184^0.1*G184*1.07^('Sulfiddannelse i trykledning'!$C$11-20) -> 1.083167344 | L185: =2.4/24*E184^0.5*H184^0.5*1.03^('Sulfiddannelse i trykledning'!$C$11-20)*Hydraulics_gravity!$T$51 -> 9.345712986 | M185: =Hydraulics_gravity!$B$40*1.03^('Sulfiddannelse i trykledning'!$C$11-20)*(10-H184) -> 24.53263647 | N185: 0.06074324478 | O185: =IF(11.4*(N185/'Korrosion nedstrøms'!$C$17)*k_corr>0,11.4*(N185/'Korrosion nedstrøms'!$C$17)*k_corr,0.00001) -> 1.038709486 | P185: 31.28882565
C186: =D186/Hydraulics_gravity!$R$51+$C$15 -> 359.879005 | D186: 171 | E186: 2.00560242 | F186: =E186*'Trykledning beregning'!$G$14 -> 0.7758937297 | G186: 1.22970869 | H186: 3.228049939 | J186: =Hydraulics_gravity!$B$41*1.03^('Sulfiddannelse i trykledning'!$C$11-20)*F185 -> 2.362323645 | K186: =(0.349+0.671)*H185^0.1*G185*1.07^('Sulfiddannelse i trykledning'!$C$11-20) -> 1.079520613 | L186: =2.4/24*E185^0.5*H185^0.5*1.03^('Sulfiddannelse i trykledning'!$C$11-20)*Hydraulics_gravity!$T$51 -> 9.344161675 | M186: =Hydraulics_gravity!$B$40*1.03^('Sulfiddannelse i trykledning'!$C$11-20)*(10-H185) -> 24.49345528 | N186: 0.06051776041 | O186: =IF(11.4*(N186/'Korrosion nedstrøms'!$C$17)*k_corr>0,11.4*(N186/'Korrosion nedstrøms'!$C$17)*k_corr,0.00001) -> 1.034853703 | P186: 31.40540533
C187: =D187/Hydraulics_gravity!$R$51+$C$15 -> 361.9835606 | D187: 172 | E187: 1.998135978 | F187: =E187*'Trykledning beregning'!$G$14 -> 0.773005238 | G187: 1.22513074 | H187: 3.238860372 | J187: =Hydraulics_gravity!$B$41*1.03^('Sulfiddannelse i trykledning'!$C$11-20)*F186 -> 2.353552187 | K187: =(0.349+0.671)*H186^0.1*G186*1.07^('Sulfiddannelse i trykledning'!$C$11-20) -> 1.07587379 | L187: =2.4/24*E186^0.5*H186^0.5*1.03^('Sulfiddannelse i trykledning'!$C$11-20)*Hydraulics_gravity!$T$51 -> 9.342483194 | M187: =Hydraulics_gravity!$B$40*1.03^('Sulfiddannelse i trykledning'!$C$11-20)*(10-H186) -> 24.45434592 | N187: 0.0602925244 | O187: =IF(11.4*(N187/'Korrosion nedstrøms'!$C$17)*k_corr>0,11.4*(N187/'Korrosion nedstrøms'!$C$17)*k_corr,0.00001) -> 1.031002167 | P187: 31.52272714
C188: =D188/Hydraulics_gravity!$R$51+$C$15 -> 364.0881162 | D188: 173 | E188: 1.990677844 | F188: =E188*'Trykledning beregning'!$G$14 -> 0.7701199609 | G188: 1.220557883 | H188: 3.24965107 | J188: =Hydraulics_gravity!$B$41*1.03^('Sulfiddannelse i trykledning'!$C$11-20)*F187 -> 2.3447904 | K188: =(0.349+0.671)*H187^0.1*G187*1.07^('Sulfiddannelse i trykledning'!$C$11-20) -> 1.072226954 | L188: =2.4/24*E187^0.5*H187^0.5*1.03^('Sulfiddannelse i trykledning'!$C$11-20)*Hydraulics_gravity!$T$51 -> 9.340678262 | M188: =Hydraulics_gravity!$B$40*1.03^('Sulfiddannelse i trykledning'!$C$11-20)*(10-H187) -> 24.41530811 | N188: 0.06006753881 | O188: =IF(11.4*(N188/'Korrosion nedstrøms'!$C$17)*k_corr>0,11.4*(N188/'Korrosion nedstrøms'!$C$17)*k_corr,0.00001) -> 1.027154914 | P188: 31.64079689
C189: =D189/Hydraulics_gravity!$R$51+$C$15 -> 366.1926718 | D189: 174 | E189: 1.983228088 | F189: =E189*'Trykledning beregning'!$G$14 -> 0.7672379245 | G189: 1.215990164 | H189: 3.26042211 | J189: =Hydraulics_gravity!$B$41*1.03^('Sulfiddannelse i trykledning'!$C$11-20)*F188 -> 2.336038363 | K189: =(0.349+0.671)*H188^0.1*G188*1.07^('Sulfiddannelse i trykledning'!$C$11-20) -> 1.068580179 | L189: =2.4/24*E188^0.5*H188^0.5*1.03^('Sulfiddannelse i trykledning'!$C$11-20)*Hydraulics_gravity!$T$51 -> 9.338747593 | M189: =Hydraulics_gravity!$B$40*1.03^('Sulfiddannelse i trykledning'!$C$11-20)*(10-H188) -> 24.37634157 | N189: 0.0598428057 | O189: =IF(11.4*(N189/'Korrosion nedstrøms'!$C$17)*k_corr>0,11.4*(N189/'Korrosion nedstrøms'!$C$17)*k_corr,0.00001) -> 1.023311977 | P189: 31.75962045
C190: =D190/Hydraulics_gravity!$R$51+$C$15 -> 368.2972273 | D190: 175 | E190: 1.975786776 | F190: =E190*'Trykledning beregning'!$G$14 -> 0.7643591549 | G190: 1.211427621 | H190: 3.271173572 | J190: =Hydraulics_gravity!$B$41*1.03^('Sulfiddannelse i trykledning'!$C$11-20)*F189 -> 2.327296157 | K190: =(0.349+0.671)*H189^0.1*G189*1.07^('Sulfiddannelse i trykledning'!$C$11-20) -> 1.064933541 | L190: =2.4/24*E189^0.5*H189^0.5*1.03^('Sulfiddannelse i trykledning'!$C$11-20)*Hydraulics_gravity!$T$51 -> 9.336691893 | M190: =Hydraulics_gravity!$B$40*1.03^('Sulfiddannelse i trykledning'!$C$11-20)*(10-H189) -> 24.33744602 | N190: 0.05961832709 | O190: =IF(11.4*(N190/'Korrosion nedstrøms'!$C$17)*k_corr>0,11.4*(N190/'Korrosion nedstrøms'!$C$17)*k_corr,0.00001) -> 1.019473393 | P190: 31.87920373
C191: =D191/Hydraulics_gravity!$R$51+$C$15 -> 370.4017829 | D191: 176 | E191: 1.968353975 | F191: =E191*'Trykledning beregning'!$G$14 -> 0.7614836779 | G191: 1.206870297 | H191: 3.281905531 | J191: =Hydraulics_gravity!$B$41*1.03^('Sulfiddannelse i trykledning'!$C$11-20)*F190 -> 2.31856386 | K191: =(0.349+0.671)*H190^0.1*G190*1.07^('Sulfiddannelse i trykledning'!$C$11-20) -> 1.061287115 | L191: =2.4/24*E190^0.5*H190^0.5*1.03^('Sulfiddannelse i trykledning'!$C$11-20)*Hydraulics_gravity!$T$51 -> 9.334511863 | M191: =Hydraulics_gravity!$B$40*1.03^('Sulfiddannelse i trykledning'!$C$11-20)*(10-H190) -> 24.29862117 | N191: 0.05939410499 | O191: =IF(11.4*(N191/'Korrosion nedstrøms'!$C$17)*k_corr>0,11.4*(N191/'Korrosion nedstrøms'!$C$17)*k_corr,0.00001) -> 1.015639195 | P191: 31.99955274
C192: =D192/Hydraulics_gravity!$R$51+$C$15 -> 372.5063385 | D192: 177 | E192: 1.960929752 | F192: =E192*'Trykledning beregning'!$G$14 -> 0.7586115192 | G192: 1.202318232 | H192: 3.292618066 | J192: =Hydraulics_gravity!$B$41*1.03^('Sulfiddannelse i trykledning'!$C$11-20)*F191 -> 2.30984155 | K192: =(0.349+0.671)*H191^0.1*G191*1.07^('Sulfiddannelse i trykledning'!$C$11-20) -> 1.057640974 | L192: =2.4/24*E191^0.5*H191^0.5*1.03^('Sulfiddannelse i trykledning'!$C$11-20)*Hydraulics_gravity!$T$51 -> 9.332208197 | M192: =Hydraulics_gravity!$B$40*1.03^('Sulfiddannelse i trykledning'!$C$11-20)*(10-H191) -> 24.25986674 | N192: 0.05917014142 | O192: =IF(11.4*(N192/'Korrosion nedstrøms'!$C$17)*k_corr>0,11.4*(N192/'Korrosion nedstrøms'!$C$17)*k_corr,0.00001) -> 1.011809418 | P192: 32.12067353
C193: =D193/Hydraulics_gravity!$R$51+$C$15 -> 374.6108941 | D193: 178 | E193: 1.953514171 | F193: =E193*'Trykledning beregning'!$G$14 -> 0.7557427041 | G193: 1.197771467 | H193: 3.303311253 | J193: =Hydraulics_gravity!$B$41*1.03^('Sulfiddannelse i trykledning'!$C$11-20)*F192 -> 2.301129306 | K193: =(0.349+0.671)*H192^0.1*G192*1.07^('Sulfiddannelse i trykledning'!$C$11-20) -> 1.053995192 | L193: =2.4/24*E192^0.5*H192^0.5*1.03^('Sulfiddannelse i trykledning'!$C$11-20)*Hydraulics_gravity!$T$51 -> 9.329781581 | M193: =Hydraulics_gravity!$B$40*1.03^('Sulfiddannelse i trykledning'!$C$11-20)*(10-H192) -> 24.22118246 | N193: 0.05894643835 | O193: =IF(11.4*(N193/'Korrosion nedstrøms'!$C$17)*k_corr>0,11.4*(N193/'Korrosion nedstrøms'!$C$17)*k_corr,0.00001) -> 1.007984096 | P193: 32.24257222
C194: =D194/Hydraulics_gravity!$R$51+$C$15 -> 376.7154497 | D194: 179 | E194: 1.946107299 | F194: =E194*'Trykledning beregning'!$G$14 -> 0.752877258 | G194: 1.193230041 | H194: 3.313985168 | J194: =Hydraulics_gravity!$B$41*1.03^('Sulfiddannelse i trykledning'!$C$11-20)*F193 -> 2.292427205 | K194: =(0.349+0.671)*H193^0.1*G193*1.07^('Sulfiddannelse i trykledning'!$C$11-20) -> 1.050349841 | L194: =2.4/24*E193^0.5*H193^0.5*1.03^('Sulfiddannelse i trykledning'!$C$11-20)*Hydraulics_gravity!$T$51 -> 9.327232698 | M194: =Hydraulics_gravity!$B$40*1.03^('Sulfiddannelse i trykledning'!$C$11-20)*(10-H193) -> 24.18256804 | N194: 0.05872299775 | O194: =IF(11.4*(N194/'Korrosion nedstrøms'!$C$17)*k_corr>0,11.4*(N194/'Korrosion nedstrøms'!$C$17)*k_corr,0.00001) -> 1.004163262 | P194: 32.36525498
C195: =D195/Hydraulics_gravity!$R$51+$C$15 -> 378.8200053 | D195: 180 | E195: 1.9387092 | F195: =E195*'Trykledning beregning'!$G$14 -> 0.7500152059 | G195: 1.188693994 | H195: 3.324639888 | J195: =Hydraulics_gravity!$B$41*1.03^('Sulfiddannelse i trykledning'!$C$11-20)*F194 -> 2.283735323 | K195: =(0.349+0.671)*H194^0.1*G194*1.07^('Sulfiddannelse i trykledning'!$C$11-20) -> 1.046704993 | L195: =2.4/24*E194^0.5*H194^0.5*1.03^('Sulfiddannelse i trykledning'!$C$11-20)*Hydraulics_gravity!$T$51 -> 9.324562222 | M195: =Hydraulics_gravity!$B$40*1.03^('Sulfiddannelse i trykledning'!$C$11-20)*(10-H194) -> 24.14402322 | N195: 0.05849982158 | O195: =IF(11.4*(N195/'Korrosion nedstrøms'!$C$17)*k_corr>0,11.4*(N195/'Korrosion nedstrøms'!$C$17)*k_corr,0.00001) -> 1.000346949 | P195: 32.48872807
C196: =D196/Hydraulics_gravity!$R$51+$C$15 -> 380.9245609 | D196: 181 | E196: 1.931319939 | F196: =E196*'Trykledning beregning'!$G$14 -> 0.7471565727 | G196: 1.184163366 | H196: 3.335275487 | J196: =Hydraulics_gravity!$B$41*1.03^('Sulfiddannelse i trykledning'!$C$11-20)*F195 -> 2.275053736 | K196: =(0.349+0.671)*H195^0.1*G195*1.07^('Sulfiddannelse i trykledning'!$C$11-20) -> 1.043060719 | L196: =2.4/24*E195^0.5*H195^0.5*1.03^('Sulfiddannelse i trykledning'!$C$11-20)*Hydraulics_gravity!$T$51 -> 9.321770823 | M196: =Hydraulics_gravity!$B$40*1.03^('Sulfiddannelse i trykledning'!$C$11-20)*(10-H195) -> 24.10554772 | N196: 0.05827691179 | O196: =IF(11.4*(N196/'Korrosion nedstrøms'!$C$17)*k_corr>0,11.4*(N196/'Korrosion nedstrøms'!$C$17)*k_corr,0.00001) -> 0.9965351917 | P196: 32.61299779
C197: =D197/Hydraulics_gravity!$R$51+$C$15 -> 383.0291164 | D197: 182 | E197: 1.923939579 | F197: =E197*'Trykledning beregning'!$G$14 -> 0.7443013832 | G197: 1.179638195 | H197: 3.345892041 | J197: =Hydraulics_gravity!$B$41*1.03^('Sulfiddannelse i trykledning'!$C$11-20)*F196 -> 2.266382519 | K197: =(0.349+0.671)*H196^0.1*G196*1.07^('Sulfiddannelse i trykledning'!$C$11-20) -> 1.039417091 | L197: =2.4/24*E196^0.5*H196^0.5*1.03^('Sulfiddannelse i trykledning'!$C$11-20)*Hydraulics_gravity!$T$51 -> 9.318859163 | M197: =Hydraulics_gravity!$B$40*1.03^('Sulfiddannelse i trykledning'!$C$11-20)*(10-H196) -> 24.06714126 | N197: 0.0580542703 | O197: =IF(11.4*(N197/'Korrosion nedstrøms'!$C$17)*k_corr>0,11.4*(N197/'Korrosion nedstrøms'!$C$17)*k_corr,0.00001) -> 0.9927280222 | P197: 32.73807052
C198: =D198/Hydraulics_gravity!$R$51+$C$15 -> 385.133672 | D198: 183 | E198: 1.916568183 | F198: =E198*'Trykledning beregning'!$G$14 -> 0.7414496618 | G198: 1.175118522 | H198: 3.356489625 | J198: =Hydraulics_gravity!$B$41*1.03^('Sulfiddannelse i trykledning'!$C$11-20)*F197 -> 2.257721749 | K198: =(0.349+0.671)*H197^0.1*G197*1.07^('Sulfiddannelse i trykledning'!$C$11-20) -> 1.035774177 | L198: =2.4/24*E197^0.5*H197^0.5*1.03^('Sulfiddannelse i trykledning'!$C$11-20)*Hydraulics_gravity!$T$51 -> 9.315827899 | M198: =Hydraulics_gravity!$B$40*1.03^('Sulfiddannelse i trykledning'!$C$11-20)*(10-H197) -> 24.02880357 | N198: 0.05783189903 | O198: =IF(11.4*(N198/'Korrosion nedstrøms'!$C$17)*k_corr>0,11.4*(N198/'Korrosion nedstrøms'!$C$17)*k_corr,0.00001) -> 0.9889254734 | P198: 32.86395272
C199: =D199/Hydraulics_gravity!$R$51+$C$15 -> 387.2382276 | D199: 184 | E199: 1.909205816 | F199: =E199*'Trykledning beregning'!$G$14 -> 0.7386014329 | G199: 1.170604383 | H199: 3.367068312 | J199: =Hydraulics_gravity!$B$41*1.03^('Sulfiddannelse i trykledning'!$C$11-20)*F198 -> 2.249071498 | K199: =(0.349+0.671)*H198^0.1*G198*1.07^('Sulfiddannelse i trykledning'!$C$11-20) -> 1.032132048 | L199: =2.4/24*E198^0.5*H198^0.5*1.03^('Sulfiddannelse i trykledning'!$C$11-20)*Hydraulics_gravity!$T$51 -> 9.312677683 | M199: =Hydraulics_gravity!$B$40*1.03^('Sulfiddannelse i trykledning'!$C$11-20)*(10-H198) -> 23.99053439 | N199: 0.05760979987 | O199: =IF(11.4*(N199/'Korrosion nedstrøms'!$C$17)*k_corr>0,11.4*(N199/'Korrosion nedstrøms'!$C$17)*k_corr,0.00001) -> 0.9851275777 | P199: 32.99065089
C200: =D200/Hydraulics_gravity!$R$51+$C$15 -> 389.3427832 | D200: 185 | E200: 1.901852538 | F200: =E200*'Trykledning beregning'!$G$14 -> 0.7357567206 | G200: 1.166095818 | H200: 3.377628177 | J200: =Hydraulics_gravity!$B$41*1.03^('Sulfiddannelse i trykledning'!$C$11-20)*F199 -> 2.240431842 | K200: =(0.349+0.671)*H199^0.1*G199*1.07^('Sulfiddannelse i trykledning'!$C$11-20) -> 1.028490773 | L200: =2.4/24*E199^0.5*H199^0.5*1.03^('Sulfiddannelse i trykledning'!$C$11-20)*Hydraulics_gravity!$T$51 -> 9.30940916 | M200: =Hydraulics_gravity!$B$40*1.03^('Sulfiddannelse i trykledning'!$C$11-20)*(10-H199) -> 23.95233345 | N200: 0.0573879747 | O200: =IF(11.4*(N200/'Korrosion nedstrøms'!$C$17)*k_corr>0,11.4*(N200/'Korrosion nedstrøms'!$C$17)*k_corr,0.00001) -> 0.9813343674 | P200: 33.11817162
C201: =D201/Hydraulics_gravity!$R$51+$C$15 -> 391.4473388 | D201: 186 | E201: 1.894508413 | F201: =E201*'Trykledning beregning'!$G$14 -> 0.732915549 | G201: 1.161592864 | H201: 3.388169293 | J201: =Hydraulics_gravity!$B$41*1.03^('Sulfiddannelse i trykledning'!$C$11-20)*F200 -> 2.231802852 | K201: =(0.349+0.671)*H200^0.1*G200*1.07^('Sulfiddannelse i trykledning'!$C$11-20) -> 1.024850418 | L201: =2.4/24*E200^0.5*H200^0.5*1.03^('Sulfiddannelse i trykledning'!$C$11-20)*Hydraulics_gravity!$T$51 -> 9.306022969 | M201: =Hydraulics_gravity!$B$40*1.03^('Sulfiddannelse i trykledning'!$C$11-20)*(10-H200) -> 23.91420048 | N201: 0.05716642541 | O201: =IF(11.4*(N201/'Korrosion nedstrøms'!$C$17)*k_corr>0,11.4*(N201/'Korrosion nedstrøms'!$C$17)*k_corr,0.00001) -> 0.9775458746 | P201: 33.24652156
C202: =D202/Hydraulics_gravity!$R$51+$C$15 -> 393.5518944 | D202: 187 | E202: 1.887173502 | F202: =E202*'Trykledning beregning'!$G$14 -> 0.7300779419 | G202: 1.15709556 | H202: 3.398691733 | J202: =Hydraulics_gravity!$B$41*1.03^('Sulfiddannelse i trykledning'!$C$11-20)*F201 -> 2.223184603 | K202: =(0.349+0.671)*H201^0.1*G201*1.07^('Sulfiddannelse i trykledning'!$C$11-20) -> 1.021211053 | L202: =2.4/24*E201^0.5*H201^0.5*1.03^('Sulfiddannelse i trykledning'!$C$11-20)*Hydraulics_gravity!$T$51 -> 9.302519746 | M202: =Hydraulics_gravity!$B$40*1.03^('Sulfiddannelse i trykledning'!$C$11-20)*(10-H201) -> 23.87613521 | N202: 0.05694515386 | O202: =IF(11.4*(N202/'Korrosion nedstrøms'!$C$17)*k_corr>0,11.4*(N202/'Korrosion nedstrøms'!$C$17)*k_corr,0.00001) -> 0.9737621309 | P202: 33.37570744
... 817 more rows
